Workbook

Sheet Welcome
AA1: 16 | AB1: =INDEX(AB$4:AB$45,MATCH(MyVoteNo,$AA$4:$AA$45,0)) -> Basic Education | AC1: =INDEX(AC$4:AC$45,MATCH(MyVoteNo,$AA$4:$AA$45,0)) -> Spencer Janari | AE1: =INDEX(AE$4:AE$45,MATCH(MyVoteNo,$AA$4:$AA$45,0)) -> Spencer.Janari@treasury.gov.za | AF1: =INDEX(AF$4:AF$45,MATCH(MyVoteNo,$AA$4:$AA$45,0)) -> Shaneel Ragoo | AH1: =INDEX(AH$4:AH$45,MATCH(MyVoteNo,$AA$4:$AA$45,0)) -> shaneel.ragoo@treasury.gov.za
E2: 2025 MTEF Workbook - National departments | AI2: Dept Ceilings | AL2: CoE Ceilings | AS2: Departmental Ceilings | AT2: =SUM(AT4:AT45) -> 2209924475 | AU2: 2308222249 | AV2: 2413260677 | AY2: Compensation Ceilings | AZ2: =SUM(AZ4:AZ45) -> 216918553 | BA2: 226908885 | BB2: 237169849
Z3: Dept Index No. | AA3: Vote No. | AB3: Department | AC3: Contact Person | AD3: Tel | AE3: email | AF3: Contact Person | AG3: Tel | AH3: email | AI3: =MyYear5 -> 2025/26 | AJ3: =MyYear6 -> 2026/27 | AK3: =MyYear7 -> 2027/28 | AL3: =AI3 -> 2025/26 | AM3: 2026/27 | AN3: 2027/28 | AS3: Department | AT3: =AI3 -> 2025/26 | AU3: 2026/27 | AV3: 2027/28 | AY3: Department | AZ3: =AI3 -> 2025/26 | BA3: 2026/27 | BB3: 2027/28
Z4: 1 | AA4: 29 | AB4: Agriculture, Land Reform and Rural Development | AC4: Bothwell Deka | AD4: (012) 395 6784 | AE4: Bothwell.Deka@treasury.gov.za | AF4: Nico Likhethe | AG4: (012) 315 5558 | AH4: Nico.Likhethe@treasury.gov.za | AI4: =IFERROR(INDEX((AT$4:AT$45),MATCH($AB4,$AS$4:$AS$45,0)),0) -> 17371111 | AJ4: =IFERROR(INDEX((AU$4:AU$45),MATCH($AB4,$AS$4:$AS$45,0)),0) -> 18122954 | AK4: =IFERROR(INDEX((AV$4:AV$45),MATCH($AB4,$AS$4:$AS$45,0)),0) -> 18942491 | AL4: =IFERROR(INDEX((AZ$4:AZ$45),MATCH($AB4,$AY$4:$AY$45,0)),0) -> 4306747 | AM4: =IFERROR(INDEX((BA$4:BA$45),MATCH($AB4,$AY$4:$AY$45,0)),0) -> 4463341 | AN4: =IFERROR(INDEX((BB$4:BB$45),MATCH($AB4,$AY$4:$AY$45,0)),0) -> 4665177 | AS4: Agriculture, Land Reform and Rural Development | AT4: 17371111 | AU4: 18122954 | AV4: 18942491 | AY4: Agriculture, Land Reform and Rural Development | AZ4: 4306747 | BA4: 4463341 | BB4: 4665177
Z5: 2 | AA5: 16 | AB5: Basic Education | AC5: Spencer Janari | AD5: (012) 315 5436 | AE5: Spencer.Janari@treasury.gov.za | AF5: Shaneel Ragoo | AG5: (012) 315 5323 | AH5: shaneel.ragoo@treasury.gov.za | AI5: 34014578 | AJ5: 35058615 | AK5: 36643983 | AL5: 663644 | AM5: 693664 | AN5: 725032 | AS5: Basic Education | AT5: 34014578 | AU5: 35058615 | AV5: 36643983 | AY5: Basic Education | AZ5: 663644 | BA5: 693664 | BB5: 725032
Z6: 3 | AA6: 42 | AB6: Centre for Public Service Innovation | AC6: George Tembo | AD6: (012) 315 5514 | AE6: George.Tembo@treasury.gov.za | AF6: Uvadhya Singh | AG6: (012) 406 9030 | AH6: Uvadhya.Singh@treasury.gov.za | AI6: =IFERROR(INDEX((AT$4:AT$45),MATCH($AB6,$AS$4:$AS$45,0)),0) -> 50071 | AJ6: =IFERROR(INDEX((AU$4:AU$45),MATCH($AB6,$AS$4:$AS$45,0)),0) -> 52367 | AK6: =IFERROR(INDEX((AV$4:AV$45),MATCH($AB6,$AS$4:$AS$45,0)),0) -> 54737 | AL6: =IFERROR(INDEX((AZ$4:AZ$45),MATCH($AB6,$AY$4:$AY$45,0)),0) -> 29889 | AM6: =IFERROR(INDEX((BA$4:BA$45),MATCH($AB6,$AY$4:$AY$45,0)),0) -> 31242 | AN6: =IFERROR(INDEX((BB$4:BB$45),MATCH($AB6,$AY$4:$AY$45,0)),0) -> 32656 | AS6: Centre for Public Service Innovation | AT6: 50071 | AU6: 52367 | AV6: 54737 | AY6: Centre for Public Service Innovation | AZ6: 29889 | BA6: 31242 | BB6: 32656
B7: ="VOTE " &$AA$1&": " -> VOTE 16: | C7: =MyDeptName -> Basic Education | Z7: 4 | AA7: 21 | AB7: Civilian Secretariat for the Police Service | AC7: Velisubuhle Buti | AD7: (012) 395 6709 | AE7: Velisubuhle.Buti@treasury.gov.za | AF7: Ntombizodwa Dingiswayo | AG7: (012) 315 5112 | AH7: Ntombizodwa.Dingiswayo@treasury.gov.za | AI7: 163058 | AJ7: 170762 | AK7: 178485 | AL7: 129851 | AM7: 133705 | AN7: 139752 | AS7: Civilian Secretariat for the Police Service | AT7: 163058 | AU7: 170762 | AV7: 178485 | AY7: Civilian Secretariat for the Police Service | AZ7: 129851 | BA7: 133705 | BB7: 139752
Z8: 5 | AA8: 30 | AB8: Communications and Digital Technologies | AC8: Rezah Atcha | AD8: (012) 315 5287 | AE8: Rezah.Atcha@treasury.gov.za | AF8: Keitumetse Motshegwe | AG8: (012) 395 6750 | AH8: keitumetse.motshegwe@treasury.gov.za | AI8: 2440863 | AJ8: 2554223 | AK8: 2669721 | AL8: 329082 | AM8: 344162 | AN8: 359727 | AS8: Communications and Digital Technologies | AT8: 2440863 | AU8: 2554223 | AV8: 2669721 | AY8: Communications and Digital Technologies | AZ8: 329082 | BA8: 344162 | BB8: 359727
Z9: 6 | AA9: 3 | AB9: Cooperative Governance | AC9: Werner Krause | AD9: (012) 315 5211 | AE9: Werner.Krause@treasury.gov.za | AF9: Portia Thebe | AG9: (012) 315 5855 | AH9: Portia.Thebe@treasury.gov.za | AI9: 131125395 | AJ9: 136796296 | AK9: 142982317 | AL9: 377695 | AM9: 394999 | AN9: 412862 | AS9: Cooperative Governance | AT9: 131125395 | AU9: 136796296 | AV9: 142982317 | AY9: Cooperative Governance | AZ9: 377695 | BA9: 394999 | BB9: 412862
B10: Enquiries | F10: Department Contact Details | I10: PLEASE CLICK THE BUTTON BELOW TO SUBMIT AN INPUT… (Note: Input can not be submitted if ceilings on the 'Data' sheet are exceeded.) | Z10: 7 | AA10: 22 | AB10: Correctional Services | AC10: Elvis Ramafamba | AD10: (012) 315 5204 | AE10: Elvis.Ramafamba@treasury.gov.za | AF10: Yolanda Matiwane | AG10: (012) 315 5012 | AH10: Yolanda.Matiwane@treasury.gov.za | AI10: 28989646 | AJ10: 30316701 | AK10: 31687643 | AL10: 20291815 | AM10: 21220790 | AN10: 22180406 | AS10: Correctional Services | AT10: 28989646 | AU10: 30316701 | AV10: 31687643 | AY10: Correctional Services | AZ10: 20291815 | BA10: 21220790 | BB10: 22180406
B11: =AC1 -> Spencer Janari | D11: =AE1 -> Spencer.Janari@treasury.gov.za | F11: Name: | Z11: 8 | AA11: 23 | AB11: Defence | AC11: Mashudu Bidzha | AD11: (012) 315 5344 | AE11: Mashudu.Bidzha@treasury.gov.za | AF11: Lesiba Ledwaba | AG11: (012) 395 6660 | AH11: Lesiba.Ledwaba@treasury.gov.za | AI11: 53775574 | AJ11: 56237353 | AK11: 58780420 | AL11: 35652587 | AM11: 37284103 | AN11: 38970112 | AS11: Defence | AT11: 53775574 | AU11: 56237353 | AV11: 58780420 | AY11: Defence | AZ11: 35652587 | BA11: 37284103 | BB11: 38970112
B12: =IF(AF1=B11,"",AF1) -> Shaneel Ragoo | D12: =IF(AH1=D11,"",AH1) -> shaneel.ragoo@treasury.gov.za | F12: Email: | Z12: 9 | AA12: 31 | AB12: Employment and Labour | AC12: Judy Naidoo | AD12: (012) 315 5269 | AE12: Judy.Naidoo@treasury.gov.za | AF12: Nkosana Mphafa | AG12: (012) 315 5119 | AH12: Nkosana.Mphafa@treasury.gov.za | AI12: 3777012 | AJ12: 3955939 | AK12: 4134826 | AL12: 1546907 | AM12: 1617779 | AN12: 1690935 | AS12: Employment and Labour | AT12: 3777012 | AU12: 3955939 | AV12: 4134826 | AY12: Employment and Labour | AZ12: 1546907 | BA12: 1617779 | BB12: 1690935
F13: Telephone number: | Z13: 10 | AA13: 32 | AB13: Forestry, Fisheries and the Environment | AC13: Humbelani Ramuedzisi | AD13: (012) 315 5320 | AE13: Humbelani.Ramuedzisi@treasury.gov.za | AF13: Ashley Ramasimu | AG13: (012) 315 5166 | AH13: Ashley.Ramasimu@treasury.gov.za | AI13: 8922897 | AJ13: 9339846 | AK13: 9762188 | AL13: 2337008 | AM13: 2442568 | AN13: 2553019 | AS13: Forestry, Fisheries and the Environment | AT13: 8922897 | AU13: 9339846 | AV13: 9762188 | AY13: Forestry, Fisheries and the Environment | AZ13: 2337008 | BA13: 2442568 | BB13: 2553019
F14: Mobile (optional): | Z14: 11 | AA14: 4 | AB14: Government Communication and Information System | AC14: Mokgatla Tema | AD14: (012) 315 5948 | AE14: Mokgatla.Tema@treasury.gov.za | AF14: Viwe Sobudula | AG14: (012) 315 5015 | AH14: Viwe.Sobudula@treasury.gov.za | AI14: 768574 | AJ14: 802785 | AK14: 839089 | AL14: 308313 | AM14: 321571 | AN14: 336112 | AS14: Government Communication and Information System | AT14: 768574 | AU14: 802785 | AV14: 839089 | AY14: Government Communication and Information System | AZ14: 308313 | BA14: 321571 | BB14: 336112
Z15: 12 | AA15: 18 | AB15: Health | AC15: Refiloe Thokoa | AD15: (012) 395 6559 | AE15: Refiloe.thokoa@treasury.gov.za | AF15: Aisha Khoele | AG15: (012) 395 6722 | AH15: Aisha.Khoele@treasury.gov.za | AI15: 63696348 | AJ15: 66397459 | AK15: 69604111 | AL15: 727569 | AM15: 761003 | AN15: 795419 | AS15: Health | AT15: 63696348 | AU15: 66397459 | AV15: 69604111 | AY15: Health | AZ15: 727569 | BA15: 761003 | BB15: 795419
Z16: 13 | AA16: 17 | AB16: Higher Education and Training | AC16: Spencer Janari | AD16: (012) 315 5436 | AE16: Spencer.Janari@treasury.gov.za | AF16: Barileng Khumisi | AG16: (012) 406 9069 | AH16: barileng.khumisi@treasury.gov.za | AI16: 142838048 | AJ16: 150398761 | AK16: 158289164 | AL16: 12411156 | AM16: 13122727 | AN16: 13716144 | AS16: Higher Education and Training | AT16: 142838048 | AU16: 150398761 | AV16: 158289164 | AY16: Higher Education and Training | AZ16: 12411156 | BA16: 13122727 | BB16: 13716144
Z17: 14 | AA17: 5 | AB17: Home Affairs | AC17: Maggy Mokoka | AD17: (012) 315 5468 | AE17: Maggy.Mokoka@treasury.gov.za | AF17: Pindi Masiso | AG17: (012) 315 5722 | AH17: Pindi.Masiso@treasury.gov.za | AI17: 10738821 | AJ17: 11227644 | AK17: 11735357 | AL17: 4191412 | AM17: 4368820 | AN17: 4566382 | AS17: Home Affairs | AT17: 10738821 | AU17: 11227644 | AV17: 11735357 | AY17: Home Affairs | AZ17: 4191412 | BA17: 4368820 | BB17: 4566382
Z18: 15 | AA18: 33 | AB18: Human Settlements | AC18: Katlego Moilwa | AD18: (012) 315 5812 | AE18: Katlego.Moilwa@treasury.gov.za | AF18: Lindiwe Ngcongwane | AG18: (012) 315 5357 | AH18: Lindiwe.Ngcongwane@treasury.gov.za | AI18: 34037798 | AJ18: 33312368 | AK18: 33882582 | AL18: 452340 | AM18: 473064 | AN18: 494456 | AS18: Human Settlements | AT18: 34037798 | AU18: 33312368 | AV18: 33882582 | AY18: Human Settlements | AZ18: 452340 | BA18: 473064 | BB18: 494456
Z19: 16 | AA19: 24 | AB19: Independent Police Investigative Directorate | AC19: Velisubuhle Buti | AD19: (012) 395 6709 | AE19: Velisubuhle.Buti@treasury.gov.za | AF19: Ntombizodwa Dingiswayo | AG19: (012) 315 5112 | AH19: Ntombizodwa.Dingiswayo@treasury.gov.za | AI19: 387413 | AJ19: 405613 | AK19: 423951 | AL19: 268159 | AM19: 280466 | AN19: 293148 | AS19: Independent Police Investigative Directorate | AT19: 387413 | AU19: 405613 | AV19: 423951 | AY19: Independent Police Investigative Directorate | AZ19: 268159 | BA19: 280466 | BB19: 293148
Z20: 17 | AA20: 6 | AB20: International Relations and Cooperation | AC20: George Tembo | AD20: (012) 315 5514 | AE20: George.Tembo@treasury.gov.za | AF20: Mercy Mhlophe | AG20: (012) 315 5598 | AH20: mercy.mhlope@treasury.gov.za | AI20: 6835305 | AJ20: 7160718 | AK20: 7484535 | AL20: 3207531 | AM20: 3354507 | AN20: 3506201 | AS20: International Relations and Cooperation | AT20: 6835305 | AU20: 7160718 | AV20: 7484535 | AY20: International Relations and Cooperation | AZ20: 3207531 | BA20: 3354507 | BB20: 3506201
Z21: 18 | AA21: 25 | AB21: Justice and Constitutional Development | AC21: Werner Krause | AD21: (012) 315 5211 | AE21: Werner.Krause@treasury.gov.za | AF21: Siphamandla Khumalo | AG21: (012)315 5759 | AH21: siphamandla.khumalo@treasury.gov.za | AI21: 25164491 | AJ21: 26316684 | AK21: 27506744 | AL21: 15699701 | AM21: 16395516 | AN21: 17136932 | AS21: Justice and Constitutional Development | AT21: 25164491 | AU21: 26316684 | AV21: 27506744 | AY21: Justice and Constitutional Development | AZ21: 15699701 | BA21: 16395516 | BB21: 17136932
Z22: 19 | AA22: 26 | AB22: Military Veterans | AC22: Mashudu Bidzha | AD22: (012) 315 5344 | AE22: Mashudu.Bidzha@treasury.gov.za | AF22: Lesiba Ledwaba | AG22: (012) 395 6660 | AH22: Lesiba.Ledwaba@treasury.gov.za | AI22: 937280 | AJ22: 979921 | AK22: 1024229 | AL22: 146550 | AM22: 153263 | AN22: 160194 | AS22: Military Veterans | AT22: 937280 | AU22: 979921 | AV22: 1024229 | AY22: Military Veterans | AZ22: 146550 | BA22: 153263 | BB22: 160194
Z23: 20 | AA23: 34 | AB23: Mineral Resources and Energy | AC23: Rezah Atcha | AD23: (012) 315 5287 | AE23: Rezah.Atcha@treasury.gov.za | AF23: Nomagugu Madikane | AG23: (012) 315 5312 | AH23: Nomagugu.Madikane@treasury.gov.za | AI23: 8948377 | AJ23: 9113750 | AK23: 9525875 | AL23: 1162586 | AM23: 1215852 | AN23: 1270835 | AS23: Mineral Resources and Energy | AT23: 8948377 | AU23: 9113750 | AV23: 9525875 | AY23: Mineral Resources and Energy | AZ23: 1162586 | BA23: 1215852 | BB23: 1270835
Z24: 21 | AA24: 7 | AB24: National School of Government | AC24: George Tembo | AD24: (012) 315 5514 | AE24: George.Tembo@treasury.gov.za | AF24: Mercy Mhlophe | AG24: (012) 315 5598 | AH24: Mercy.Mhlophe@treasury.gov.za | AI24: 228114 | AJ24: 238820 | AK24: 249619 | AL24: 65890 | AM24: 68908 | AN24: 72025 | AS24: National School of Government | AT24: 228114 | AU24: 238820 | AV24: 249619 | AY24: National School of Government | AZ24: 65890 | BA24: 68908 | BB24: 72025
Z25: 22 | AA25: 8 | AB25: National Treasury | AC25: Mokgatla Tema | AD25: (012) 315 5948 | AE25: Mokgatla.Tema@treasury.gov.za | AF25: Rhoda Marais | AG25: (012) 315 5906 | AH25: Rhoda.Marais@treasury.gov.za | AI25: 1096007433 | AJ25: 1151125785 | AK25: 1207294369 | AL25: 973298 | AM25: 1017834 | AN25: 1063861 | AS25: National Treasury | AT25: 1096007433 | AU25: 1151125785 | AV25: 1207294369 | AY25: National Treasury | AZ25: 973298 | BA25: 1017834 | BB25: 1063861
Z26: 23 | AA26: 27 | AB26: Office of the Chief Justice | AC26: Elvis Ramafamba | AD26: (012) 315 5204 | AE26: Elvis.Ramafamba@treasury.gov.za | AF26: Keabetswe Matlwa | AG26: (012) 395 6678 | AH26: Keabetswe.Matlwa@treasury.gov.za | AI26: 2493370 | AJ26: 2615156 | AK26: 2733406 | AL26: 1998728 | AM26: 2089173 | AN26: 2183646 | AS26: Office of the Chief Justice | AT26: 2493370 | AU26: 2615156 | AV26: 2733406 | AY26: Office of the Chief Justice | AZ26: 1998728 | BA26: 2089173 | BB26: 2183646
Z27: 24 | AA27: 2 | AB27: Parliament | AC27: Maggy Mokoka | AD27: (012) 315 5468 | AE27: Maggy.Mokoka@treasury.gov.za | AF27: Pindi Masiso | AG27: (012) 315 5722 | AH27: Pindi.Masiso@treasury.gov.za | AI27: 3382640 | AJ27: 3072997 | AK27: 3211965 | AL27: 1566258 | AM27: 1638015 | AN27: 1712086 | AS27: Parliament | AT27: 3382640 | AU27: 3072997 | AV27: 3211965 | AY27: Parliament | AZ27: 1566258 | BA27: 1638015 | BB27: 1712086
Z28: 25 | AA28: 9 | AB28: Planning, Monitoring and Evaluation | AC28: Mokgatla Tema | AD28: (012) 315 5948 | AE28: Mokgatla.Tema@treasury.gov.za | AF28: Viwe Sobudula | AG28: (012) 315 5015 | AH28: Viwe.Sobudula@treasury.gov.za | AI28: 470298 | AJ28: 495360 | AK28: 517765 | AL28: 351632 | AM28: 367740 | AN28: 384372 | AS28: Planning, Monitoring and Evaluation | AT28: 470298 | AU28: 495360 | AV28: 517765 | AY28: Planning, Monitoring and Evaluation | AZ28: 351632 | BA28: 367740 | BB28: 384372
Z29: 26 | AA29: 28 | AB29: Police | AC29: Velisubuhle Buti | AD29: (012) 395 6709 | AE29: Velisubuhle.Buti@treasury.gov.za | AF29: Ntombizodwa Dingiswayo | AG29: (012) 315 5112 | AH29: Ntombizodwa.Dingiswayo@treasury.gov.za | AI29: 119367897 | AJ29: 124832929 | AK29: 130477952 | AL29: 98026789 | AM29: 102512383 | AN29: 107148056 | AS29: Police | AT29: 119367897 | AU29: 124832929 | AV29: 130477952 | AY29: Police | AZ29: 98026789 | BA29: 102512383 | BB29: 107148056
Z30: 27 | AA30: 10 | AB30: Public Enterprises | AC30: Isaac Kurasha | AD30: (012) 315 5213 | AE30: Isaac.Kurasha@treasury.gov.za | AF30: Tumelo Movare | AG30: (012) 315 5279 | AH30: Tumelo.Movare@treasury.gov.za | AI30: 308630 | AJ30: 323543 | AK30: 338172 | AL30: 183972 | AM30: 192304 | AN30: 201000 | AS30: Public Enterprises | AT30: 308630 | AU30: 323543 | AV30: 338172 | AY30: Public Enterprises | AZ30: 183972 | BA30: 192304 | BB30: 201000
Z31: 28 | AA31: 11 | AB31: Public Service and Administration | AC31: George Tembo | AD31: (012) 315 5514 | AE31: George.Tembo@treasury.gov.za | AF31: Uvadhya Singh | AG31: (012) 315 9030 | AH31: Uvadhya.Singh@treasury.gov.za | AI31: 561804 | AJ31: 588792 | AK31: 615412 | AL31: 305169 | AM31: 319157 | AN31: 333589 | AS31: Public Service and Administration | AT31: 561804 | AU31: 588792 | AV31: 615412 | AY31: Public Service and Administration | AZ31: 305169 | BA31: 319157 | BB31: 333589
Z32: 29 | AA32: 12 | AB32: Public Service Commission | AC32: George Tembo | AD32: (012) 315 5514 | AE32: George.Tembo@treasury.gov.za | AF32: Mercy Mhlophe | AG32: (012) 315 5598 | AH32: mercy.mhlope@treasury.gov.za | AI32: 300049 | AJ32: 314718 | AK32: 328946 | AL32: 226003 | AM32: 237051 | AN32: 247768 | AS32: Public Service Commission | AT32: 300049 | AU32: 314718 | AV32: 328946 | AY32: Public Service Commission | AZ32: 226003 | BA32: 237051 | BB32: 247768
Z33: 30 | AA33: 13 | AB33: Public Works and Infrastructure | AC33: George Tembo | AD33: (012) 315 5514 | AE33: George.Tembo@treasury.gov.za | AF33: Uvadhya Singh | AG33: (012) 315 9030 | AH33: Uvadhya.Singh@treasury.gov.za | AI33: 7904595 | AJ33: 8268498 | AK33: 8642409 | AL33: 640502 | AM33: 669847 | AN33: 700136 | AS33: Public Works and Infrastructure | AT33: 7904595 | AU33: 8268498 | AV33: 8642409 | AY33: Public Works and Infrastructure | AZ33: 640502 | BA33: 669847 | BB33: 700136
Z34: 31 | AA34: 35 | AB34: Science and Innovation | AC34: Humbelani Ramuedzisi | AD34: (012) 315 5320 | AE34: Humbelani.Ramuedzisi@treasury.gov.za | AF34: Jabulani Mahlangu | AG34: (012) 315 5166 | AH34: Jabulani.Mahlangu@treasury.gov.za | AI34: 9089124 | AJ34: 9510088 | AK34: 9940128 | AL34: 403758 | AM34: 422257 | AN34: 441352 | AS34: Science and Innovation | AT34: 9089124 | AU34: 9510088 | AV34: 9940128 | AY34: Science and Innovation | AZ34: 403758 | BA34: 422257 | BB34: 441352
Z35: 32 | AA35: 36 | AB35: Small Business Development | AC35: Bothwell Deka | AD35: (012) 395 6784 | AE35: Bothwell.Deka@treasury.gov.za | AF35: Nico Likhethe | AG35: (012) 315 5558 | AH35: Nico.Likhethe@treasury.gov.za | AI35: 2544287 | AJ35: 2661856 | AK35: 2782226 | AL35: 262751 | AM35: 274743 | AN35: 287166 | AS35: Small Business Development | AT35: 2544287 | AU35: 2661856 | AV35: 2782226 | AY35: Small Business Development | AZ35: 262751 | BA35: 274743 | BB35: 287166
Z36: 33 | AA36: 19 | AB36: Social Development | AC36: Pebetse Maleka | AD36: (012) 315 5566 | AE36: Pebetse.Maleka@treasury.gov.za | AF36: Yusuf Mayet | AG36: (012) 315 5189 | AH36: Yusuf.Mayet@treasury.gov.za | AI36: 257407647 | AJ36: 269195655 | AK36: 281368845 | AL36: 559929 | AM36: 585583 | AN36: 612065 | AS36: Social Development | AT36: 257407647 | AU36: 269195655 | AV36: 281368845 | AY36: Social Development | AZ36: 559929 | BA36: 585583 | BB36: 612065
Z37: 34 | AA37: 37 | AB37: Sport, Arts and Culture | AC37: Judy Naidoo | AD37: (012) 315 5269 | AE37: Judy.Naidoo@treasury.gov.za | AF37: Mabele Mdhluli | AG37: (012) 315 5573 | AH37: Mabele.Mdhluli@treasury.gov.za | AI37: 5949647 | AJ37: 6223833 | AK37: 6505272 | AL37: 419708 | AM37: 438959 | AN37: 458808 | AS37: Sport, Arts and Culture | AT37: 5949647 | AU37: 6223833 | AV37: 6505272 | AY37: Sport, Arts and Culture | AZ37: 419708 | BA37: 438959 | BB37: 458808
Z38: 35 | AA38: 14 | AB38: Statistics South Africa | AC38: Mokgatla Tema | AD38: (012) 315 5948 | AE38: Mokgatla.Tema@treasury.gov.za | AF38: Thobeka Mbonambi | AG38: (012) 395 6719 | AH38: Thobeka.Mbonambi@treasury.gov.za | AI38: 2754523 | AJ38: 2887645 | AK38: 3018224 | AL38: 1809186 | AM38: 1892077 | AN38: 1977641 | AS38: Statistics South Africa | AT38: 2754523 | AU38: 2887645 | AV38: 3018224 | AY38: Statistics South Africa | AZ38: 1809186 | BA38: 1892077 | BB38: 1977641
Z39: 36 | AA39: 1 | AB39: The Presidency | AC39: Timothy Murwa | AD39: (012) 315 5002 | AE39: Timothy.Murwa@treasury.gov.za | AF39: Maggy Mokoka | AG39: (012) 315 5468 | AH39: Maggy.Mokoka@treasury.gov.za | AI39: 637092 | AJ39: 667910 | AK39: 698110 | AL39: 406750 | AM39: 427554 | AN39: 446888 | AS39: The Presidency | AT39: 637092 | AU39: 667910 | AV39: 698110 | AY39: The Presidency | AZ39: 406750 | BA39: 427554 | BB39: 446888
Z40: 37 | AA40: 38 | AB40: Tourism | AC40: Humbelani Ramuedzisi | AD40: (012) 315 5320 | AE40: Humbelani.Ramuedzisi@treasury.gov.za | AF40: Ashley Ramasimu | AG40: (012) 315 5166 | AH40: Ashley.Ramasimu@treasury.gov.za | AI40: 2502652 | AJ40: 2618870 | AK40: 2737292 | AL40: 429134 | AM40: 447824 | AN40: 468073 | AS40: Tourism | AT40: 2502652 | AU40: 2618870 | AV40: 2737292 | AY40: Tourism | AZ40: 429134 | BA40: 447824 | BB40: 468073
Z41: 38 | AA41: 39 | AB41: Trade, Industry and Competition | AC41: Isaac Kurasha | AD41: (012) 315 5213 | AE41: Isaac.Kurasha@treasury.gov.za | AF41: Rudzani Sikhwari | AG41: (012) 315 5823 | AH41: rudzani.sikhwari@treasury.gov.za | AI41: 10023794 | AJ41: 10487340 | AK41: 10961580 | AL41: 1128561 | AM41: 1180267 | AN41: 1233641 | AS41: Trade, Industry and Competition | AT41: 10023794 | AU41: 10487340 | AV41: 10961580 | AY41: Trade, Industry and Competition | AZ41: 1128561 | BA41: 1180267 | BB41: 1233641
Z42: 39 | AA42: 15 | AB42: Traditional Affairs | AC42: Werner Krause | AD42: (012) 315 5211 | AE42: Werner.Krause@treasury.gov.za | AF42: Portia Thebe | AG42: (012) 315 5855 | AH42: Portia.Thebe@treasury.gov.za | AI42: 194650 | AJ42: 203971 | AK42: 213196 | AL42: 105440 | AM42: 110272 | AN42: 115260 | AS42: Traditional Affairs | AT42: 194650 | AU42: 203971 | AV42: 213196 | AY42: Traditional Affairs | AZ42: 105440 | BA42: 110272 | BB42: 115260
Z43: 40 | AA43: 40 | AB43: Transport | AC43: Pebetse Maleka | AD43: (012) 315 5566 | AE43: Pebetse.Maleka@treasury.gov.za | AF43: Luyolo Ntlangula | AG43: (012) 315 5571 | AH43: luyolo.ntangula@treasury.gov.za | AI43: 86868222 | AJ43: 88591488 | AK43: 91072660 | AL43: 596765 | AM43: 624104 | AN43: 652327 | AS43: Transport | AT43: 86868222 | AU43: 88591488 | AV43: 91072660 | AY43: Transport | AZ43: 596765 | BA43: 624104 | BB43: 652327
Z44: 41 | AA44: 41 | AB44: Water and Sanitation | AC44: Werner Krause | AD44: (012) 315 5211 | AE44: Werner.Krause@treasury.gov.za | AF44: Iqbal Mahomed Alli | AG44: (012) 315 5809 | AH44: Iqbal.Mahomed-Alli@treasury.gov.za | AI44: 25159941 | AJ44: 23754548 | AK44: 22541843 | AL44: 2079498 | AM44: 2175064 | AN44: 2273421 | AS44: Water and Sanitation | AT44: 25159941 | AU44: 23754548 | AV44: 22541843 | AY44: Water and Sanitation | AZ44: 2079498 | BA44: 2175064 | BB44: 2273421
Z45: 42 | AA45: 20 | AB45: Women, Youth and Persons with Disabilities | AC45: Pebetse Maleka | AD45: (012) 315 5566 | AE45: Pebetse.Maleka@treasury.gov.za | AF45: Desire Mathibe | AG45: (012) 395 6720 | AH45: Desire.Mathibe@treasury.gov.za | AI45: 785406 | AJ45: 821688 | AK45: 858838 | AL45: 138290 | AM45: 144627 | AN45: 151167 | AS45: Women, Youth and Persons with Disabilities | AT45: 785406 | AU45: 821688 | AV45: 858838 | AY45: Women, Youth and Persons with Disabilities | AZ45: 138290 | BA45: 144627 | BB45: 151167
AI48: =SUM(AI4:AI45) -> 2209924475 | AJ48: 2308222249 | AK48: 2413260677 | AL48: 216918553 | AM48: 226908885 | AN48: 237169849

Sheet Notes
B42: Link to 2025 MTEF Guidelines
B43: http://www.treasury.gov.za/publications/guidelines/default.aspx
R57: Click "Enable Content"
R69: Tick "Ignore Privacy Levels" box
R72: Click "Save"

Sheet Pivot % growth
B13: Econ3 | C13: (All)
B14: Econ2 | C14: (All)
B16: Row Labels | C16: 2024/25 Baseline | D16: 2025/26 Revised baseline | E16: 2026/27 Revised baseline | F16: 2027/28 Revised baseline | G16: 2025/26 adjustment | H16: 2026/27 adjustment | I16: 2027/28 adjustment | J16: % YoY 2025/26 | K16: % YoY 2026/27 | L16: % YoY 2027/28 | M16: Ave Ann growth History | N16: Ave Ann growth MTEF | O16: 2025/26 % adjustment | P16: 2026/27 % adjustment | Q16: 2027/28 % adjustment
B17: Administration | C17: 607458 | D17: 608781 | E17: 636709 | F17: 665497 | G17: 0 | H17: 0 | I17: 0 | J17: 0.002177928351 | K17: 0.04587528192 | L17: 0.04521374757 | M17: 0.04535647415 | N17: 0.03088435503 | O17: 0 | P17: 0 | Q17: 0
B18: Curriculum Policy, Support and Monitoring | C18: 4088896 | D18: 4525364 | E18: 4733877 | F18: 4947944 | G18: 0 | H18: 0 | I18: 0 | J18: 0.1067447057 | K18: 0.04607651451 | L18: 0.04522022858 | M18: 0.07029071852 | N18: 0.06562950594 | O18: 0 | P18: 0 | Q18: 0
B19: Teachers, Education Human Resources and Institutional Development | C19: 1438697 | D19: 1514132 | E19: 1583495 | F19: 1655102 | G19: 0 | H19: 0 | I19: 0 | J19: 0.05243286112 | K19: 0.04581040491 | L19: 0.0452208564 | M19: 0.001295025002 | N19: 0.04781627998 | O19: 0 | P19: 0 | Q19: 0
B20: Planning, Information and Assessment | C20: 15994550 | D20: 16706178 | E20: 16956572 | F20: 17723361 | G20: 0 | H20: 0 | I20: 0 | J20: 0.04449190506 | K20: 0.01498810799 | L20: 0.0452207557 | M20: 0.02861688225 | N20: 0.03480381037 | O20: 0 | P20: 0 | Q20: 0
B21: Educational Enrichment Services | C21: 10129097 | D21: 10660123 | E21: 11147962 | F21: 11652079 | G21: 0 | H21: 0 | I21: 0 | J21: 0.05242579867 | K21: 0.04576298041 | L21: 0.04522055242 | M21: 0.06359654357 | N21: 0.04779799588 | O21: 0 | P21: 0 | Q21: 0
B22: Grand Total | C22: 32258698 | D22: 34014578 | E22: 35058615 | F22: 36643983 | G22: 0 | H22: 0 | I22: 0 | J22: 0.05443121108 | K22: 0.03069381017 | L22: 0.04522049716 | M22: 0.04319794438 | N22: 0.04340267567 | O22: 0 | P22: 0 | Q22: 0
D67: =E65-D65 -> 0 | E67: 1106425926 | G67: 10433580.89
E68: =E65-E67 -> -1106425926 | G68: =G67-G65 -> 10433580.89

Sheet Pivot_T
B11: Econ4 | C11: (All)
B12: Econ2 | C12: (All)
B13: DOR | C13: (All)
B14: Econ3 | C14: (All)
B16: Value | C16: Column Labels
C17: 2024/25 | E17: 2025/26 | G17: 2026/27 | I17: 2027/28
B18: Row Labels | C18: Baseline | D18: Revised baseline | E18: Baseline | F18: Revised baseline | G18: Baseline | H18: Revised baseline | I18: Baseline | J18: Revised baseline
B19: Administration | C19: 607458 | D19: 607458 | E19: 608781 | F19: 608781 | G19: 636709 | H19: 636709 | I19: 665497 | J19: 665497
B20: Curriculum Policy, Support and Monitoring | C20: 4088896 | D20: 4088896 | E20: 4525364 | F20: 4525364 | G20: 4733877 | H20: 4733877 | I20: 4947944 | J20: 4947944
B21: Educational Enrichment Services | C21: 10129097 | D21: 10129097 | E21: 10660123 | F21: 10660123 | G21: 11147962 | H21: 11147962 | I21: 11652079 | J21: 11652079
B22: Planning, Information and Assessment | C22: 15994550 | D22: 15994550 | E22: 16706178 | F22: 16706178 | G22: 16956572 | H22: 16956572 | I22: 17723361 | J22: 17723361
B23: Teachers, Education Human Resources and Institutional Development | C23: 1438697 | D23: 1438697 | E23: 1514132 | F23: 1514132 | G23: 1583495 | H23: 1583495 | I23: 1655102 | J23: 1655102
B24: Grand Total | C24: 32258698 | D24: 32258698 | E24: 34014578 | F24: 34014578 | G24: 35058615 | H24: 35058615 | I24: 36643983 | J24: 36643983

Sheet Service delivery impact
B15: Note: Data in the table below is sourced from the individual SRT sheets. Any adjustments should be made on the SRT sheets. Ajustments made directly on this table will be over-written when the data is refreshed! …remember to refresh.
B17: Impact area | C17: Unit no | D17: Unit name | E17: Comment

Sheet Performance impact
B15: Note: Data in the table below is sourced from the individual SRT sheets. Any adjustments should be made on the SRT sheets. Ajustments made directly on this table will be over-written when the data is refreshed! …remember to refresh.
B17: Impact area | C17: Unit no | D17: Unit name | E17: Performance indicator | F17: 2024/25 Current performance | G17: 2024/25 Performance @ benchmark level | H17: 2024/25 Change | I17: 2025/26 Original target | J17: 2025/26 Revised target | K17: 2025/26 Change | L17: 2026/27 Original target | M17: 2026/27 Revised target | N17: 2026/27 Change | O17: 2027/28 Original target | P17: 2027/28 Revised target | Q17: 2027/28 Change | R17: Comment

Sheet Pivot Infra impact
B14: Impact area | C14: (All)
B16: Value | C16: Column Labels
C17: 2024/25 | E17: 2025/26 | G17: 2026/27 | I17: 2027/28
B18: Row Labels | C18: Current Number | D18: Change | E18: Original amount | F18: Change | G18: Original amount | H18: Change | I18: Original amount | J18: Change
B19: (blank) | C19: 0 | D19: 0 | E19: 0 | F19: 0 | G19: 0 | H19: 0 | I19: 0 | J19: 0
B20: Grand Total | C20: 0 | D20: 0 | E20: 0 | F20: 0 | G20: 0 | H20: 0 | I20: 0 | J20: 0

Sheet Pivot Personnel impact
B16: Value | C16: Column Labels
C17: 2024/25 | D17: 2025/26 | E17: 2026/27 | F17: 2027/28
B18: Row Labels | C18: Change in number | D18: Change in number | E18: Change in number | F18: Change in number
B19: Levels 01 - 06 | C19: 0 | D19: 0 | E19: 0 | F19: 0
B20: Levels 07 - 12 | C20: 0 | D20: 0 | E20: 0 | F20: 0
B21: Levels 13 - 16 | C21: 0 | D21: 0 | E21: 0 | F21: 0
B22: Other | C22: 0 | D22: 0 | E22: 0 | F22: 0
B23: Grand Total | C23: 0 | D23: 0 | E23: 0 | F23: 0

Sheet Pivot HRBP
B12: Salary level | C12: (All)
B13: Programme No | C13: (All)
B15: Number | C15: Columns
C16: 2023/24 | I16: 2024/25 | R16: 2025/26 | AA16: 2026/27 | AJ16: 2027/28
B17: Row Labels | C17: Unit Costs | D17: Once-off Payments per person | E17: Establishment: Number of funded posts as at 31 March 2024 | F17: Establishment: Number of funded posts additional to the establishment | G17: FTE Headcount | H17: Estimated Outcome | I17: Initial Headcount | J17: Unit Costs | K17: Once-off Payments per person | L17: Vacant funded posts to be filled | M17: Headcount reductions to be made | N17: Revised Headcount | O17: Cost of vacant posts to be filled | P17: Savings from headcount reductions | Q17: Revised Estimate | R17: Initial Headcount | S17: Unit Costs | T17: Once-off Payments per person | U17: Vacant funded posts to be filled | V17: Headcount reductions to be made | W17: Revised Headcount | X17: Cost of vacant posts to be filled | Y17: Savings from headcount reductions | Z17: MTEF Estimate | AA17: Initial Headcount | AB17: Unit Costs | AC17: Once-off Payments per person | AD17: Vacant funded posts to be filled | AE17: Headcount reductions to be made | AF17: Revised Headcount | AG17: Cost of vacant posts to be filled | AH17: Savings from headcount reductions | AI17: MTEF Estimate | AJ17: Initial Headcount | AK17: Unit Costs | AL17: Once-off Payments per person | AM17: Vacant funded posts to be filled | AN17: Headcount reductions to be made | AO17: Revised Headcount | AP17: Cost of vacant posts to be filled | AQ17: Savings from headcount reductions | AR17: MTEF Estimate
B18: Levels 01 - 06 | C18: 0 | D18: 0 | E18: 0 | F18: 0 | G18: 0 | H18: 0 | I18: 0 | J18: 0 | K18: 0 | L18: 0 | M18: 0 | N18: 0 | O18: 0 | P18: 0 | Q18: 0 | R18: 0 | S18: 0 | T18: 0 | U18: 0 | V18: 0 | W18: 0 | X18: 0 | Y18: 0 | Z18: 0 | AA18: 0 | AB18: 0 | AC18: 0 | AD18: 0 | AE18: 0 | AF18: 0 | AG18: 0 | AH18: 0 | AI18: 0 | AJ18: 0 | AK18: 0 | AL18: 0 | AM18: 0 | AN18: 0 | AO18: 0 | AP18: 0 | AQ18: 0 | AR18: 0
B19: Levels 07 - 12 | C19: 0 | D19: 0 | E19: 0 | F19: 0 | G19: 0 | H19: 0 | I19: 0 | J19: 0 | K19: 0 | L19: 0 | M19: 0 | N19: 0 | O19: 0 | P19: 0 | Q19: 0 | R19: 0 | S19: 0 | T19: 0 | U19: 0 | V19: 0 | W19: 0 | X19: 0 | Y19: 0 | Z19: 0 | AA19: 0 | AB19: 0 | AC19: 0 | AD19: 0 | AE19: 0 | AF19: 0 | AG19: 0 | AH19: 0 | AI19: 0 | AJ19: 0 | AK19: 0 | AL19: 0 | AM19: 0 | AN19: 0 | AO19: 0 | AP19: 0 | AQ19: 0 | AR19: 0
B20: Levels 13 - 16 | C20: 0 | D20: 0 | E20: 0 | F20: 0 | G20: 0 | H20: 0 | I20: 0 | J20: 0 | K20: 0 | L20: 0 | M20: 0 | N20: 0 | O20: 0 | P20: 0 | Q20: 0 | R20: 0 | S20: 0 | T20: 0 | U20: 0 | V20: 0 | W20: 0 | X20: 0 | Y20: 0 | Z20: 0 | AA20: 0 | AB20: 0 | AC20: 0 | AD20: 0 | AE20: 0 | AF20: 0 | AG20: 0 | AH20: 0 | AI20: 0 | AJ20: 0 | AK20: 0 | AL20: 0 | AM20: 0 | AN20: 0 | AO20: 0 | AP20: 0 | AQ20: 0 | AR20: 0
B21: Other | C21: 0 | D21: 0 | E21: 0 | F21: 0 | G21: 0 | H21: 0 | I21: 0 | J21: 0 | K21: 0 | L21: 0 | M21: 0 | N21: 0 | O21: 0 | P21: 0 | Q21: 0 | R21: 0 | S21: 0 | T21: 0 | U21: 0 | V21: 0 | W21: 0 | X21: 0 | Y21: 0 | Z21: 0 | AA21: 0 | AB21: 0 | AC21: 0 | AD21: 0 | AE21: 0 | AF21: 0 | AG21: 0 | AH21: 0 | AI21: 0 | AJ21: 0 | AK21: 0 | AL21: 0 | AM21: 0 | AN21: 0 | AO21: 0 | AP21: 0 | AQ21: 0 | AR21: 0
B22: Grand Total | C22: 0 | D22: 0 | E22: 0 | F22: 0 | G22: 0 | H22: 0 | I22: 0 | J22: 0 | K22: 0 | L22: 0 | M22: 0 | N22: 0 | O22: 0 | P22: 0 | Q22: 0 | R22: 0 | S22: 0 | T22: 0 | U22: 0 | V22: 0 | W22: 0 | X22: 0 | Y22: 0 | Z22: 0 | AA22: 0 | AB22: 0 | AC22: 0 | AD22: 0 | AE22: 0 | AF22: 0 | AG22: 0 | AH22: 0 | AI22: 0 | AJ22: 0 | AK22: 0 | AL22: 0 | AM22: 0 | AN22: 0 | AO22: 0 | AP22: 0 | AQ22: 0 | AR22: 0

Sheet Data
CN1: =SUM(CO1:CR1) -> 0 | CO1: =COUNTIF(Dataset[2024/25 Revised baseline],"<0") -> 0 | CP1: =COUNTIF(Dataset[2025/26 Revised baseline],"<0") -> 0 | CQ1: =COUNTIF(Dataset[2026/27 Revised baseline],"<0") -> 0 | CR1: =COUNTIF(Dataset[2027/28 Revised baseline],"<0") -> 0
AU2: Spending review topics…
AT3: 1 | AU3: Spending review topic 1 | CP3: =COUNTIF(Dataset[2025/26 Revised baseline],"<0") -> 0 | CQ3: =COUNTIF(Dataset[2026/27 Revised baseline],"<0") -> 0 | CR3: =COUNTIF(Dataset[2027/28 Revised baseline],"<0") -> 0
AT4: 2 | AU4: Spending review topic 2
AT5: 3 | AU5: Spending review topic 3
AT6: 4 | AU6: Spending review topic 4 | CP6: =MyYear5 -> 2025/26 | CQ6: =MyYear6 -> 2026/27 | CR6: =MyYear7 -> 2027/28
CN8: Baseline ceiling: | CP8: =INDEX(DeptCeiling,MATCH(MyVoteNo,VoteNoList,0),1) -> 34014578 | CQ8: =INDEX(DeptCeiling,MATCH(MyVoteNo,VoteNoList,0),2) -> 35058615 | CR8: =INDEX(DeptCeiling,MATCH(MyVoteNo,VoteNoList,0),3) -> 36643983
CN9: (Over)/Under | CP9: =CP8-SUM(Dataset[2025/26 Revised baseline]) -> 0 | CQ9: =CQ8-SUM(Dataset[2026/27 Revised baseline]) -> 0 | CR9: =CR8-SUM(Dataset[2027/28 Revised baseline]) -> 0
CN11: CoE ceiling: | CP11: =INDEX(CoECeiling,MATCH(MyVoteNo,VoteNoList,0),1) -> 663644 | CQ11: =INDEX(CoECeiling,MATCH(MyVoteNo,VoteNoList,0),2) -> 693664 | CR11: =INDEX(CoECeiling,MATCH(MyVoteNo,VoteNoList,0),3) -> 725032
CN12: (Over)/Under | CP12: =CP11-SUMIF(Dataset[Econ3],"Compensation of employees",Dataset[2025/26 Revised baseline]) -> 0 | CQ12: =CQ11-SUMIF(Dataset[Econ3],"Compensation of employees",Dataset[2026/27 Revised baseline]) -> 0 | CR12: =CR11-SUMIF(Dataset[Econ3],"Compensation of employees",Dataset[2027/28 Revised baseline]) -> 0
AI15: =AI18 -> 2020/21 | AJ15: 2021/22 | AK15: 2022/23 | AL15: 2023/24 Main appropriation | AM15: 2023/24 Adjusted appropriation | AN15: 2023/24 Revised estimate | AO15: 2023/24 Preliminary outcome | AP15: 2024/25 Baseline | AQ15: 2025/26 Baseline | AR15: 2026/27 Baseline | AS15: 2027/28 Baseline | AT15: 2025/26 From - Spending review Topic 1 | AU15: 2026/27 From - Spending review Topic 1 | AV15: 2027/28 From - Spending review Topic 1 | AW15: 2025/26 To - Spending review Topic 1 | AX15: 2026/27 To - Spending review Topic 1 | AY15: 2027/28 To - Spending review Topic 1 | AZ15: 2025/26 From - Spending review Topic 2 | BA15: 2026/27 From - Spending review Topic 2 | BB15: 2027/28 From - Spending review Topic 2 | BC15: 2025/26 To - Spending review Topic 2 | BD15: 2026/27 To - Spending review Topic 2 | BE15: 2027/28 To - Spending review Topic 2 | BF15: 2025/26 From - Spending review Topic 3 | BG15: 2026/27 From - Spending review Topic 3 | BH15: 2027/28 From - Spending review Topic 3 | BI15: 2025/26 To - Spending review Topic 3 | BJ15: 2026/27 To - Spending review Topic 3 | BK15: 2027/28 To - Spending review Topic 3 | BL15: 2025/26 From - Spending review Topic 4 | BM15: 2026/27 From - Spending review Topic 4 | BN15: 2027/28 From - Spending review Topic 4 | BO15: =BO18 -> 2025/26 To - Spending review Topic 4 | BP15: 2026/27 To - Spending review Topic 4 | BQ15: 2027/28 To - Spending review Topic 4 | BR15: 2025/26 From - Other reallocations | BS15: 2026/27 From - Other reallocations | BT15: 2027/28 From - Other reallocations | BU15: 2025/26 To - Other reallocations | BV15: 2026/27 To - Other reallocations | BW15: 2027/28 To - Other reallocations | BX15: 2024/25 Reduction | BY15: 2025/26 Reduction | BZ15: 2026/27 Reduction | CA15: 2027/28 Reduction | CB15: 2025/26 From - Total | CC15: 2026/27 From - Total | CD15: 2027/28 From - Total | CE15: 2025/26 To - Total | CF15: 2026/27 To - Total | CG15: 2027/28 To - Total | CH15: 2025/26 Total decrease | CI15: 2026/27 Total decrease | CJ15: 2027/28 Total decrease | CK15: 2024/25 Total change | CL15: 2025/26 Total change | CM15: 2026/27 Total change | CN15: 2027/28 Total change | CO15: 2024/25 Revised baseline | CP15: 2025/26 Revised baseline | CQ15: 2026/27 Revised baseline | CR15: 2027/28 Revised baseline
AH16: Subtotal: | AI16: =SUBTOTAL(9,Dataset[2020/21]) -> 24323183 | AJ16: =SUBTOTAL(9,Dataset[2021/22]) -> 28414935 | AK16: =SUBTOTAL(9,Dataset[2022/23]) -> 29426659 | AL16: =SUBTOTAL(9,Dataset[2023/24 Main appropriation]) -> 31782713 | AM16: =SUBTOTAL(9,Dataset[2023/24 Adjusted appropriation]) -> 30028595 | AN16: =SUBTOTAL(9,Dataset[2023/24 Revised estimate]) -> 30028595 | AO16: =SUBTOTAL(9,Dataset[2023/24 Preliminary outcome]) -> 4691309 | AP16: =SUBTOTAL(9,Dataset[2024/25 Baseline]) -> 32258698 | AQ16: =SUBTOTAL(9,Dataset[2025/26 Baseline]) -> 34014578 | AR16: =SUBTOTAL(9,Dataset[2026/27 Baseline]) -> 35058615 | AS16: =SUBTOTAL(9,Dataset[2027/28 Baseline]) -> 36643983 | AT16: =SUBTOTAL(9,Dataset[2025/26 From - Spending review Topic 1]) -> 0 | AU16: =SUBTOTAL(9,Dataset[2026/27 From - Spending review Topic 1]) -> 0 | AV16: =SUBTOTAL(9,Dataset[2027/28 From - Spending review Topic 1]) -> 0 | AW16: =SUBTOTAL(9,Dataset[2025/26 To - Spending review Topic 1]) -> 0 | AX16: =SUBTOTAL(9,Dataset[2026/27 To - Spending review Topic 1]) -> 0 | AY16: =SUBTOTAL(9,Dataset[2027/28 To - Spending review Topic 1]) -> 0 | AZ16: =SUBTOTAL(9,Dataset[2025/26 From - Spending review Topic 2]) -> 0 | BA16: =SUBTOTAL(9,Dataset[2026/27 From - Spending review Topic 2]) -> 0 | BB16: =SUBTOTAL(9,Dataset[2027/28 From - Spending review Topic 2]) -> 0 | BC16: =SUBTOTAL(9,Dataset[2025/26 To - Spending review Topic 2]) -> 0 | BD16: =SUBTOTAL(9,Dataset[2026/27 To - Spending review Topic 2]) -> 0 | BE16: =SUBTOTAL(9,Dataset[2027/28 To - Spending review Topic 2]) -> 0 | BF16: =SUBTOTAL(9,Dataset[2025/26 From - Spending review Topic 3]) -> 0 | BG16: =SUBTOTAL(9,Dataset[2026/27 From - Spending review Topic 3]) -> 0 | BH16: =SUBTOTAL(9,Dataset[2027/28 From - Spending review Topic 3]) -> 0 | BI16: =SUBTOTAL(9,Dataset[2025/26 To - Spending review Topic 3]) -> 0 | BJ16: =SUBTOTAL(9,Dataset[2026/27 To - Spending review Topic 3]) -> 0 | BK16: =SUBTOTAL(9,Dataset[2027/28 To - Spending review Topic 3]) -> 0 | BL16: =SUBTOTAL(9,Dataset[2025/26 From - Spending review Topic 4]) -> 0 | BM16: =SUBTOTAL(9,Dataset[2026/27 From - Spending review Topic 4]) -> 0 | BN16: =SUBTOTAL(9,Dataset[2027/28 From - Spending review Topic 4]) -> 0 | BO16: =SUBTOTAL(9,Dataset[2025/26 To - Spending review Topic 4]) -> 0 | BP16: =SUBTOTAL(9,Dataset[2026/27 To - Spending review Topic 4]) -> 0 | BQ16: =SUBTOTAL(9,Dataset[2027/28 To - Spending review Topic 4]) -> 0 | BR16: =SUBTOTAL(9,Dataset[2025/26 From - Other reallocations]) -> 0 | BS16: =SUBTOTAL(9,Dataset[2026/27 From - Other reallocations]) -> 0 | BT16: =SUBTOTAL(9,Dataset[2027/28 From - Other reallocations]) -> 0 | BU16: =SUBTOTAL(9,Dataset[2025/26 To - Other reallocations]) -> 0 | BV16: =SUBTOTAL(9,Dataset[2026/27 To - Other reallocations]) -> 0 | BW16: =SUBTOTAL(9,Dataset[2027/28 To - Other reallocations]) -> 0 | BX16: =SUBTOTAL(9,Dataset[2024/25 Reduction]) -> 0 | BY16: =SUBTOTAL(9,Dataset[2025/26 Reduction]) -> 0 | BZ16: =SUBTOTAL(9,Dataset[2026/27 Reduction]) -> 0 | CA16: =SUBTOTAL(9,Dataset[2027/28 Reduction]) -> 0 | CB16: =SUBTOTAL(9,Dataset[2025/26 From - Total]) -> 0 | CC16: =SUBTOTAL(9,Dataset[2026/27 From - Total]) -> 0 | CD16: =SUBTOTAL(9,Dataset[2027/28 From - Total]) -> 0 | CE16: =SUBTOTAL(9,Dataset[2025/26 To - Total]) -> 0 | CF16: =SUBTOTAL(9,Dataset[2026/27 To - Total]) -> 0 | CG16: =SUBTOTAL(9,Dataset[2027/28 To - Total]) -> 0 | CH16: =SUBTOTAL(9,Dataset[2025/26 Total decrease]) -> 0 | CI16: =SUBTOTAL(9,Dataset[2026/27 Total decrease]) -> 0 | CJ16: =SUBTOTAL(9,Dataset[2027/28 Total decrease]) -> 0 | CK16: =SUBTOTAL(9,Dataset[2024/25 Total change]) -> 0 | CL16: =SUBTOTAL(9,Dataset[2025/26 Total change]) -> 0 | CM16: =SUBTOTAL(9,Dataset[2026/27 Total change]) -> 0 | CN16: =SUBTOTAL(9,Dataset[2027/28 Total change]) -> 0 | CO16: =SUBTOTAL(9,Dataset[2024/25 Revised baseline]) -> 32258698 | CP16: =SUBTOTAL(9,Dataset[2025/26 Revised baseline]) -> 34014578 | CQ16: =SUBTOTAL(9,Dataset[2026/27 Revised baseline]) -> 35058615 | CR16: =SUBTOTAL(9,Dataset[2027/28 Revised baseline]) -> 36643983 | CS16: =SUBTOTAL(9,Dataset[2020/21 PEI Budget]) -> 0 | CT16: =SUBTOTAL(9,Dataset[2020/21 PEI Actual]) -> 0 | CU16: =SUBTOTAL(9,Dataset[2021/22 PEI Budget]) -> 0 | CV16: =SUBTOTAL(9,Dataset[2021/22 PEI Actual]) -> 0 | CW16: =SUBTOTAL(9,Dataset[2022/23 PEI Budget]) -> 0 | CX16: =SUBTOTAL(9,Dataset[2022/23 PEI Actual]) -> 0 | CY16: =SUBTOTAL(9,Dataset[2023/24 PEI Main appropriation]) -> 0 | CZ16: =SUBTOTAL(9,Dataset[2023/24 PEI Adjusted appropriation]) -> 0 | DA16: =SUBTOTAL(9,Dataset[2023/24 PEI Preliminary outcome]) -> 0 | DB16: =SUBTOTAL(9,Dataset[2024/25 PEI Baseline]) -> 0 | DC16: =SUBTOTAL(9,Dataset[2025/26 PEI Baseline]) -> 0 | DD16: =SUBTOTAL(9,Dataset[2026/27 PEI Baseline]) -> 0 | DE16: =SUBTOTAL(9,Dataset[2027/28 PEI Baseline]) -> 0
AT17: ="…"&SRTopic1 -> …Spending review topic 1 | AZ17: ="…"&SRTopic2 -> …Spending review topic 2 | BF17: ="…"&SRTopic3 -> …Spending review topic 3 | BL17: ="…"&SRTopic4 -> …Spending review topic 4 | BR17: …Reallocations other than spending reviews | BX17: …Reductions | CN17: …red shaded cells below indicate negative budgets. | CO17: =IF(CO1<>0,"Negative budgets","") ->  | CS17: Presidential Employment Initiative (PEI)
A18: Combo_DoR | B18: Combo_Econ | C18: Budget Year | D18: Process | E18: Vote No. - N | F18: Programme No. - N | G18: Subprogramme No. - N | H18: Index - N | I18: Index - N2 | J18: Vote No. | K18: Programme No. | L18: Subprogramme No. | M18: Index | N18: Index2 | O18: UID | P18: Econ1_IDn | Q18: Econ2_IDn | R18: Econ3_IDn | S18: Econ4_IDn | T18: Econ5_IDn | U18: Econ_UID | V18: Province | W18: Department | X18: Programme | Y18: Subprogramme | Z18: Transfers and subsidies / Payments for financial assets detail | AA18: Econ1 | AB18: Econ2 | AC18: Econ3 | AD18: Econ4 | AE18: Econ5 | AF18: Function group | AG18: Technical group | AH18: DOR | AI18: 2020/21 | AJ18: 2021/22 | AK18: 2022/23 | AL18: 2023/24 Main appropriation | AM18: 2023/24 Adjusted appropriation | AN18: 2023/24 Revised estimate | AO18: 2023/24 Preliminary outcome | AP18: 2024/25 Baseline | AQ18: 2025/26 Baseline | AR18: 2026/27 Baseline | AS18: 2027/28 Baseline | AT18: 2025/26 From - Spending review Topic 1 | AU18: 2026/27 From - Spending review Topic 1 | AV18: 2027/28 From - Spending review Topic 1 | AW18: 2025/26 To - Spending review Topic 1 | AX18: 2026/27 To - Spending review Topic 1 | AY18: 2027/28 To - Spending review Topic 1 | AZ18: 2025/26 From - Spending review Topic 2 | BA18: 2026/27 From - Spending review Topic 2 | BB18: 2027/28 From - Spending review Topic 2 | BC18: 2025/26 To - Spending review Topic 2 | BD18: 2026/27 To - Spending review Topic 2 | BE18: 2027/28 To - Spending review Topic 2 | BF18: 2025/26 From - Spending review Topic 3 | BG18: 2026/27 From - Spending review Topic 3 | BH18: 2027/28 From - Spending review Topic 3 | BI18: 2025/26 To - Spending review Topic 3 | BJ18: 2026/27 To - Spending review Topic 3 | BK18: 2027/28 To - Spending review Topic 3 | BL18: 2025/26 From - Spending review Topic 4 | BM18: 2026/27 From - Spending review Topic 4 | BN18: 2027/28 From - Spending review Topic 4 | BO18: 2025/26 To - Spending review Topic 4 | BP18: 2026/27 To - Spending review Topic 4 | BQ18: 2027/28 To - Spending review Topic 4 | BR18: 2025/26 From - Other reallocations | BS18: 2026/27 From - Other reallocations | BT18: 2027/28 From - Other reallocations | BU18: 2025/26 To - Other reallocations | BV18: 2026/27 To - Other reallocations | BW18: 2027/28 To - Other reallocations | BX18: 2024/25 Reduction | BY18: 2025/26 Reduction | BZ18: 2026/27 Reduction | CA18: 2027/28 Reduction | CB18: 2025/26 From - Total | CC18: 2026/27 From - Total | CD18: 2027/28 From - Total | CE18: 2025/26 To - Total | CF18: 2026/27 To - Total | CG18: 2027/28 To - Total | CH18: 2025/26 Total decrease | CI18: 2026/27 Total decrease | CJ18: 2027/28 Total decrease | CK18: 2024/25 Total change | CL18: 2025/26 Total change | CM18: 2026/27 Total change | CN18: 2027/28 Total change | CO18: 2024/25 Revised baseline | CP18: 2025/26 Revised baseline | CQ18: 2026/27 Revised baseline | CR18: 2027/28 Revised baseline | CS18: 2020/21 PEI Budget | CT18: 2020/21 PEI Actual | CU18: 2021/22 PEI Budget | CV18: 2021/22 PEI Actual | CW18: 2022/23 PEI Budget | CX18: 2022/23 PEI Actual | CY18: 2023/24 PEI Main appropriation | CZ18: 2023/24 PEI Adjusted appropriation | DA18: 2023/24 PEI Preliminary outcome | DB18: 2024/25 PEI Baseline | DC18: 2025/26 PEI Baseline | DD18: 2026/27 PEI Baseline | DE18: 2027/28 PEI Baseline
A19: NAT|Non-transfer item | B19: 16|Salaries and wages | C19: 2025_26 | D19: MTEC2025 | E19: 16 | F19: 1 | G19: 1 | H19: 16664 | I19: 1 | J19: 16 | K19: 01 | L19: 01 | M19: 016664 | N19: 000001 | O19: 16|01|01|000001 | P19: 01 | Q19: 01 | R19: 01 | S19: 01 | T19: 01 | U19: 01|01|01|01|01 | V19: National | W19: Basic Education | X19: Administration | Y19: Ministry | Z19: Non-transfer item | AA19: Current | AB19: Current payments | AC19: Compensation of employees | AD19: Salaries and wages | AE19: Salaries and wages | AF19: Learning and culture | AG19: Basic education | AH19: NAT | AI19: 19284 | AJ19: 21436 | AK19: 21990 | AL19: 22588 | AM19: 22588 | AN19: 22588 | AO19: 22169 | AP19: 22346 | AQ19: 23025 | AR19: 24126 | AS19: 25217 | CB19: =Dataset[[#This Row],[2025/26 From - Spending review Topic 1]]+Dataset[[#This Row],[2025/26 From - Spending review Topic 2]]+Dataset[[#This Row],[2025/26 From - Spending review Topic 3]]+Dataset[[#This Row],[2025/26 From - Spending review Topic 4]]+Dataset[[#This Row],[2025/26 From - Other reallocations]] -> 0 | CC19: =Dataset[[#This Row],[2026/27 From - Spending review Topic 1]]+Dataset[[#This Row],[2026/27 From - Spending review Topic 2]]+Dataset[[#This Row],[2026/27 From - Spending review Topic 3]]+Dataset[[#This Row],[2026/27 From - Spending review Topic 4]]+Dataset[[#This Row],[2026/27 From - Other reallocations]] -> 0 | CD19: =Dataset[[#This Row],[2027/28 From - Spending review Topic 1]]+Dataset[[#This Row],[2027/28 From - Spending review Topic 2]]+Dataset[[#This Row],[2027/28 From - Spending review Topic 3]]+Dataset[[#This Row],[2027/28 From - Spending review Topic 4]]+Dataset[[#This Row],[2027/28 From - Other reallocations]] -> 0 | CE19: =Dataset[[#This Row],[2025/26 To - Spending review Topic 1]]+Dataset[[#This Row],[2025/26 To - Spending review Topic 2]]+Dataset[[#This Row],[2025/26 To - Spending review Topic 3]]+Dataset[[#This Row],[2025/26 To - Spending review Topic 4]]+Dataset[[#This Row],[2025/26 To - Other reallocations]] -> 0 | CF19: =Dataset[[#This Row],[2026/27 To - Spending review Topic 1]]+Dataset[[#This Row],[2026/27 To - Spending review Topic 2]]+Dataset[[#This Row],[2026/27 To - Spending review Topic 3]]+Dataset[[#This Row],[2026/27 To - Spending review Topic 4]]+Dataset[[#This Row],[2026/27 To - Other reallocations]] -> 0 | CG19: =Dataset[[#This Row],[2027/28 To - Spending review Topic 1]]+Dataset[[#This Row],[2027/28 To - Spending review Topic 2]]+Dataset[[#This Row],[2027/28 To - Spending review Topic 3]]+Dataset[[#This Row],[2027/28 To - Spending review Topic 4]]+Dataset[[#This Row],[2027/28 To - Other reallocations]] -> 0 | CH19: =Dataset[[#This Row],[2025/26 Reduction]]+Dataset[[#This Row],[2025/26 From - Total]] -> 0 | CI19: =Dataset[[#This Row],[2026/27 Reduction]]+Dataset[[#This Row],[2026/27 From - Total]] -> 0 | CJ19: =Dataset[[#This Row],[2027/28 Reduction]]+Dataset[[#This Row],[2027/28 From - Total]] -> 0 | CK19: =Dataset[[#This Row],[2024/25 Reduction]] -> 0 | CL19: =SUM(Dataset[[#This Row],[2025/26 Reduction]],Dataset[[#This Row],[2025/26 From - Total]],Dataset[[#This Row],[2025/26 To - Total]]) -> 0 | CM19: =SUM(Dataset[[#This Row],[2026/27 Reduction]],Dataset[[#This Row],[2026/27 From - Total]],Dataset[[#This Row],[2026/27 To - Total]]) -> 0 | CN19: =SUM(Dataset[[#This Row],[2027/28 Reduction]],Dataset[[#This Row],[2027/28 From - Total]],Dataset[[#This Row],[2027/28 To - Total]]) -> 0 | CO19: =Dataset[[#This Row],[2024/25 Baseline]]+Dataset[[#This Row],[2024/25 Total change]] -> 22346 | CP19: =Dataset[[#This Row],[2025/26 Baseline]]+Dataset[[#This Row],[2025/26 Total change]] -> 23025 | CQ19: =Dataset[[#This Row],[2026/27 Baseline]]+Dataset[[#This Row],[2026/27 Total change]] -> 24126 | CR19: =Dataset[[#This Row],[2027/28 Baseline]]+Dataset[[#This Row],[2027/28 Total change]] -> 25217
A20: NAT|Non-transfer item | B20: 16|Social contributions | C20: 2025_26 | D20: MTEC2025 | E20: 16 | F20: 1 | G20: 1 | H20: 16665 | I20: 2 | J20: 16 | K20: 01 | L20: 01 | M20: 016665 | N20: 000002 | O20: 16|01|01|000002 | P20: 01 | Q20: 01 | R20: 01 | S20: 02 | T20: 02 | U20: 01|01|01|02|02 | V20: National | W20: Basic Education | X20: Administration | Y20: Ministry | Z20: Non-transfer item | AA20: Current | AB20: Current payments | AC20: Compensation of employees | AD20: Social contributions | AE20: Social contributions | AF20: Learning and culture | AG20: Basic education | AH20: NAT | AI20: 1747 | AJ20: 1981 | AK20: 1970 | AL20: 2290 | AM20: 2290 | AN20: 2290 | AO20: 1825 | AP20: 2821 | AQ20: 3325 | AR20: 3436 | AS20: 3591 | CB20: =Dataset[[#This Row],[2025/26 From - Spending review Topic 1]]+Dataset[[#This Row],[2025/26 From - Spending review Topic 2]]+Dataset[[#This Row],[2025/26 From - Spending review Topic 3]]+Dataset[[#This Row],[2025/26 From - Spending review Topic 4]]+Dataset[[#This Row],[2025/26 From - Other reallocations]] -> 0 | CC20: =Dataset[[#This Row],[2026/27 From - Spending review Topic 1]]+Dataset[[#This Row],[2026/27 From - Spending review Topic 2]]+Dataset[[#This Row],[2026/27 From - Spending review Topic 3]]+Dataset[[#This Row],[2026/27 From - Spending review Topic 4]]+Dataset[[#This Row],[2026/27 From - Other reallocations]] -> 0 | CD20: =Dataset[[#This Row],[2027/28 From - Spending review Topic 1]]+Dataset[[#This Row],[2027/28 From - Spending review Topic 2]]+Dataset[[#This Row],[2027/28 From - Spending review Topic 3]]+Dataset[[#This Row],[2027/28 From - Spending review Topic 4]]+Dataset[[#This Row],[2027/28 From - Other reallocations]] -> 0 | CE20: =Dataset[[#This Row],[2025/26 To - Spending review Topic 1]]+Dataset[[#This Row],[2025/26 To - Spending review Topic 2]]+Dataset[[#This Row],[2025/26 To - Spending review Topic 3]]+Dataset[[#This Row],[2025/26 To - Spending review Topic 4]]+Dataset[[#This Row],[2025/26 To - Other reallocations]] -> 0 | CF20: =Dataset[[#This Row],[2026/27 To - Spending review Topic 1]]+Dataset[[#This Row],[2026/27 To - Spending review Topic 2]]+Dataset[[#This Row],[2026/27 To - Spending review Topic 3]]+Dataset[[#This Row],[2026/27 To - Spending review Topic 4]]+Dataset[[#This Row],[2026/27 To - Other reallocations]] -> 0 | CG20: =Dataset[[#This Row],[2027/28 To - Spending review Topic 1]]+Dataset[[#This Row],[2027/28 To - Spending review Topic 2]]+Dataset[[#This Row],[2027/28 To - Spending review Topic 3]]+Dataset[[#This Row],[2027/28 To - Spending review Topic 4]]+Dataset[[#This Row],[2027/28 To - Other reallocations]] -> 0 | CH20: =Dataset[[#This Row],[2025/26 Reduction]]+Dataset[[#This Row],[2025/26 From - Total]] -> 0 | CI20: =Dataset[[#This Row],[2026/27 Reduction]]+Dataset[[#This Row],[2026/27 From - Total]] -> 0 | CJ20: =Dataset[[#This Row],[2027/28 Reduction]]+Dataset[[#This Row],[2027/28 From - Total]] -> 0 | CK20: =Dataset[[#This Row],[2024/25 Reduction]] -> 0 | CL20: =SUM(Dataset[[#This Row],[2025/26 Reduction]],Dataset[[#This Row],[2025/26 From - Total]],Dataset[[#This Row],[2025/26 To - Total]]) -> 0 | CM20: =SUM(Dataset[[#This Row],[2026/27 Reduction]],Dataset[[#This Row],[2026/27 From - Total]],Dataset[[#This Row],[2026/27 To - Total]]) -> 0 | CN20: =SUM(Dataset[[#This Row],[2027/28 Reduction]],Dataset[[#This Row],[2027/28 From - Total]],Dataset[[#This Row],[2027/28 To - Total]]) -> 0 | CO20: =Dataset[[#This Row],[2024/25 Baseline]]+Dataset[[#This Row],[2024/25 Total change]] -> 2821 | CP20: =Dataset[[#This Row],[2025/26 Baseline]]+Dataset[[#This Row],[2025/26 Total change]] -> 3325 | CQ20: =Dataset[[#This Row],[2026/27 Baseline]]+Dataset[[#This Row],[2026/27 Total change]] -> 3436 | CR20: =Dataset[[#This Row],[2027/28 Baseline]]+Dataset[[#This Row],[2027/28 Total change]] -> 3591
A21: NAT|Non-transfer item | B21: 16|Administrative fees | C21: 2025_26 | D21: MTEC2025 | E21: 16 | F21: 1 | G21: 1 | H21: 16666 | I21: 3 | J21: 16 | K21: 01 | L21: 01 | M21: 016666 | N21: 000003 | O21: 16|01|01|000003 | P21: 01 | Q21: 01 | R21: 02 | S21: 03 | T21: 03 | U21: 01|01|02|03|03 | V21: National | W21: Basic Education | X21: Administration | Y21: Ministry | Z21: Non-transfer item | AA21: Current | AB21: Current payments | AC21: Goods and services | AD21: Administrative fees | AE21: Administrative fees | AF21: Learning and culture | AG21: Basic education | AH21: NAT | AI21: 90 | AJ21: 176 | AK21: 361 | AL21: 181 | AM21: 326 | AN21: 326 | AO21: 333 | AP21: 185 | AQ21: 192 | AR21: 199 | AS21: 208 | CB21: =Dataset[[#This Row],[2025/26 From - Spending review Topic 1]]+Dataset[[#This Row],[2025/26 From - Spending review Topic 2]]+Dataset[[#This Row],[2025/26 From - Spending review Topic 3]]+Dataset[[#This Row],[2025/26 From - Spending review Topic 4]]+Dataset[[#This Row],[2025/26 From - Other reallocations]] -> 0 | CC21: =Dataset[[#This Row],[2026/27 From - Spending review Topic 1]]+Dataset[[#This Row],[2026/27 From - Spending review Topic 2]]+Dataset[[#This Row],[2026/27 From - Spending review Topic 3]]+Dataset[[#This Row],[2026/27 From - Spending review Topic 4]]+Dataset[[#This Row],[2026/27 From - Other reallocations]] -> 0 | CD21: =Dataset[[#This Row],[2027/28 From - Spending review Topic 1]]+Dataset[[#This Row],[2027/28 From - Spending review Topic 2]]+Dataset[[#This Row],[2027/28 From - Spending review Topic 3]]+Dataset[[#This Row],[2027/28 From - Spending review Topic 4]]+Dataset[[#This Row],[2027/28 From - Other reallocations]] -> 0 | CE21: =Dataset[[#This Row],[2025/26 To - Spending review Topic 1]]+Dataset[[#This Row],[2025/26 To - Spending review Topic 2]]+Dataset[[#This Row],[2025/26 To - Spending review Topic 3]]+Dataset[[#This Row],[2025/26 To - Spending review Topic 4]]+Dataset[[#This Row],[2025/26 To - Other reallocations]] -> 0 | CF21: =Dataset[[#This Row],[2026/27 To - Spending review Topic 1]]+Dataset[[#This Row],[2026/27 To - Spending review Topic 2]]+Dataset[[#This Row],[2026/27 To - Spending review Topic 3]]+Dataset[[#This Row],[2026/27 To - Spending review Topic 4]]+Dataset[[#This Row],[2026/27 To - Other reallocations]] -> 0 | CG21: =Dataset[[#This Row],[2027/28 To - Spending review Topic 1]]+Dataset[[#This Row],[2027/28 To - Spending review Topic 2]]+Dataset[[#This Row],[2027/28 To - Spending review Topic 3]]+Dataset[[#This Row],[2027/28 To - Spending review Topic 4]]+Dataset[[#This Row],[2027/28 To - Other reallocations]] -> 0 | CH21: =Dataset[[#This Row],[2025/26 Reduction]]+Dataset[[#This Row],[2025/26 From - Total]] -> 0 | CI21: =Dataset[[#This Row],[2026/27 Reduction]]+Dataset[[#This Row],[2026/27 From - Total]] -> 0 | CJ21: =Dataset[[#This Row],[2027/28 Reduction]]+Dataset[[#This Row],[2027/28 From - Total]] -> 0 | CK21: =Dataset[[#This Row],[2024/25 Reduction]] -> 0 | CL21: =SUM(Dataset[[#This Row],[2025/26 Reduction]],Dataset[[#This Row],[2025/26 From - Total]],Dataset[[#This Row],[2025/26 To - Total]]) -> 0 | CM21: =SUM(Dataset[[#This Row],[2026/27 Reduction]],Dataset[[#This Row],[2026/27 From - Total]],Dataset[[#This Row],[2026/27 To - Total]]) -> 0 | CN21: =SUM(Dataset[[#This Row],[2027/28 Reduction]],Dataset[[#This Row],[2027/28 From - Total]],Dataset[[#This Row],[2027/28 To - Total]]) -> 0 | CO21: =Dataset[[#This Row],[2024/25 Baseline]]+Dataset[[#This Row],[2024/25 Total change]] -> 185 | CP21: =Dataset[[#This Row],[2025/26 Baseline]]+Dataset[[#This Row],[2025/26 Total change]] -> 192 | CQ21: =Dataset[[#This Row],[2026/27 Baseline]]+Dataset[[#This Row],[2026/27 Total change]] -> 199 | CR21: =Dataset[[#This Row],[2027/28 Baseline]]+Dataset[[#This Row],[2027/28 Total change]] -> 208
A22: NAT|Non-transfer item | B22: 16|Advertising | C22: 2025_26 | D22: MTEC2025 | E22: 16 | F22: 1 | G22: 1 | H22: 16667 | I22: 4 | J22: 16 | K22: 01 | L22: 01 | M22: 016667 | N22: 000004 | O22: 16|01|01|000004 | P22: 01 | Q22: 01 | R22: 02 | S22: 04 | T22: 04 | U22: 01|01|02|04|04 | V22: National | W22: Basic Education | X22: Administration | Y22: Ministry | Z22: Non-transfer item | AA22: Current | AB22: Current payments | AC22: Goods and services | AD22: Advertising | AE22: Advertising | AF22: Learning and culture | AG22: Basic education | AH22: NAT | AI22: 0 | AJ22: 0 | AK22: 1 | AL22: 0 | AM22: 0 | AN22: 0 | AP22: 0 | AQ22: 0 | AR22: 0 | AS22: 0 | CB22: =Dataset[[#This Row],[2025/26 From - Spending review Topic 1]]+Dataset[[#This Row],[2025/26 From - Spending review Topic 2]]+Dataset[[#This Row],[2025/26 From - Spending review Topic 3]]+Dataset[[#This Row],[2025/26 From - Spending review Topic 4]]+Dataset[[#This Row],[2025/26 From - Other reallocations]] -> 0 | CC22: =Dataset[[#This Row],[2026/27 From - Spending review Topic 1]]+Dataset[[#This Row],[2026/27 From - Spending review Topic 2]]+Dataset[[#This Row],[2026/27 From - Spending review Topic 3]]+Dataset[[#This Row],[2026/27 From - Spending review Topic 4]]+Dataset[[#This Row],[2026/27 From - Other reallocations]] -> 0 | CD22: =Dataset[[#This Row],[2027/28 From - Spending review Topic 1]]+Dataset[[#This Row],[2027/28 From - Spending review Topic 2]]+Dataset[[#This Row],[2027/28 From - Spending review Topic 3]]+Dataset[[#This Row],[2027/28 From - Spending review Topic 4]]+Dataset[[#This Row],[2027/28 From - Other reallocations]] -> 0 | CE22: =Dataset[[#This Row],[2025/26 To - Spending review Topic 1]]+Dataset[[#This Row],[2025/26 To - Spending review Topic 2]]+Dataset[[#This Row],[2025/26 To - Spending review Topic 3]]+Dataset[[#This Row],[2025/26 To - Spending review Topic 4]]+Dataset[[#This Row],[2025/26 To - Other reallocations]] -> 0 | CF22: =Dataset[[#This Row],[2026/27 To - Spending review Topic 1]]+Dataset[[#This Row],[2026/27 To - Spending review Topic 2]]+Dataset[[#This Row],[2026/27 To - Spending review Topic 3]]+Dataset[[#This Row],[2026/27 To - Spending review Topic 4]]+Dataset[[#This Row],[2026/27 To - Other reallocations]] -> 0 | CG22: =Dataset[[#This Row],[2027/28 To - Spending review Topic 1]]+Dataset[[#This Row],[2027/28 To - Spending review Topic 2]]+Dataset[[#This Row],[2027/28 To - Spending review Topic 3]]+Dataset[[#This Row],[2027/28 To - Spending review Topic 4]]+Dataset[[#This Row],[2027/28 To - Other reallocations]] -> 0 | CH22: =Dataset[[#This Row],[2025/26 Reduction]]+Dataset[[#This Row],[2025/26 From - Total]] -> 0 | CI22: =Dataset[[#This Row],[2026/27 Reduction]]+Dataset[[#This Row],[2026/27 From - Total]] -> 0 | CJ22: =Dataset[[#This Row],[2027/28 Reduction]]+Dataset[[#This Row],[2027/28 From - Total]] -> 0 | CK22: =Dataset[[#This Row],[2024/25 Reduction]] -> 0 | CL22: =SUM(Dataset[[#This Row],[2025/26 Reduction]],Dataset[[#This Row],[2025/26 From - Total]],Dataset[[#This Row],[2025/26 To - Total]]) -> 0 | CM22: =SUM(Dataset[[#This Row],[2026/27 Reduction]],Dataset[[#This Row],[2026/27 From - Total]],Dataset[[#This Row],[2026/27 To - Total]]) -> 0 | CN22: =SUM(Dataset[[#This Row],[2027/28 Reduction]],Dataset[[#This Row],[2027/28 From - Total]],Dataset[[#This Row],[2027/28 To - Total]]) -> 0 | CO22: =Dataset[[#This Row],[2024/25 Baseline]]+Dataset[[#This Row],[2024/25 Total change]] -> 0 | CP22: =Dataset[[#This Row],[2025/26 Baseline]]+Dataset[[#This Row],[2025/26 Total change]] -> 0 | CQ22: =Dataset[[#This Row],[2026/27 Baseline]]+Dataset[[#This Row],[2026/27 Total change]] -> 0 | CR22: =Dataset[[#This Row],[2027/28 Baseline]]+Dataset[[#This Row],[2027/28 Total change]] -> 0
A23: NAT|Non-transfer item | B23: 16|Minor assets | C23: 2025_26 | D23: MTEC2025 | E23: 16 | F23: 1 | G23: 1 | H23: 16668 | I23: 5 | J23: 16 | K23: 01 | L23: 01 | M23: 016668 | N23: 000005 | O23: 16|01|01|000005 | P23: 01 | Q23: 01 | R23: 02 | S23: 05 | T23: 05 | U23: 01|01|02|05|05 | V23: National | W23: Basic Education | X23: Administration | Y23: Ministry | Z23: Non-transfer item | AA23: Current | AB23: Current payments | AC23: Goods and services | AD23: Minor assets | AE23: Minor assets | AF23: Learning and culture | AG23: Basic education | AH23: NAT | AI23: 6 | AJ23: 3 | AK23: 21 | AL23: 4 | AM23: 23 | AN23: 23 | AO23: 28 | AP23: 4 | AQ23: 6 | AR23: 6 | AS23: 6 | CB23: =Dataset[[#This Row],[2025/26 From - Spending review Topic 1]]+Dataset[[#This Row],[2025/26 From - Spending review Topic 2]]+Dataset[[#This Row],[2025/26 From - Spending review Topic 3]]+Dataset[[#This Row],[2025/26 From - Spending review Topic 4]]+Dataset[[#This Row],[2025/26 From - Other reallocations]] -> 0 | CC23: =Dataset[[#This Row],[2026/27 From - Spending review Topic 1]]+Dataset[[#This Row],[2026/27 From - Spending review Topic 2]]+Dataset[[#This Row],[2026/27 From - Spending review Topic 3]]+Dataset[[#This Row],[2026/27 From - Spending review Topic 4]]+Dataset[[#This Row],[2026/27 From - Other reallocations]] -> 0 | CD23: =Dataset[[#This Row],[2027/28 From - Spending review Topic 1]]+Dataset[[#This Row],[2027/28 From - Spending review Topic 2]]+Dataset[[#This Row],[2027/28 From - Spending review Topic 3]]+Dataset[[#This Row],[2027/28 From - Spending review Topic 4]]+Dataset[[#This Row],[2027/28 From - Other reallocations]] -> 0 | CE23: =Dataset[[#This Row],[2025/26 To - Spending review Topic 1]]+Dataset[[#This Row],[2025/26 To - Spending review Topic 2]]+Dataset[[#This Row],[2025/26 To - Spending review Topic 3]]+Dataset[[#This Row],[2025/26 To - Spending review Topic 4]]+Dataset[[#This Row],[2025/26 To - Other reallocations]] -> 0 | CF23: =Dataset[[#This Row],[2026/27 To - Spending review Topic 1]]+Dataset[[#This Row],[2026/27 To - Spending review Topic 2]]+Dataset[[#This Row],[2026/27 To - Spending review Topic 3]]+Dataset[[#This Row],[2026/27 To - Spending review Topic 4]]+Dataset[[#This Row],[2026/27 To - Other reallocations]] -> 0 | CG23: =Dataset[[#This Row],[2027/28 To - Spending review Topic 1]]+Dataset[[#This Row],[2027/28 To - Spending review Topic 2]]+Dataset[[#This Row],[2027/28 To - Spending review Topic 3]]+Dataset[[#This Row],[2027/28 To - Spending review Topic 4]]+Dataset[[#This Row],[2027/28 To - Other reallocations]] -> 0 | CH23: =Dataset[[#This Row],[2025/26 Reduction]]+Dataset[[#This Row],[2025/26 From - Total]] -> 0 | CI23: =Dataset[[#This Row],[2026/27 Reduction]]+Dataset[[#This Row],[2026/27 From - Total]] -> 0 | CJ23: =Dataset[[#This Row],[2027/28 Reduction]]+Dataset[[#This Row],[2027/28 From - Total]] -> 0 | CK23: =Dataset[[#This Row],[2024/25 Reduction]] -> 0 | CL23: =SUM(Dataset[[#This Row],[2025/26 Reduction]],Dataset[[#This Row],[2025/26 From - Total]],Dataset[[#This Row],[2025/26 To - Total]]) -> 0 | CM23: =SUM(Dataset[[#This Row],[2026/27 Reduction]],Dataset[[#This Row],[2026/27 From - Total]],Dataset[[#This Row],[2026/27 To - Total]]) -> 0 | CN23: =SUM(Dataset[[#This Row],[2027/28 Reduction]],Dataset[[#This Row],[2027/28 From - Total]],Dataset[[#This Row],[2027/28 To - Total]]) -> 0 | CO23: =Dataset[[#This Row],[2024/25 Baseline]]+Dataset[[#This Row],[2024/25 Total change]] -> 4 | CP23: =Dataset[[#This Row],[2025/26 Baseline]]+Dataset[[#This Row],[2025/26 Total change]] -> 6 | CQ23: =Dataset[[#This Row],[2026/27 Baseline]]+Dataset[[#This Row],[2026/27 Total change]] -> 6 | CR23: =Dataset[[#This Row],[2027/28 Baseline]]+Dataset[[#This Row],[2027/28 Total change]] -> 6
A24: NAT|Non-transfer item | B24: 16|Audit costs: External | C24: 2025_26 | D24: MTEC2025 | E24: 16 | F24: 1 | G24: 1 | H24: 16669 | I24: 6 | J24: 16 | K24: 01 | L24: 01 | M24: 016669 | N24: 000006 | O24: 16|01|01|000006 | P24: 01 | Q24: 01 | R24: 02 | S24: 06 | T24: 06 | U24: 01|01|02|06|06 | V24: National | W24: Basic Education | X24: Administration | Y24: Ministry | Z24: Non-transfer item | AA24: Current | AB24: Current payments | AC24: Goods and services | AD24: Audit costs: External | AE24: Audit costs: External | AF24: Learning and culture | AG24: Basic education | AH24: NAT | AI24: 0 | AJ24: 0 | AK24: 0 | AL24: 0 | AM24: 0 | AN24: 0 | AP24: 0 | AQ24: 0 | AR24: 0 | AS24: 0 | CB24: =Dataset[[#This Row],[2025/26 From - Spending review Topic 1]]+Dataset[[#This Row],[2025/26 From - Spending review Topic 2]]+Dataset[[#This Row],[2025/26 From - Spending review Topic 3]]+Dataset[[#This Row],[2025/26 From - Spending review Topic 4]]+Dataset[[#This Row],[2025/26 From - Other reallocations]] -> 0 | CC24: =Dataset[[#This Row],[2026/27 From - Spending review Topic 1]]+Dataset[[#This Row],[2026/27 From - Spending review Topic 2]]+Dataset[[#This Row],[2026/27 From - Spending review Topic 3]]+Dataset[[#This Row],[2026/27 From - Spending review Topic 4]]+Dataset[[#This Row],[2026/27 From - Other reallocations]] -> 0 | CD24: =Dataset[[#This Row],[2027/28 From - Spending review Topic 1]]+Dataset[[#This Row],[2027/28 From - Spending review Topic 2]]+Dataset[[#This Row],[2027/28 From - Spending review Topic 3]]+Dataset[[#This Row],[2027/28 From - Spending review Topic 4]]+Dataset[[#This Row],[2027/28 From - Other reallocations]] -> 0 | CE24: =Dataset[[#This Row],[2025/26 To - Spending review Topic 1]]+Dataset[[#This Row],[2025/26 To - Spending review Topic 2]]+Dataset[[#This Row],[2025/26 To - Spending review Topic 3]]+Dataset[[#This Row],[2025/26 To - Spending review Topic 4]]+Dataset[[#This Row],[2025/26 To - Other reallocations]] -> 0 | CF24: =Dataset[[#This Row],[2026/27 To - Spending review Topic 1]]+Dataset[[#This Row],[2026/27 To - Spending review Topic 2]]+Dataset[[#This Row],[2026/27 To - Spending review Topic 3]]+Dataset[[#This Row],[2026/27 To - Spending review Topic 4]]+Dataset[[#This Row],[2026/27 To - Other reallocations]] -> 0 | CG24: =Dataset[[#This Row],[2027/28 To - Spending review Topic 1]]+Dataset[[#This Row],[2027/28 To - Spending review Topic 2]]+Dataset[[#This Row],[2027/28 To - Spending review Topic 3]]+Dataset[[#This Row],[2027/28 To - Spending review Topic 4]]+Dataset[[#This Row],[2027/28 To - Other reallocations]] -> 0 | CH24: =Dataset[[#This Row],[2025/26 Reduction]]+Dataset[[#This Row],[2025/26 From - Total]] -> 0 | CI24: =Dataset[[#This Row],[2026/27 Reduction]]+Dataset[[#This Row],[2026/27 From - Total]] -> 0 | CJ24: =Dataset[[#This Row],[2027/28 Reduction]]+Dataset[[#This Row],[2027/28 From - Total]] -> 0 | CK24: =Dataset[[#This Row],[2024/25 Reduction]] -> 0 | CL24: =SUM(Dataset[[#This Row],[2025/26 Reduction]],Dataset[[#This Row],[2025/26 From - Total]],Dataset[[#This Row],[2025/26 To - Total]]) -> 0 | CM24: =SUM(Dataset[[#This Row],[2026/27 Reduction]],Dataset[[#This Row],[2026/27 From - Total]],Dataset[[#This Row],[2026/27 To - Total]]) -> 0 | CN24: =SUM(Dataset[[#This Row],[2027/28 Reduction]],Dataset[[#This Row],[2027/28 From - Total]],Dataset[[#This Row],[2027/28 To - Total]]) -> 0 | CO24: =Dataset[[#This Row],[2024/25 Baseline]]+Dataset[[#This Row],[2024/25 Total change]] -> 0 | CP24: =Dataset[[#This Row],[2025/26 Baseline]]+Dataset[[#This Row],[2025/26 Total change]] -> 0 | CQ24: =Dataset[[#This Row],[2026/27 Baseline]]+Dataset[[#This Row],[2026/27 Total change]] -> 0 | CR24: =Dataset[[#This Row],[2027/28 Baseline]]+Dataset[[#This Row],[2027/28 Total change]] -> 0
A25: NAT|Non-transfer item | B25: 16|Bursaries: Employees | C25: 2025_26 | D25: MTEC2025 | E25: 16 | F25: 1 | G25: 1 | H25: 16670 | I25: 7 | J25: 16 | K25: 01 | L25: 01 | M25: 016670 | N25: 000007 | O25: 16|01|01|000007 | P25: 01 | Q25: 01 | R25: 02 | S25: 07 | T25: 07 | U25: 01|01|02|07|07 | V25: National | W25: Basic Education | X25: Administration | Y25: Ministry | Z25: Non-transfer item | AA25: Current | AB25: Current payments | AC25: Goods and services | AD25: Bursaries: Employees | AE25: Bursaries: Employees | AF25: Learning and culture | AG25: Basic education | AH25: NAT | AI25: 0 | AJ25: 0 | AK25: 0 | AL25: 0 | AM25: 0 | AN25: 0 | AP25: 0 | AQ25: 0 | AR25: 0 | AS25: 0 | CB25: =Dataset[[#This Row],[2025/26 From - Spending review Topic 1]]+Dataset[[#This Row],[2025/26 From - Spending review Topic 2]]+Dataset[[#This Row],[2025/26 From - Spending review Topic 3]]+Dataset[[#This Row],[2025/26 From - Spending review Topic 4]]+Dataset[[#This Row],[2025/26 From - Other reallocations]] -> 0 | CC25: =Dataset[[#This Row],[2026/27 From - Spending review Topic 1]]+Dataset[[#This Row],[2026/27 From - Spending review Topic 2]]+Dataset[[#This Row],[2026/27 From - Spending review Topic 3]]+Dataset[[#This Row],[2026/27 From - Spending review Topic 4]]+Dataset[[#This Row],[2026/27 From - Other reallocations]] -> 0 | CD25: =Dataset[[#This Row],[2027/28 From - Spending review Topic 1]]+Dataset[[#This Row],[2027/28 From - Spending review Topic 2]]+Dataset[[#This Row],[2027/28 From - Spending review Topic 3]]+Dataset[[#This Row],[2027/28 From - Spending review Topic 4]]+Dataset[[#This Row],[2027/28 From - Other reallocations]] -> 0 | CE25: =Dataset[[#This Row],[2025/26 To - Spending review Topic 1]]+Dataset[[#This Row],[2025/26 To - Spending review Topic 2]]+Dataset[[#This Row],[2025/26 To - Spending review Topic 3]]+Dataset[[#This Row],[2025/26 To - Spending review Topic 4]]+Dataset[[#This Row],[2025/26 To - Other reallocations]] -> 0 | CF25: =Dataset[[#This Row],[2026/27 To - Spending review Topic 1]]+Dataset[[#This Row],[2026/27 To - Spending review Topic 2]]+Dataset[[#This Row],[2026/27 To - Spending review Topic 3]]+Dataset[[#This Row],[2026/27 To - Spending review Topic 4]]+Dataset[[#This Row],[2026/27 To - Other reallocations]] -> 0 | CG25: =Dataset[[#This Row],[2027/28 To - Spending review Topic 1]]+Dataset[[#This Row],[2027/28 To - Spending review Topic 2]]+Dataset[[#This Row],[2027/28 To - Spending review Topic 3]]+Dataset[[#This Row],[2027/28 To - Spending review Topic 4]]+Dataset[[#This Row],[2027/28 To - Other reallocations]] -> 0 | CH25: =Dataset[[#This Row],[2025/26 Reduction]]+Dataset[[#This Row],[2025/26 From - Total]] -> 0 | CI25: =Dataset[[#This Row],[2026/27 Reduction]]+Dataset[[#This Row],[2026/27 From - Total]] -> 0 | CJ25: =Dataset[[#This Row],[2027/28 Reduction]]+Dataset[[#This Row],[2027/28 From - Total]] -> 0 | CK25: =Dataset[[#This Row],[2024/25 Reduction]] -> 0 | CL25: =SUM(Dataset[[#This Row],[2025/26 Reduction]],Dataset[[#This Row],[2025/26 From - Total]],Dataset[[#This Row],[2025/26 To - Total]]) -> 0 | CM25: =SUM(Dataset[[#This Row],[2026/27 Reduction]],Dataset[[#This Row],[2026/27 From - Total]],Dataset[[#This Row],[2026/27 To - Total]]) -> 0 | CN25: =SUM(Dataset[[#This Row],[2027/28 Reduction]],Dataset[[#This Row],[2027/28 From - Total]],Dataset[[#This Row],[2027/28 To - Total]]) -> 0 | CO25: =Dataset[[#This Row],[2024/25 Baseline]]+Dataset[[#This Row],[2024/25 Total change]] -> 0 | CP25: =Dataset[[#This Row],[2025/26 Baseline]]+Dataset[[#This Row],[2025/26 Total change]] -> 0 | CQ25: =Dataset[[#This Row],[2026/27 Baseline]]+Dataset[[#This Row],[2026/27 Total change]] -> 0 | CR25: =Dataset[[#This Row],[2027/28 Baseline]]+Dataset[[#This Row],[2027/28 Total change]] -> 0
A26: NAT|Non-transfer item | B26: 16|Catering: Departmental activities | C26: 2025_26 | D26: MTEC2025 | E26: 16 | F26: 1 | G26: 1 | H26: 16671 | I26: 8 | J26: 16 | K26: 01 | L26: 01 | M26: 016671 | N26: 000008 | O26: 16|01|01|000008 | P26: 01 | Q26: 01 | R26: 02 | S26: 08 | T26: 08 | U26: 01|01|02|08|08 | V26: National | W26: Basic Education | X26: Administration | Y26: Ministry | Z26: Non-transfer item | AA26: Current | AB26: Current payments | AC26: Goods and services | AD26: Catering: Departmental activities | AE26: Catering: Departmental activities | AF26: Learning and culture | AG26: Basic education | AH26: NAT | AI26: 71 | AJ26: 1344 | AK26: 2119 | AL26: 0 | AM26: 1000 | AN26: 1000 | AO26: 1583 | AP26: 0 | AQ26: 0 | AR26: 0 | AS26: 0 | CB26: =Dataset[[#This Row],[2025/26 From - Spending review Topic 1]]+Dataset[[#This Row],[2025/26 From - Spending review Topic 2]]+Dataset[[#This Row],[2025/26 From - Spending review Topic 3]]+Dataset[[#This Row],[2025/26 From - Spending review Topic 4]]+Dataset[[#This Row],[2025/26 From - Other reallocations]] -> 0 | CC26: =Dataset[[#This Row],[2026/27 From - Spending review Topic 1]]+Dataset[[#This Row],[2026/27 From - Spending review Topic 2]]+Dataset[[#This Row],[2026/27 From - Spending review Topic 3]]+Dataset[[#This Row],[2026/27 From - Spending review Topic 4]]+Dataset[[#This Row],[2026/27 From - Other reallocations]] -> 0 | CD26: =Dataset[[#This Row],[2027/28 From - Spending review Topic 1]]+Dataset[[#This Row],[2027/28 From - Spending review Topic 2]]+Dataset[[#This Row],[2027/28 From - Spending review Topic 3]]+Dataset[[#This Row],[2027/28 From - Spending review Topic 4]]+Dataset[[#This Row],[2027/28 From - Other reallocations]] -> 0 | CE26: =Dataset[[#This Row],[2025/26 To - Spending review Topic 1]]+Dataset[[#This Row],[2025/26 To - Spending review Topic 2]]+Dataset[[#This Row],[2025/26 To - Spending review Topic 3]]+Dataset[[#This Row],[2025/26 To - Spending review Topic 4]]+Dataset[[#This Row],[2025/26 To - Other reallocations]] -> 0 | CF26: =Dataset[[#This Row],[2026/27 To - Spending review Topic 1]]+Dataset[[#This Row],[2026/27 To - Spending review Topic 2]]+Dataset[[#This Row],[2026/27 To - Spending review Topic 3]]+Dataset[[#This Row],[2026/27 To - Spending review Topic 4]]+Dataset[[#This Row],[2026/27 To - Other reallocations]] -> 0 | CG26: =Dataset[[#This Row],[2027/28 To - Spending review Topic 1]]+Dataset[[#This Row],[2027/28 To - Spending review Topic 2]]+Dataset[[#This Row],[2027/28 To - Spending review Topic 3]]+Dataset[[#This Row],[2027/28 To - Spending review Topic 4]]+Dataset[[#This Row],[2027/28 To - Other reallocations]] -> 0 | CH26: =Dataset[[#This Row],[2025/26 Reduction]]+Dataset[[#This Row],[2025/26 From - Total]] -> 0 | CI26: =Dataset[[#This Row],[2026/27 Reduction]]+Dataset[[#This Row],[2026/27 From - Total]] -> 0 | CJ26: =Dataset[[#This Row],[2027/28 Reduction]]+Dataset[[#This Row],[2027/28 From - Total]] -> 0 | CK26: =Dataset[[#This Row],[2024/25 Reduction]] -> 0 | CL26: =SUM(Dataset[[#This Row],[2025/26 Reduction]],Dataset[[#This Row],[2025/26 From - Total]],Dataset[[#This Row],[2025/26 To - Total]]) -> 0 | CM26: =SUM(Dataset[[#This Row],[2026/27 Reduction]],Dataset[[#This Row],[2026/27 From - Total]],Dataset[[#This Row],[2026/27 To - Total]]) -> 0 | CN26: =SUM(Dataset[[#This Row],[2027/28 Reduction]],Dataset[[#This Row],[2027/28 From - Total]],Dataset[[#This Row],[2027/28 To - Total]]) -> 0 | CO26: =Dataset[[#This Row],[2024/25 Baseline]]+Dataset[[#This Row],[2024/25 Total change]] -> 0 | CP26: =Dataset[[#This Row],[2025/26 Baseline]]+Dataset[[#This Row],[2025/26 Total change]] -> 0 | CQ26: =Dataset[[#This Row],[2026/27 Baseline]]+Dataset[[#This Row],[2026/27 Total change]] -> 0 | CR26: =Dataset[[#This Row],[2027/28 Baseline]]+Dataset[[#This Row],[2027/28 Total change]] -> 0
A27: NAT|Non-transfer item | B27: 16|Communication (G&S) | C27: 2025_26 | D27: MTEC2025 | E27: 16 | F27: 1 | G27: 1 | H27: 16672 | I27: 9 | J27: 16 | K27: 01 | L27: 01 | M27: 016672 | N27: 000009 | O27: 16|01|01|000009 | P27: 01 | Q27: 01 | R27: 02 | S27: 09 | T27: 09 | U27: 01|01|02|09|09 | V27: National | W27: Basic Education | X27: Administration | Y27: Ministry | Z27: Non-transfer item | AA27: Current | AB27: Current payments | AC27: Goods and services | AD27: Communication (G&S) | AE27: Communication (G&S) | AF27: Learning and culture | AG27: Basic education | AH27: NAT | AI27: 1188 | AJ27: 1226 | AK27: 1171 | AL27: 913 | AM27: 994 | AN27: 994 | AO27: 893 | AP27: 795 | AQ27: 1166 | AR27: 1219 | AS27: 1274 | CB27: =Dataset[[#This Row],[2025/26 From - Spending review Topic 1]]+Dataset[[#This Row],[2025/26 From - Spending review Topic 2]]+Dataset[[#This Row],[2025/26 From - Spending review Topic 3]]+Dataset[[#This Row],[2025/26 From - Spending review Topic 4]]+Dataset[[#This Row],[2025/26 From - Other reallocations]] -> 0 | CC27: =Dataset[[#This Row],[2026/27 From - Spending review Topic 1]]+Dataset[[#This Row],[2026/27 From - Spending review Topic 2]]+Dataset[[#This Row],[2026/27 From - Spending review Topic 3]]+Dataset[[#This Row],[2026/27 From - Spending review Topic 4]]+Dataset[[#This Row],[2026/27 From - Other reallocations]] -> 0 | CD27: =Dataset[[#This Row],[2027/28 From - Spending review Topic 1]]+Dataset[[#This Row],[2027/28 From - Spending review Topic 2]]+Dataset[[#This Row],[2027/28 From - Spending review Topic 3]]+Dataset[[#This Row],[2027/28 From - Spending review Topic 4]]+Dataset[[#This Row],[2027/28 From - Other reallocations]] -> 0 | CE27: =Dataset[[#This Row],[2025/26 To - Spending review Topic 1]]+Dataset[[#This Row],[2025/26 To - Spending review Topic 2]]+Dataset[[#This Row],[2025/26 To - Spending review Topic 3]]+Dataset[[#This Row],[2025/26 To - Spending review Topic 4]]+Dataset[[#This Row],[2025/26 To - Other reallocations]] -> 0 | CF27: =Dataset[[#This Row],[2026/27 To - Spending review Topic 1]]+Dataset[[#This Row],[2026/27 To - Spending review Topic 2]]+Dataset[[#This Row],[2026/27 To - Spending review Topic 3]]+Dataset[[#This Row],[2026/27 To - Spending review Topic 4]]+Dataset[[#This Row],[2026/27 To - Other reallocations]] -> 0 | CG27: =Dataset[[#This Row],[2027/28 To - Spending review Topic 1]]+Dataset[[#This Row],[2027/28 To - Spending review Topic 2]]+Dataset[[#This Row],[2027/28 To - Spending review Topic 3]]+Dataset[[#This Row],[2027/28 To - Spending review Topic 4]]+Dataset[[#This Row],[2027/28 To - Other reallocations]] -> 0 | CH27: =Dataset[[#This Row],[2025/26 Reduction]]+Dataset[[#This Row],[2025/26 From - Total]] -> 0 | CI27: =Dataset[[#This Row],[2026/27 Reduction]]+Dataset[[#This Row],[2026/27 From - Total]] -> 0 | CJ27: =Dataset[[#This Row],[2027/28 Reduction]]+Dataset[[#This Row],[2027/28 From - Total]] -> 0 | CK27: =Dataset[[#This Row],[2024/25 Reduction]] -> 0 | CL27: =SUM(Dataset[[#This Row],[2025/26 Reduction]],Dataset[[#This Row],[2025/26 From - Total]],Dataset[[#This Row],[2025/26 To - Total]]) -> 0 | CM27: =SUM(Dataset[[#This Row],[2026/27 Reduction]],Dataset[[#This Row],[2026/27 From - Total]],Dataset[[#This Row],[2026/27 To - Total]]) -> 0 | CN27: =SUM(Dataset[[#This Row],[2027/28 Reduction]],Dataset[[#This Row],[2027/28 From - Total]],Dataset[[#This Row],[2027/28 To - Total]]) -> 0 | CO27: =Dataset[[#This Row],[2024/25 Baseline]]+Dataset[[#This Row],[2024/25 Total change]] -> 795 | CP27: =Dataset[[#This Row],[2025/26 Baseline]]+Dataset[[#This Row],[2025/26 Total change]] -> 1166 | CQ27: =Dataset[[#This Row],[2026/27 Baseline]]+Dataset[[#This Row],[2026/27 Total change]] -> 1219 | CR27: =Dataset[[#This Row],[2027/28 Baseline]]+Dataset[[#This Row],[2027/28 Total change]] -> 1274
A28: NAT|Non-transfer item | B28: 16|Computer services | C28: 2025_26 | D28: MTEC2025 | E28: 16 | F28: 1 | G28: 1 | H28: 16673 | I28: 10 | J28: 16 | K28: 01 | L28: 01 | M28: 016673 | N28: 000010 | O28: 16|01|01|000010 | P28: 01 | Q28: 01 | R28: 02 | S28: 10 | T28: 10 | U28: 01|01|02|10|10 | V28: National | W28: Basic Education | X28: Administration | Y28: Ministry | Z28: Non-transfer item | AA28: Current | AB28: Current payments | AC28: Goods and services | AD28: Computer services | AE28: Computer services | AF28: Learning and culture | AG28: Basic education | AH28: NAT | AI28: 0 | AJ28: 0 | AK28: 491 | AL28: 10 | AM28: 10 | AN28: 10 | AO28: 140 | AP28: 10 | AQ28: 10 | AR28: 10 | AS28: 10 | CB28: =Dataset[[#This Row],[2025/26 From - Spending review Topic 1]]+Dataset[[#This Row],[2025/26 From - Spending review Topic 2]]+Dataset[[#This Row],[2025/26 From - Spending review Topic 3]]+Dataset[[#This Row],[2025/26 From - Spending review Topic 4]]+Dataset[[#This Row],[2025/26 From - Other reallocations]] -> 0 | CC28: =Dataset[[#This Row],[2026/27 From - Spending review Topic 1]]+Dataset[[#This Row],[2026/27 From - Spending review Topic 2]]+Dataset[[#This Row],[2026/27 From - Spending review Topic 3]]+Dataset[[#This Row],[2026/27 From - Spending review Topic 4]]+Dataset[[#This Row],[2026/27 From - Other reallocations]] -> 0 | CD28: =Dataset[[#This Row],[2027/28 From - Spending review Topic 1]]+Dataset[[#This Row],[2027/28 From - Spending review Topic 2]]+Dataset[[#This Row],[2027/28 From - Spending review Topic 3]]+Dataset[[#This Row],[2027/28 From - Spending review Topic 4]]+Dataset[[#This Row],[2027/28 From - Other reallocations]] -> 0 | CE28: =Dataset[[#This Row],[2025/26 To - Spending review Topic 1]]+Dataset[[#This Row],[2025/26 To - Spending review Topic 2]]+Dataset[[#This Row],[2025/26 To - Spending review Topic 3]]+Dataset[[#This Row],[2025/26 To - Spending review Topic 4]]+Dataset[[#This Row],[2025/26 To - Other reallocations]] -> 0 | CF28: =Dataset[[#This Row],[2026/27 To - Spending review Topic 1]]+Dataset[[#This Row],[2026/27 To - Spending review Topic 2]]+Dataset[[#This Row],[2026/27 To - Spending review Topic 3]]+Dataset[[#This Row],[2026/27 To - Spending review Topic 4]]+Dataset[[#This Row],[2026/27 To - Other reallocations]] -> 0 | CG28: =Dataset[[#This Row],[2027/28 To - Spending review Topic 1]]+Dataset[[#This Row],[2027/28 To - Spending review Topic 2]]+Dataset[[#This Row],[2027/28 To - Spending review Topic 3]]+Dataset[[#This Row],[2027/28 To - Spending review Topic 4]]+Dataset[[#This Row],[2027/28 To - Other reallocations]] -> 0 | CH28: =Dataset[[#This Row],[2025/26 Reduction]]+Dataset[[#This Row],[2025/26 From - Total]] -> 0 | CI28: =Dataset[[#This Row],[2026/27 Reduction]]+Dataset[[#This Row],[2026/27 From - Total]] -> 0 | CJ28: =Dataset[[#This Row],[2027/28 Reduction]]+Dataset[[#This Row],[2027/28 From - Total]] -> 0 | CK28: =Dataset[[#This Row],[2024/25 Reduction]] -> 0 | CL28: =SUM(Dataset[[#This Row],[2025/26 Reduction]],Dataset[[#This Row],[2025/26 From - Total]],Dataset[[#This Row],[2025/26 To - Total]]) -> 0 | CM28: =SUM(Dataset[[#This Row],[2026/27 Reduction]],Dataset[[#This Row],[2026/27 From - Total]],Dataset[[#This Row],[2026/27 To - Total]]) -> 0 | CN28: =SUM(Dataset[[#This Row],[2027/28 Reduction]],Dataset[[#This Row],[2027/28 From - Total]],Dataset[[#This Row],[2027/28 To - Total]]) -> 0 | CO28: =Dataset[[#This Row],[2024/25 Baseline]]+Dataset[[#This Row],[2024/25 Total change]] -> 10 | CP28: =Dataset[[#This Row],[2025/26 Baseline]]+Dataset[[#This Row],[2025/26 Total change]] -> 10 | CQ28: =Dataset[[#This Row],[2026/27 Baseline]]+Dataset[[#This Row],[2026/27 Total change]] -> 10 | CR28: =Dataset[[#This Row],[2027/28 Baseline]]+Dataset[[#This Row],[2027/28 Total change]] -> 10
A29: NAT|Non-transfer item | B29: 16|Consultants: Business and advisory services | C29: 2025_26 | D29: MTEC2025 | E29: 16 | F29: 1 | G29: 1 | H29: 16674 | I29: 11 | J29: 16 | K29: 01 | L29: 01 | M29: 016674 | N29: 000011 | O29: 16|01|01|000011 | P29: 01 | Q29: 01 | R29: 02 | S29: 11 | T29: 11 | U29: 01|01|02|11|11 | V29: National | W29: Basic Education | X29: Administration | Y29: Ministry | Z29: Non-transfer item | AA29: Current | AB29: Current payments | AC29: Goods and services | AD29: Consultants: Business and advisory services | AE29: Consultants: Business and advisory services | AF29: Learning and culture | AG29: Basic education | AH29: NAT | AI29: 0 | AJ29: 0 | AK29: 0 | AL29: 0 | AM29: 0 | AN29: 0 | AO29: 128 | AP29: 0 | AQ29: 0 | AR29: 0 | AS29: 0 | CB29: =Dataset[[#This Row],[2025/26 From - Spending review Topic 1]]+Dataset[[#This Row],[2025/26 From - Spending review Topic 2]]+Dataset[[#This Row],[2025/26 From - Spending review Topic 3]]+Dataset[[#This Row],[2025/26 From - Spending review Topic 4]]+Dataset[[#This Row],[2025/26 From - Other reallocations]] -> 0 | CC29: =Dataset[[#This Row],[2026/27 From - Spending review Topic 1]]+Dataset[[#This Row],[2026/27 From - Spending review Topic 2]]+Dataset[[#This Row],[2026/27 From - Spending review Topic 3]]+Dataset[[#This Row],[2026/27 From - Spending review Topic 4]]+Dataset[[#This Row],[2026/27 From - Other reallocations]] -> 0 | CD29: =Dataset[[#This Row],[2027/28 From - Spending review Topic 1]]+Dataset[[#This Row],[2027/28 From - Spending review Topic 2]]+Dataset[[#This Row],[2027/28 From - Spending review Topic 3]]+Dataset[[#This Row],[2027/28 From - Spending review Topic 4]]+Dataset[[#This Row],[2027/28 From - Other reallocations]] -> 0 | CE29: =Dataset[[#This Row],[2025/26 To - Spending review Topic 1]]+Dataset[[#This Row],[2025/26 To - Spending review Topic 2]]+Dataset[[#This Row],[2025/26 To - Spending review Topic 3]]+Dataset[[#This Row],[2025/26 To - Spending review Topic 4]]+Dataset[[#This Row],[2025/26 To - Other reallocations]] -> 0 | CF29: =Dataset[[#This Row],[2026/27 To - Spending review Topic 1]]+Dataset[[#This Row],[2026/27 To - Spending review Topic 2]]+Dataset[[#This Row],[2026/27 To - Spending review Topic 3]]+Dataset[[#This Row],[2026/27 To - Spending review Topic 4]]+Dataset[[#This Row],[2026/27 To - Other reallocations]] -> 0 | CG29: =Dataset[[#This Row],[2027/28 To - Spending review Topic 1]]+Dataset[[#This Row],[2027/28 To - Spending review Topic 2]]+Dataset[[#This Row],[2027/28 To - Spending review Topic 3]]+Dataset[[#This Row],[2027/28 To - Spending review Topic 4]]+Dataset[[#This Row],[2027/28 To - Other reallocations]] -> 0 | CH29: =Dataset[[#This Row],[2025/26 Reduction]]+Dataset[[#This Row],[2025/26 From - Total]] -> 0 | CI29: =Dataset[[#This Row],[2026/27 Reduction]]+Dataset[[#This Row],[2026/27 From - Total]] -> 0 | CJ29: =Dataset[[#This Row],[2027/28 Reduction]]+Dataset[[#This Row],[2027/28 From - Total]] -> 0 | CK29: =Dataset[[#This Row],[2024/25 Reduction]] -> 0 | CL29: =SUM(Dataset[[#This Row],[2025/26 Reduction]],Dataset[[#This Row],[2025/26 From - Total]],Dataset[[#This Row],[2025/26 To - Total]]) -> 0 | CM29: =SUM(Dataset[[#This Row],[2026/27 Reduction]],Dataset[[#This Row],[2026/27 From - Total]],Dataset[[#This Row],[2026/27 To - Total]]) -> 0 | CN29: =SUM(Dataset[[#This Row],[2027/28 Reduction]],Dataset[[#This Row],[2027/28 From - Total]],Dataset[[#This Row],[2027/28 To - Total]]) -> 0 | CO29: =Dataset[[#This Row],[2024/25 Baseline]]+Dataset[[#This Row],[2024/25 Total change]] -> 0 | CP29: =Dataset[[#This Row],[2025/26 Baseline]]+Dataset[[#This Row],[2025/26 Total change]] -> 0 | CQ29: =Dataset[[#This Row],[2026/27 Baseline]]+Dataset[[#This Row],[2026/27 Total change]] -> 0 | CR29: =Dataset[[#This Row],[2027/28 Baseline]]+Dataset[[#This Row],[2027/28 Total change]] -> 0
A30: NAT|Non-transfer item | B30: 16|Infrastructure and planning services | C30: 2025_26 | D30: MTEC2025 | E30: 16 | F30: 1 | G30: 1 | H30: 16675 | I30: 12 | J30: 16 | K30: 01 | L30: 01 | M30: 016675 | N30: 000012 | O30: 16|01|01|000012 | P30: 01 | Q30: 01 | R30: 02 | S30: 12 | T30: 12 | U30: 01|01|02|12|12 | V30: National | W30: Basic Education | X30: Administration | Y30: Ministry | Z30: Non-transfer item | AA30: Current | AB30: Current payments | AC30: Goods and services | AD30: Infrastructure and planning services | AE30: Infrastructure and planning services | AF30: Learning and culture | AG30: Basic education | AH30: NAT | AI30: 0 | AJ30: 0 | AK30: 0 | AL30: 0 | AM30: 0 | AN30: 0 | AP30: 0 | AQ30: 0 | AR30: 0 | AS30: 0 | CB30: =Dataset[[#This Row],[2025/26 From - Spending review Topic 1]]+Dataset[[#This Row],[2025/26 From - Spending review Topic 2]]+Dataset[[#This Row],[2025/26 From - Spending review Topic 3]]+Dataset[[#This Row],[2025/26 From - Spending review Topic 4]]+Dataset[[#This Row],[2025/26 From - Other reallocations]] -> 0 | CC30: =Dataset[[#This Row],[2026/27 From - Spending review Topic 1]]+Dataset[[#This Row],[2026/27 From - Spending review Topic 2]]+Dataset[[#This Row],[2026/27 From - Spending review Topic 3]]+Dataset[[#This Row],[2026/27 From - Spending review Topic 4]]+Dataset[[#This Row],[2026/27 From - Other reallocations]] -> 0 | CD30: =Dataset[[#This Row],[2027/28 From - Spending review Topic 1]]+Dataset[[#This Row],[2027/28 From - Spending review Topic 2]]+Dataset[[#This Row],[2027/28 From - Spending review Topic 3]]+Dataset[[#This Row],[2027/28 From - Spending review Topic 4]]+Dataset[[#This Row],[2027/28 From - Other reallocations]] -> 0 | CE30: =Dataset[[#This Row],[2025/26 To - Spending review Topic 1]]+Dataset[[#This Row],[2025/26 To - Spending review Topic 2]]+Dataset[[#This Row],[2025/26 To - Spending review Topic 3]]+Dataset[[#This Row],[2025/26 To - Spending review Topic 4]]+Dataset[[#This Row],[2025/26 To - Other reallocations]] -> 0 | CF30: =Dataset[[#This Row],[2026/27 To - Spending review Topic 1]]+Dataset[[#This Row],[2026/27 To - Spending review Topic 2]]+Dataset[[#This Row],[2026/27 To - Spending review Topic 3]]+Dataset[[#This Row],[2026/27 To - Spending review Topic 4]]+Dataset[[#This Row],[2026/27 To - Other reallocations]] -> 0 | CG30: =Dataset[[#This Row],[2027/28 To - Spending review Topic 1]]+Dataset[[#This Row],[2027/28 To - Spending review Topic 2]]+Dataset[[#This Row],[2027/28 To - Spending review Topic 3]]+Dataset[[#This Row],[2027/28 To - Spending review Topic 4]]+Dataset[[#This Row],[2027/28 To - Other reallocations]] -> 0 | CH30: =Dataset[[#This Row],[2025/26 Reduction]]+Dataset[[#This Row],[2025/26 From - Total]] -> 0 | CI30: =Dataset[[#This Row],[2026/27 Reduction]]+Dataset[[#This Row],[2026/27 From - Total]] -> 0 | CJ30: =Dataset[[#This Row],[2027/28 Reduction]]+Dataset[[#This Row],[2027/28 From - Total]] -> 0 | CK30: =Dataset[[#This Row],[2024/25 Reduction]] -> 0 | CL30: =SUM(Dataset[[#This Row],[2025/26 Reduction]],Dataset[[#This Row],[2025/26 From - Total]],Dataset[[#This Row],[2025/26 To - Total]]) -> 0 | CM30: =SUM(Dataset[[#This Row],[2026/27 Reduction]],Dataset[[#This Row],[2026/27 From - Total]],Dataset[[#This Row],[2026/27 To - Total]]) -> 0 | CN30: =SUM(Dataset[[#This Row],[2027/28 Reduction]],Dataset[[#This Row],[2027/28 From - Total]],Dataset[[#This Row],[2027/28 To - Total]]) -> 0 | CO30: =Dataset[[#This Row],[2024/25 Baseline]]+Dataset[[#This Row],[2024/25 Total change]] -> 0 | CP30: =Dataset[[#This Row],[2025/26 Baseline]]+Dataset[[#This Row],[2025/26 Total change]] -> 0 | CQ30: =Dataset[[#This Row],[2026/27 Baseline]]+Dataset[[#This Row],[2026/27 Total change]] -> 0 | CR30: =Dataset[[#This Row],[2027/28 Baseline]]+Dataset[[#This Row],[2027/28 Total change]] -> 0
A31: NAT|Non-transfer item | B31: 16|Laboratory services | C31: 2025_26 | D31: MTEC2025 | E31: 16 | F31: 1 | G31: 1 | H31: 16676 | I31: 13 | J31: 16 | K31: 01 | L31: 01 | M31: 016676 | N31: 000013 | O31: 16|01|01|000013 | P31: 01 | Q31: 01 | R31: 02 | S31: 13 | T31: 13 | U31: 01|01|02|13|13 | V31: National | W31: Basic Education | X31: Administration | Y31: Ministry | Z31: Non-transfer item | AA31: Current | AB31: Current payments | AC31: Goods and services | AD31: Laboratory services | AE31: Laboratory services | AF31: Learning and culture | AG31: Basic education | AH31: NAT | AI31: 0 | AJ31: 0 | AK31: 0 | AL31: 0 | AM31: 0 | AN31: 0 | AP31: 0 | AQ31: 0 | AR31: 0 | AS31: 0 | CB31: =Dataset[[#This Row],[2025/26 From - Spending review Topic 1]]+Dataset[[#This Row],[2025/26 From - Spending review Topic 2]]+Dataset[[#This Row],[2025/26 From - Spending review Topic 3]]+Dataset[[#This Row],[2025/26 From - Spending review Topic 4]]+Dataset[[#This Row],[2025/26 From - Other reallocations]] -> 0 | CC31: =Dataset[[#This Row],[2026/27 From - Spending review Topic 1]]+Dataset[[#This Row],[2026/27 From - Spending review Topic 2]]+Dataset[[#This Row],[2026/27 From - Spending review Topic 3]]+Dataset[[#This Row],[2026/27 From - Spending review Topic 4]]+Dataset[[#This Row],[2026/27 From - Other reallocations]] -> 0 | CD31: =Dataset[[#This Row],[2027/28 From - Spending review Topic 1]]+Dataset[[#This Row],[2027/28 From - Spending review Topic 2]]+Dataset[[#This Row],[2027/28 From - Spending review Topic 3]]+Dataset[[#This Row],[2027/28 From - Spending review Topic 4]]+Dataset[[#This Row],[2027/28 From - Other reallocations]] -> 0 | CE31: =Dataset[[#This Row],[2025/26 To - Spending review Topic 1]]+Dataset[[#This Row],[2025/26 To - Spending review Topic 2]]+Dataset[[#This Row],[2025/26 To - Spending review Topic 3]]+Dataset[[#This Row],[2025/26 To - Spending review Topic 4]]+Dataset[[#This Row],[2025/26 To - Other reallocations]] -> 0 | CF31: =Dataset[[#This Row],[2026/27 To - Spending review Topic 1]]+Dataset[[#This Row],[2026/27 To - Spending review Topic 2]]+Dataset[[#This Row],[2026/27 To - Spending review Topic 3]]+Dataset[[#This Row],[2026/27 To - Spending review Topic 4]]+Dataset[[#This Row],[2026/27 To - Other reallocations]] -> 0 | CG31: =Dataset[[#This Row],[2027/28 To - Spending review Topic 1]]+Dataset[[#This Row],[2027/28 To - Spending review Topic 2]]+Dataset[[#This Row],[2027/28 To - Spending review Topic 3]]+Dataset[[#This Row],[2027/28 To - Spending review Topic 4]]+Dataset[[#This Row],[2027/28 To - Other reallocations]] -> 0 | CH31: =Dataset[[#This Row],[2025/26 Reduction]]+Dataset[[#This Row],[2025/26 From - Total]] -> 0 | CI31: =Dataset[[#This Row],[2026/27 Reduction]]+Dataset[[#This Row],[2026/27 From - Total]] -> 0 | CJ31: =Dataset[[#This Row],[2027/28 Reduction]]+Dataset[[#This Row],[2027/28 From - Total]] -> 0 | CK31: =Dataset[[#This Row],[2024/25 Reduction]] -> 0 | CL31: =SUM(Dataset[[#This Row],[2025/26 Reduction]],Dataset[[#This Row],[2025/26 From - Total]],Dataset[[#This Row],[2025/26 To - Total]]) -> 0 | CM31: =SUM(Dataset[[#This Row],[2026/27 Reduction]],Dataset[[#This Row],[2026/27 From - Total]],Dataset[[#This Row],[2026/27 To - Total]]) -> 0 | CN31: =SUM(Dataset[[#This Row],[2027/28 Reduction]],Dataset[[#This Row],[2027/28 From - Total]],Dataset[[#This Row],[2027/28 To - Total]]) -> 0 | CO31: =Dataset[[#This Row],[2024/25 Baseline]]+Dataset[[#This Row],[2024/25 Total change]] -> 0 | CP31: =Dataset[[#This Row],[2025/26 Baseline]]+Dataset[[#This Row],[2025/26 Total change]] -> 0 | CQ31: =Dataset[[#This Row],[2026/27 Baseline]]+Dataset[[#This Row],[2026/27 Total change]] -> 0 | CR31: =Dataset[[#This Row],[2027/28 Baseline]]+Dataset[[#This Row],[2027/28 Total change]] -> 0
A32: NAT|Non-transfer item | B32: 16|Legal services (G&S) | C32: 2025_26 | D32: MTEC2025 | E32: 16 | F32: 1 | G32: 1 | H32: 16677 | I32: 14 | J32: 16 | K32: 01 | L32: 01 | M32: 016677 | N32: 000014 | O32: 16|01|01|000014 | P32: 01 | Q32: 01 | R32: 02 | S32: 14 | T32: 14 | U32: 01|01|02|14|14 | V32: National | W32: Basic Education | X32: Administration | Y32: Ministry | Z32: Non-transfer item | AA32: Current | AB32: Current payments | AC32: Goods and services | AD32: Legal services (G&S) | AE32: Legal services (G&S) | AF32: Learning and culture | AG32: Basic education | AH32: NAT | AI32: 0 | AJ32: 0 | AK32: 0 | AL32: 0 | AM32: 0 | AN32: 0 | AP32: 0 | AQ32: 0 | AR32: 0 | AS32: 0 | CB32: =Dataset[[#This Row],[2025/26 From - Spending review Topic 1]]+Dataset[[#This Row],[2025/26 From - Spending review Topic 2]]+Dataset[[#This Row],[2025/26 From - Spending review Topic 3]]+Dataset[[#This Row],[2025/26 From - Spending review Topic 4]]+Dataset[[#This Row],[2025/26 From - Other reallocations]] -> 0 | CC32: =Dataset[[#This Row],[2026/27 From - Spending review Topic 1]]+Dataset[[#This Row],[2026/27 From - Spending review Topic 2]]+Dataset[[#This Row],[2026/27 From - Spending review Topic 3]]+Dataset[[#This Row],[2026/27 From - Spending review Topic 4]]+Dataset[[#This Row],[2026/27 From - Other reallocations]] -> 0 | CD32: =Dataset[[#This Row],[2027/28 From - Spending review Topic 1]]+Dataset[[#This Row],[2027/28 From - Spending review Topic 2]]+Dataset[[#This Row],[2027/28 From - Spending review Topic 3]]+Dataset[[#This Row],[2027/28 From - Spending review Topic 4]]+Dataset[[#This Row],[2027/28 From - Other reallocations]] -> 0 | CE32: =Dataset[[#This Row],[2025/26 To - Spending review Topic 1]]+Dataset[[#This Row],[2025/26 To - Spending review Topic 2]]+Dataset[[#This Row],[2025/26 To - Spending review Topic 3]]+Dataset[[#This Row],[2025/26 To - Spending review Topic 4]]+Dataset[[#This Row],[2025/26 To - Other reallocations]] -> 0 | CF32: =Dataset[[#This Row],[2026/27 To - Spending review Topic 1]]+Dataset[[#This Row],[2026/27 To - Spending review Topic 2]]+Dataset[[#This Row],[2026/27 To - Spending review Topic 3]]+Dataset[[#This Row],[2026/27 To - Spending review Topic 4]]+Dataset[[#This Row],[2026/27 To - Other reallocations]] -> 0 | CG32: =Dataset[[#This Row],[2027/28 To - Spending review Topic 1]]+Dataset[[#This Row],[2027/28 To - Spending review Topic 2]]+Dataset[[#This Row],[2027/28 To - Spending review Topic 3]]+Dataset[[#This Row],[2027/28 To - Spending review Topic 4]]+Dataset[[#This Row],[2027/28 To - Other reallocations]] -> 0 | CH32: =Dataset[[#This Row],[2025/26 Reduction]]+Dataset[[#This Row],[2025/26 From - Total]] -> 0 | CI32: =Dataset[[#This Row],[2026/27 Reduction]]+Dataset[[#This Row],[2026/27 From - Total]] -> 0 | CJ32: =Dataset[[#This Row],[2027/28 Reduction]]+Dataset[[#This Row],[2027/28 From - Total]] -> 0 | CK32: =Dataset[[#This Row],[2024/25 Reduction]] -> 0 | CL32: =SUM(Dataset[[#This Row],[2025/26 Reduction]],Dataset[[#This Row],[2025/26 From - Total]],Dataset[[#This Row],[2025/26 To - Total]]) -> 0 | CM32: =SUM(Dataset[[#This Row],[2026/27 Reduction]],Dataset[[#This Row],[2026/27 From - Total]],Dataset[[#This Row],[2026/27 To - Total]]) -> 0 | CN32: =SUM(Dataset[[#This Row],[2027/28 Reduction]],Dataset[[#This Row],[2027/28 From - Total]],Dataset[[#This Row],[2027/28 To - Total]]) -> 0 | CO32: =Dataset[[#This Row],[2024/25 Baseline]]+Dataset[[#This Row],[2024/25 Total change]] -> 0 | CP32: =Dataset[[#This Row],[2025/26 Baseline]]+Dataset[[#This Row],[2025/26 Total change]] -> 0 | CQ32: =Dataset[[#This Row],[2026/27 Baseline]]+Dataset[[#This Row],[2026/27 Total change]] -> 0 | CR32: =Dataset[[#This Row],[2027/28 Baseline]]+Dataset[[#This Row],[2027/28 Total change]] -> 0
A33: NAT|Non-transfer item | B33: 16|Science and technological services | C33: 2025_26 | D33: MTEC2025 | E33: 16 | F33: 1 | G33: 1 | H33: 16678 | I33: 15 | J33: 16 | K33: 01 | L33: 01 | M33: 016678 | N33: 000015 | O33: 16|01|01|000015 | P33: 01 | Q33: 01 | R33: 02 | S33: 15 | T33: 15 | U33: 01|01|02|15|15 | V33: National | W33: Basic Education | X33: Administration | Y33: Ministry | Z33: Non-transfer item | AA33: Current | AB33: Current payments | AC33: Goods and services | AD33: Science and technological services | AE33: Science and technological services | AF33: Learning and culture | AG33: Basic education | AH33: NAT | AI33: 0 | AJ33: 0 | AK33: 0 | AL33: 0 | AM33: 0 | AN33: 0 | AP33: 0 | AQ33: 0 | AR33: 0 | AS33: 0 | CB33: =Dataset[[#This Row],[2025/26 From - Spending review Topic 1]]+Dataset[[#This Row],[2025/26 From - Spending review Topic 2]]+Dataset[[#This Row],[2025/26 From - Spending review Topic 3]]+Dataset[[#This Row],[2025/26 From - Spending review Topic 4]]+Dataset[[#This Row],[2025/26 From - Other reallocations]] -> 0 | CC33: =Dataset[[#This Row],[2026/27 From - Spending review Topic 1]]+Dataset[[#This Row],[2026/27 From - Spending review Topic 2]]+Dataset[[#This Row],[2026/27 From - Spending review Topic 3]]+Dataset[[#This Row],[2026/27 From - Spending review Topic 4]]+Dataset[[#This Row],[2026/27 From - Other reallocations]] -> 0 | CD33: =Dataset[[#This Row],[2027/28 From - Spending review Topic 1]]+Dataset[[#This Row],[2027/28 From - Spending review Topic 2]]+Dataset[[#This Row],[2027/28 From - Spending review Topic 3]]+Dataset[[#This Row],[2027/28 From - Spending review Topic 4]]+Dataset[[#This Row],[2027/28 From - Other reallocations]] -> 0 | CE33: =Dataset[[#This Row],[2025/26 To - Spending review Topic 1]]+Dataset[[#This Row],[2025/26 To - Spending review Topic 2]]+Dataset[[#This Row],[2025/26 To - Spending review Topic 3]]+Dataset[[#This Row],[2025/26 To - Spending review Topic 4]]+Dataset[[#This Row],[2025/26 To - Other reallocations]] -> 0 | CF33: =Dataset[[#This Row],[2026/27 To - Spending review Topic 1]]+Dataset[[#This Row],[2026/27 To - Spending review Topic 2]]+Dataset[[#This Row],[2026/27 To - Spending review Topic 3]]+Dataset[[#This Row],[2026/27 To - Spending review Topic 4]]+Dataset[[#This Row],[2026/27 To - Other reallocations]] -> 0 | CG33: =Dataset[[#This Row],[2027/28 To - Spending review Topic 1]]+Dataset[[#This Row],[2027/28 To - Spending review Topic 2]]+Dataset[[#This Row],[2027/28 To - Spending review Topic 3]]+Dataset[[#This Row],[2027/28 To - Spending review Topic 4]]+Dataset[[#This Row],[2027/28 To - Other reallocations]] -> 0 | CH33: =Dataset[[#This Row],[2025/26 Reduction]]+Dataset[[#This Row],[2025/26 From - Total]] -> 0 | CI33: =Dataset[[#This Row],[2026/27 Reduction]]+Dataset[[#This Row],[2026/27 From - Total]] -> 0 | CJ33: =Dataset[[#This Row],[2027/28 Reduction]]+Dataset[[#This Row],[2027/28 From - Total]] -> 0 | CK33: =Dataset[[#This Row],[2024/25 Reduction]] -> 0 | CL33: =SUM(Dataset[[#This Row],[2025/26 Reduction]],Dataset[[#This Row],[2025/26 From - Total]],Dataset[[#This Row],[2025/26 To - Total]]) -> 0 | CM33: =SUM(Dataset[[#This Row],[2026/27 Reduction]],Dataset[[#This Row],[2026/27 From - Total]],Dataset[[#This Row],[2026/27 To - Total]]) -> 0 | CN33: =SUM(Dataset[[#This Row],[2027/28 Reduction]],Dataset[[#This Row],[2027/28 From - Total]],Dataset[[#This Row],[2027/28 To - Total]]) -> 0 | CO33: =Dataset[[#This Row],[2024/25 Baseline]]+Dataset[[#This Row],[2024/25 Total change]] -> 0 | CP33: =Dataset[[#This Row],[2025/26 Baseline]]+Dataset[[#This Row],[2025/26 Total change]] -> 0 | CQ33: =Dataset[[#This Row],[2026/27 Baseline]]+Dataset[[#This Row],[2026/27 Total change]] -> 0 | CR33: =Dataset[[#This Row],[2027/28 Baseline]]+Dataset[[#This Row],[2027/28 Total change]] -> 0
A34: NAT|Non-transfer item | B34: 16|Contractors | C34: 2025_26 | D34: MTEC2025 | E34: 16 | F34: 1 | G34: 1 | H34: 16679 | I34: 16 | J34: 16 | K34: 01 | L34: 01 | M34: 016679 | N34: 000016 | O34: 16|01|01|000016 | P34: 01 | Q34: 01 | R34: 02 | S34: 16 | T34: 16 | U34: 01|01|02|16|16 | V34: National | W34: Basic Education | X34: Administration | Y34: Ministry | Z34: Non-transfer item | AA34: Current | AB34: Current payments | AC34: Goods and services | AD34: Contractors | AE34: Contractors | AF34: Learning and culture | AG34: Basic education | AH34: NAT | AI34: 0 | AJ34: 6 | AK34: 4 | AL34: 7 | AM34: 7 | AN34: 7 | AO34: 6 | AP34: 7 | AQ34: 9 | AR34: 9 | AS34: 9 | CB34: =Dataset[[#This Row],[2025/26 From - Spending review Topic 1]]+Dataset[[#This Row],[2025/26 From - Spending review Topic 2]]+Dataset[[#This Row],[2025/26 From - Spending review Topic 3]]+Dataset[[#This Row],[2025/26 From - Spending review Topic 4]]+Dataset[[#This Row],[2025/26 From - Other reallocations]] -> 0 | CC34: =Dataset[[#This Row],[2026/27 From - Spending review Topic 1]]+Dataset[[#This Row],[2026/27 From - Spending review Topic 2]]+Dataset[[#This Row],[2026/27 From - Spending review Topic 3]]+Dataset[[#This Row],[2026/27 From - Spending review Topic 4]]+Dataset[[#This Row],[2026/27 From - Other reallocations]] -> 0 | CD34: =Dataset[[#This Row],[2027/28 From - Spending review Topic 1]]+Dataset[[#This Row],[2027/28 From - Spending review Topic 2]]+Dataset[[#This Row],[2027/28 From - Spending review Topic 3]]+Dataset[[#This Row],[2027/28 From - Spending review Topic 4]]+Dataset[[#This Row],[2027/28 From - Other reallocations]] -> 0 | CE34: =Dataset[[#This Row],[2025/26 To - Spending review Topic 1]]+Dataset[[#This Row],[2025/26 To - Spending review Topic 2]]+Dataset[[#This Row],[2025/26 To - Spending review Topic 3]]+Dataset[[#This Row],[2025/26 To - Spending review Topic 4]]+Dataset[[#This Row],[2025/26 To - Other reallocations]] -> 0 | CF34: =Dataset[[#This Row],[2026/27 To - Spending review Topic 1]]+Dataset[[#This Row],[2026/27 To - Spending review Topic 2]]+Dataset[[#This Row],[2026/27 To - Spending review Topic 3]]+Dataset[[#This Row],[2026/27 To - Spending review Topic 4]]+Dataset[[#This Row],[2026/27 To - Other reallocations]] -> 0 | CG34: =Dataset[[#This Row],[2027/28 To - Spending review Topic 1]]+Dataset[[#This Row],[2027/28 To - Spending review Topic 2]]+Dataset[[#This Row],[2027/28 To - Spending review Topic 3]]+Dataset[[#This Row],[2027/28 To - Spending review Topic 4]]+Dataset[[#This Row],[2027/28 To - Other reallocations]] -> 0 | CH34: =Dataset[[#This Row],[2025/26 Reduction]]+Dataset[[#This Row],[2025/26 From - Total]] -> 0 | CI34: =Dataset[[#This Row],[2026/27 Reduction]]+Dataset[[#This Row],[2026/27 From - Total]] -> 0 | CJ34: =Dataset[[#This Row],[2027/28 Reduction]]+Dataset[[#This Row],[2027/28 From - Total]] -> 0 | CK34: =Dataset[[#This Row],[2024/25 Reduction]] -> 0 | CL34: =SUM(Dataset[[#This Row],[2025/26 Reduction]],Dataset[[#This Row],[2025/26 From - Total]],Dataset[[#This Row],[2025/26 To - Total]]) -> 0 | CM34: =SUM(Dataset[[#This Row],[2026/27 Reduction]],Dataset[[#This Row],[2026/27 From - Total]],Dataset[[#This Row],[2026/27 To - Total]]) -> 0 | CN34: =SUM(Dataset[[#This Row],[2027/28 Reduction]],Dataset[[#This Row],[2027/28 From - Total]],Dataset[[#This Row],[2027/28 To - Total]]) -> 0 | CO34: =Dataset[[#This Row],[2024/25 Baseline]]+Dataset[[#This Row],[2024/25 Total change]] -> 7 | CP34: =Dataset[[#This Row],[2025/26 Baseline]]+Dataset[[#This Row],[2025/26 Total change]] -> 9 | CQ34: =Dataset[[#This Row],[2026/27 Baseline]]+Dataset[[#This Row],[2026/27 Total change]] -> 9 | CR34: =Dataset[[#This Row],[2027/28 Baseline]]+Dataset[[#This Row],[2027/28 Total change]] -> 9
A35: NAT|Non-transfer item | B35: 16|Agency and support/outsourced services | C35: 2025_26 | D35: MTEC2025 | E35: 16 | F35: 1 | G35: 1 | H35: 16680 | I35: 17 | J35: 16 | K35: 01 | L35: 01 | M35: 016680 | N35: 000017 | O35: 16|01|01|000017 | P35: 01 | Q35: 01 | R35: 02 | S35: 17 | T35: 17 | U35: 01|01|02|17|17 | V35: National | W35: Basic Education | X35: Administration | Y35: Ministry | Z35: Non-transfer item | AA35: Current | AB35: Current payments | AC35: Goods and services | AD35: Agency and support/outsourced services | AE35: Agency and support/outsourced services | AF35: Learning and culture | AG35: Basic education | AH35: NAT | AI35: 0 | AJ35: 0 | AK35: 30 | AL35: 0 | AM35: 0 | AN35: 0 | AO35: 8 | AP35: 0 | AQ35: 0 | AR35: 0 | AS35: 0 | CB35: =Dataset[[#This Row],[2025/26 From - Spending review Topic 1]]+Dataset[[#This Row],[2025/26 From - Spending review Topic 2]]+Dataset[[#This Row],[2025/26 From - Spending review Topic 3]]+Dataset[[#This Row],[2025/26 From - Spending review Topic 4]]+Dataset[[#This Row],[2025/26 From - Other reallocations]] -> 0 | CC35: =Dataset[[#This Row],[2026/27 From - Spending review Topic 1]]+Dataset[[#This Row],[2026/27 From - Spending review Topic 2]]+Dataset[[#This Row],[2026/27 From - Spending review Topic 3]]+Dataset[[#This Row],[2026/27 From - Spending review Topic 4]]+Dataset[[#This Row],[2026/27 From - Other reallocations]] -> 0 | CD35: =Dataset[[#This Row],[2027/28 From - Spending review Topic 1]]+Dataset[[#This Row],[2027/28 From - Spending review Topic 2]]+Dataset[[#This Row],[2027/28 From - Spending review Topic 3]]+Dataset[[#This Row],[2027/28 From - Spending review Topic 4]]+Dataset[[#This Row],[2027/28 From - Other reallocations]] -> 0 | CE35: =Dataset[[#This Row],[2025/26 To - Spending review Topic 1]]+Dataset[[#This Row],[2025/26 To - Spending review Topic 2]]+Dataset[[#This Row],[2025/26 To - Spending review Topic 3]]+Dataset[[#This Row],[2025/26 To - Spending review Topic 4]]+Dataset[[#This Row],[2025/26 To - Other reallocations]] -> 0 | CF35: =Dataset[[#This Row],[2026/27 To - Spending review Topic 1]]+Dataset[[#This Row],[2026/27 To - Spending review Topic 2]]+Dataset[[#This Row],[2026/27 To - Spending review Topic 3]]+Dataset[[#This Row],[2026/27 To - Spending review Topic 4]]+Dataset[[#This Row],[2026/27 To - Other reallocations]] -> 0 | CG35: =Dataset[[#This Row],[2027/28 To - Spending review Topic 1]]+Dataset[[#This Row],[2027/28 To - Spending review Topic 2]]+Dataset[[#This Row],[2027/28 To - Spending review Topic 3]]+Dataset[[#This Row],[2027/28 To - Spending review Topic 4]]+Dataset[[#This Row],[2027/28 To - Other reallocations]] -> 0 | CH35: =Dataset[[#This Row],[2025/26 Reduction]]+Dataset[[#This Row],[2025/26 From - Total]] -> 0 | CI35: =Dataset[[#This Row],[2026/27 Reduction]]+Dataset[[#This Row],[2026/27 From - Total]] -> 0 | CJ35: =Dataset[[#This Row],[2027/28 Reduction]]+Dataset[[#This Row],[2027/28 From - Total]] -> 0 | CK35: =Dataset[[#This Row],[2024/25 Reduction]] -> 0 | CL35: =SUM(Dataset[[#This Row],[2025/26 Reduction]],Dataset[[#This Row],[2025/26 From - Total]],Dataset[[#This Row],[2025/26 To - Total]]) -> 0 | CM35: =SUM(Dataset[[#This Row],[2026/27 Reduction]],Dataset[[#This Row],[2026/27 From - Total]],Dataset[[#This Row],[2026/27 To - Total]]) -> 0 | CN35: =SUM(Dataset[[#This Row],[2027/28 Reduction]],Dataset[[#This Row],[2027/28 From - Total]],Dataset[[#This Row],[2027/28 To - Total]]) -> 0 | CO35: =Dataset[[#This Row],[2024/25 Baseline]]+Dataset[[#This Row],[2024/25 Total change]] -> 0 | CP35: =Dataset[[#This Row],[2025/26 Baseline]]+Dataset[[#This Row],[2025/26 Total change]] -> 0 | CQ35: =Dataset[[#This Row],[2026/27 Baseline]]+Dataset[[#This Row],[2026/27 Total change]] -> 0 | CR35: =Dataset[[#This Row],[2027/28 Baseline]]+Dataset[[#This Row],[2027/28 Total change]] -> 0
A36: NAT|Non-transfer item | B36: 16|Entertainment | C36: 2025_26 | D36: MTEC2025 | E36: 16 | F36: 1 | G36: 1 | H36: 16681 | I36: 18 | J36: 16 | K36: 01 | L36: 01 | M36: 016681 | N36: 000018 | O36: 16|01|01|000018 | P36: 01 | Q36: 01 | R36: 02 | S36: 18 | T36: 18 | U36: 01|01|02|18|18 | V36: National | W36: Basic Education | X36: Administration | Y36: Ministry | Z36: Non-transfer item | AA36: Current | AB36: Current payments | AC36: Goods and services | AD36: Entertainment | AE36: Entertainment | AF36: Learning and culture | AG36: Basic education | AH36: NAT | AI36: 0 | AJ36: 3 | AK36: 1 | AL36: 0 | AM36: 0 | AN36: 0 | AO36: 2 | AP36: 0 | AQ36: 0 | AR36: 0 | AS36: 0 | CB36: =Dataset[[#This Row],[2025/26 From - Spending review Topic 1]]+Dataset[[#This Row],[2025/26 From - Spending review Topic 2]]+Dataset[[#This Row],[2025/26 From - Spending review Topic 3]]+Dataset[[#This Row],[2025/26 From - Spending review Topic 4]]+Dataset[[#This Row],[2025/26 From - Other reallocations]] -> 0 | CC36: =Dataset[[#This Row],[2026/27 From - Spending review Topic 1]]+Dataset[[#This Row],[2026/27 From - Spending review Topic 2]]+Dataset[[#This Row],[2026/27 From - Spending review Topic 3]]+Dataset[[#This Row],[2026/27 From - Spending review Topic 4]]+Dataset[[#This Row],[2026/27 From - Other reallocations]] -> 0 | CD36: =Dataset[[#This Row],[2027/28 From - Spending review Topic 1]]+Dataset[[#This Row],[2027/28 From - Spending review Topic 2]]+Dataset[[#This Row],[2027/28 From - Spending review Topic 3]]+Dataset[[#This Row],[2027/28 From - Spending review Topic 4]]+Dataset[[#This Row],[2027/28 From - Other reallocations]] -> 0 | CE36: =Dataset[[#This Row],[2025/26 To - Spending review Topic 1]]+Dataset[[#This Row],[2025/26 To - Spending review Topic 2]]+Dataset[[#This Row],[2025/26 To - Spending review Topic 3]]+Dataset[[#This Row],[2025/26 To - Spending review Topic 4]]+Dataset[[#This Row],[2025/26 To - Other reallocations]] -> 0 | CF36: =Dataset[[#This Row],[2026/27 To - Spending review Topic 1]]+Dataset[[#This Row],[2026/27 To - Spending review Topic 2]]+Dataset[[#This Row],[2026/27 To - Spending review Topic 3]]+Dataset[[#This Row],[2026/27 To - Spending review Topic 4]]+Dataset[[#This Row],[2026/27 To - Other reallocations]] -> 0 | CG36: =Dataset[[#This Row],[2027/28 To - Spending review Topic 1]]+Dataset[[#This Row],[2027/28 To - Spending review Topic 2]]+Dataset[[#This Row],[2027/28 To - Spending review Topic 3]]+Dataset[[#This Row],[2027/28 To - Spending review Topic 4]]+Dataset[[#This Row],[2027/28 To - Other reallocations]] -> 0 | CH36: =Dataset[[#This Row],[2025/26 Reduction]]+Dataset[[#This Row],[2025/26 From - Total]] -> 0 | CI36: =Dataset[[#This Row],[2026/27 Reduction]]+Dataset[[#This Row],[2026/27 From - Total]] -> 0 | CJ36: =Dataset[[#This Row],[2027/28 Reduction]]+Dataset[[#This Row],[2027/28 From - Total]] -> 0 | CK36: =Dataset[[#This Row],[2024/25 Reduction]] -> 0 | CL36: =SUM(Dataset[[#This Row],[2025/26 Reduction]],Dataset[[#This Row],[2025/26 From - Total]],Dataset[[#This Row],[2025/26 To - Total]]) -> 0 | CM36: =SUM(Dataset[[#This Row],[2026/27 Reduction]],Dataset[[#This Row],[2026/27 From - Total]],Dataset[[#This Row],[2026/27 To - Total]]) -> 0 | CN36: =SUM(Dataset[[#This Row],[2027/28 Reduction]],Dataset[[#This Row],[2027/28 From - Total]],Dataset[[#This Row],[2027/28 To - Total]]) -> 0 | CO36: =Dataset[[#This Row],[2024/25 Baseline]]+Dataset[[#This Row],[2024/25 Total change]] -> 0 | CP36: =Dataset[[#This Row],[2025/26 Baseline]]+Dataset[[#This Row],[2025/26 Total change]] -> 0 | CQ36: =Dataset[[#This Row],[2026/27 Baseline]]+Dataset[[#This Row],[2026/27 Total change]] -> 0 | CR36: =Dataset[[#This Row],[2027/28 Baseline]]+Dataset[[#This Row],[2027/28 Total change]] -> 0
A37: NAT|Non-transfer item | B37: 16|Fleet services (including government motor transport) | C37: 2025_26 | D37: MTEC2025 | E37: 16 | F37: 1 | G37: 1 | H37: 16682 | I37: 19 | J37: 16 | K37: 01 | L37: 01 | M37: 016682 | N37: 000019 | O37: 16|01|01|000019 | P37: 01 | Q37: 01 | R37: 02 | S37: 19 | T37: 19 | U37: 01|01|02|19|19 | V37: National | W37: Basic Education | X37: Administration | Y37: Ministry | Z37: Non-transfer item | AA37: Current | AB37: Current payments | AC37: Goods and services | AD37: Fleet services (including government motor transport) | AE37: Fleet services (including government motor transport) | AF37: Learning and culture | AG37: Basic education | AH37: NAT | AI37: 1794 | AJ37: 1966 | AK37: 2062 | AL37: 2101 | AM37: 1101 | AN37: 1101 | AO37: 1048 | AP37: 2159 | AQ37: 2256 | AR37: 2359 | AS37: 2466 | CB37: =Dataset[[#This Row],[2025/26 From - Spending review Topic 1]]+Dataset[[#This Row],[2025/26 From - Spending review Topic 2]]+Dataset[[#This Row],[2025/26 From - Spending review Topic 3]]+Dataset[[#This Row],[2025/26 From - Spending review Topic 4]]+Dataset[[#This Row],[2025/26 From - Other reallocations]] -> 0 | CC37: =Dataset[[#This Row],[2026/27 From - Spending review Topic 1]]+Dataset[[#This Row],[2026/27 From - Spending review Topic 2]]+Dataset[[#This Row],[2026/27 From - Spending review Topic 3]]+Dataset[[#This Row],[2026/27 From - Spending review Topic 4]]+Dataset[[#This Row],[2026/27 From - Other reallocations]] -> 0 | CD37: =Dataset[[#This Row],[2027/28 From - Spending review Topic 1]]+Dataset[[#This Row],[2027/28 From - Spending review Topic 2]]+Dataset[[#This Row],[2027/28 From - Spending review Topic 3]]+Dataset[[#This Row],[2027/28 From - Spending review Topic 4]]+Dataset[[#This Row],[2027/28 From - Other reallocations]] -> 0 | CE37: =Dataset[[#This Row],[2025/26 To - Spending review Topic 1]]+Dataset[[#This Row],[2025/26 To - Spending review Topic 2]]+Dataset[[#This Row],[2025/26 To - Spending review Topic 3]]+Dataset[[#This Row],[2025/26 To - Spending review Topic 4]]+Dataset[[#This Row],[2025/26 To - Other reallocations]] -> 0 | CF37: =Dataset[[#This Row],[2026/27 To - Spending review Topic 1]]+Dataset[[#This Row],[2026/27 To - Spending review Topic 2]]+Dataset[[#This Row],[2026/27 To - Spending review Topic 3]]+Dataset[[#This Row],[2026/27 To - Spending review Topic 4]]+Dataset[[#This Row],[2026/27 To - Other reallocations]] -> 0 | CG37: =Dataset[[#This Row],[2027/28 To - Spending review Topic 1]]+Dataset[[#This Row],[2027/28 To - Spending review Topic 2]]+Dataset[[#This Row],[2027/28 To - Spending review Topic 3]]+Dataset[[#This Row],[2027/28 To - Spending review Topic 4]]+Dataset[[#This Row],[2027/28 To - Other reallocations]] -> 0 | CH37: =Dataset[[#This Row],[2025/26 Reduction]]+Dataset[[#This Row],[2025/26 From - Total]] -> 0 | CI37: =Dataset[[#This Row],[2026/27 Reduction]]+Dataset[[#This Row],[2026/27 From - Total]] -> 0 | CJ37: =Dataset[[#This Row],[2027/28 Reduction]]+Dataset[[#This Row],[2027/28 From - Total]] -> 0 | CK37: =Dataset[[#This Row],[2024/25 Reduction]] -> 0 | CL37: =SUM(Dataset[[#This Row],[2025/26 Reduction]],Dataset[[#This Row],[2025/26 From - Total]],Dataset[[#This Row],[2025/26 To - Total]]) -> 0 | CM37: =SUM(Dataset[[#This Row],[2026/27 Reduction]],Dataset[[#This Row],[2026/27 From - Total]],Dataset[[#This Row],[2026/27 To - Total]]) -> 0 | CN37: =SUM(Dataset[[#This Row],[2027/28 Reduction]],Dataset[[#This Row],[2027/28 From - Total]],Dataset[[#This Row],[2027/28 To - Total]]) -> 0 | CO37: =Dataset[[#This Row],[2024/25 Baseline]]+Dataset[[#This Row],[2024/25 Total change]] -> 2159 | CP37: =Dataset[[#This Row],[2025/26 Baseline]]+Dataset[[#This Row],[2025/26 Total change]] -> 2256 | CQ37: =Dataset[[#This Row],[2026/27 Baseline]]+Dataset[[#This Row],[2026/27 Total change]] -> 2359 | CR37: =Dataset[[#This Row],[2027/28 Baseline]]+Dataset[[#This Row],[2027/28 Total change]] -> 2466
A38: NAT|Non-transfer item | B38: 16|Housing | C38: 2025_26 | D38: MTEC2025 | E38: 16 | F38: 1 | G38: 1 | H38: 16683 | I38: 20 | J38: 16 | K38: 01 | L38: 01 | M38: 016683 | N38: 000020 | O38: 16|01|01|000020 | P38: 01 | Q38: 01 | R38: 02 | S38: 20 | T38: 20 | U38: 01|01|02|20|20 | V38: National | W38: Basic Education | X38: Administration | Y38: Ministry | Z38: Non-transfer item | AA38: Current | AB38: Current payments | AC38: Goods and services | AD38: Housing | AE38: Housing | AF38: Learning and culture | AG38: Basic education | AH38: NAT | AI38: 0 | AJ38: 0 | AK38: 0 | AL38: 0 | AM38: 0 | AN38: 0 | AP38: 0 | AQ38: 0 | AR38: 0 | AS38: 0 | CB38: =Dataset[[#This Row],[2025/26 From - Spending review Topic 1]]+Dataset[[#This Row],[2025/26 From - Spending review Topic 2]]+Dataset[[#This Row],[2025/26 From - Spending review Topic 3]]+Dataset[[#This Row],[2025/26 From - Spending review Topic 4]]+Dataset[[#This Row],[2025/26 From - Other reallocations]] -> 0 | CC38: =Dataset[[#This Row],[2026/27 From - Spending review Topic 1]]+Dataset[[#This Row],[2026/27 From - Spending review Topic 2]]+Dataset[[#This Row],[2026/27 From - Spending review Topic 3]]+Dataset[[#This Row],[2026/27 From - Spending review Topic 4]]+Dataset[[#This Row],[2026/27 From - Other reallocations]] -> 0 | CD38: =Dataset[[#This Row],[2027/28 From - Spending review Topic 1]]+Dataset[[#This Row],[2027/28 From - Spending review Topic 2]]+Dataset[[#This Row],[2027/28 From - Spending review Topic 3]]+Dataset[[#This Row],[2027/28 From - Spending review Topic 4]]+Dataset[[#This Row],[2027/28 From - Other reallocations]] -> 0 | CE38: =Dataset[[#This Row],[2025/26 To - Spending review Topic 1]]+Dataset[[#This Row],[2025/26 To - Spending review Topic 2]]+Dataset[[#This Row],[2025/26 To - Spending review Topic 3]]+Dataset[[#This Row],[2025/26 To - Spending review Topic 4]]+Dataset[[#This Row],[2025/26 To - Other reallocations]] -> 0 | CF38: =Dataset[[#This Row],[2026/27 To - Spending review Topic 1]]+Dataset[[#This Row],[2026/27 To - Spending review Topic 2]]+Dataset[[#This Row],[2026/27 To - Spending review Topic 3]]+Dataset[[#This Row],[2026/27 To - Spending review Topic 4]]+Dataset[[#This Row],[2026/27 To - Other reallocations]] -> 0 | CG38: =Dataset[[#This Row],[2027/28 To - Spending review Topic 1]]+Dataset[[#This Row],[2027/28 To - Spending review Topic 2]]+Dataset[[#This Row],[2027/28 To - Spending review Topic 3]]+Dataset[[#This Row],[2027/28 To - Spending review Topic 4]]+Dataset[[#This Row],[2027/28 To - Other reallocations]] -> 0 | CH38: =Dataset[[#This Row],[2025/26 Reduction]]+Dataset[[#This Row],[2025/26 From - Total]] -> 0 | CI38: =Dataset[[#This Row],[2026/27 Reduction]]+Dataset[[#This Row],[2026/27 From - Total]] -> 0 | CJ38: =Dataset[[#This Row],[2027/28 Reduction]]+Dataset[[#This Row],[2027/28 From - Total]] -> 0 | CK38: =Dataset[[#This Row],[2024/25 Reduction]] -> 0 | CL38: =SUM(Dataset[[#This Row],[2025/26 Reduction]],Dataset[[#This Row],[2025/26 From - Total]],Dataset[[#This Row],[2025/26 To - Total]]) -> 0 | CM38: =SUM(Dataset[[#This Row],[2026/27 Reduction]],Dataset[[#This Row],[2026/27 From - Total]],Dataset[[#This Row],[2026/27 To - Total]]) -> 0 | CN38: =SUM(Dataset[[#This Row],[2027/28 Reduction]],Dataset[[#This Row],[2027/28 From - Total]],Dataset[[#This Row],[2027/28 To - Total]]) -> 0 | CO38: =Dataset[[#This Row],[2024/25 Baseline]]+Dataset[[#This Row],[2024/25 Total change]] -> 0 | CP38: =Dataset[[#This Row],[2025/26 Baseline]]+Dataset[[#This Row],[2025/26 Total change]] -> 0 | CQ38: =Dataset[[#This Row],[2026/27 Baseline]]+Dataset[[#This Row],[2026/27 Total change]] -> 0 | CR38: =Dataset[[#This Row],[2027/28 Baseline]]+Dataset[[#This Row],[2027/28 Total change]] -> 0
A39: NAT|Non-transfer item | B39: 16|Inventory: Clothing material and accessories | C39: 2025_26 | D39: MTEC2025 | E39: 16 | F39: 1 | G39: 1 | H39: 16684 | I39: 21 | J39: 16 | K39: 01 | L39: 01 | M39: 016684 | N39: 000021 | O39: 16|01|01|000021 | P39: 01 | Q39: 01 | R39: 02 | S39: 21 | T39: 21 | U39: 01|01|02|21|21 | V39: National | W39: Basic Education | X39: Administration | Y39: Ministry | Z39: Non-transfer item | AA39: Current | AB39: Current payments | AC39: Goods and services | AD39: Inventory: Clothing material and accessories | AE39: Inventory: Clothing material and accessories | AF39: Learning and culture | AG39: Basic education | AH39: NAT | AI39: 0 | AJ39: 0 | AK39: 0 | AL39: 0 | AM39: 0 | AN39: 0 | AP39: 0 | AQ39: 0 | AR39: 0 | AS39: 0 | CB39: =Dataset[[#This Row],[2025/26 From - Spending review Topic 1]]+Dataset[[#This Row],[2025/26 From - Spending review Topic 2]]+Dataset[[#This Row],[2025/26 From - Spending review Topic 3]]+Dataset[[#This Row],[2025/26 From - Spending review Topic 4]]+Dataset[[#This Row],[2025/26 From - Other reallocations]] -> 0 | CC39: =Dataset[[#This Row],[2026/27 From - Spending review Topic 1]]+Dataset[[#This Row],[2026/27 From - Spending review Topic 2]]+Dataset[[#This Row],[2026/27 From - Spending review Topic 3]]+Dataset[[#This Row],[2026/27 From - Spending review Topic 4]]+Dataset[[#This Row],[2026/27 From - Other reallocations]] -> 0 | CD39: =Dataset[[#This Row],[2027/28 From - Spending review Topic 1]]+Dataset[[#This Row],[2027/28 From - Spending review Topic 2]]+Dataset[[#This Row],[2027/28 From - Spending review Topic 3]]+Dataset[[#This Row],[2027/28 From - Spending review Topic 4]]+Dataset[[#This Row],[2027/28 From - Other reallocations]] -> 0 | CE39: =Dataset[[#This Row],[2025/26 To - Spending review Topic 1]]+Dataset[[#This Row],[2025/26 To - Spending review Topic 2]]+Dataset[[#This Row],[2025/26 To - Spending review Topic 3]]+Dataset[[#This Row],[2025/26 To - Spending review Topic 4]]+Dataset[[#This Row],[2025/26 To - Other reallocations]] -> 0 | CF39: =Dataset[[#This Row],[2026/27 To - Spending review Topic 1]]+Dataset[[#This Row],[2026/27 To - Spending review Topic 2]]+Dataset[[#This Row],[2026/27 To - Spending review Topic 3]]+Dataset[[#This Row],[2026/27 To - Spending review Topic 4]]+Dataset[[#This Row],[2026/27 To - Other reallocations]] -> 0 | CG39: =Dataset[[#This Row],[2027/28 To - Spending review Topic 1]]+Dataset[[#This Row],[2027/28 To - Spending review Topic 2]]+Dataset[[#This Row],[2027/28 To - Spending review Topic 3]]+Dataset[[#This Row],[2027/28 To - Spending review Topic 4]]+Dataset[[#This Row],[2027/28 To - Other reallocations]] -> 0 | CH39: =Dataset[[#This Row],[2025/26 Reduction]]+Dataset[[#This Row],[2025/26 From - Total]] -> 0 | CI39: =Dataset[[#This Row],[2026/27 Reduction]]+Dataset[[#This Row],[2026/27 From - Total]] -> 0 | CJ39: =Dataset[[#This Row],[2027/28 Reduction]]+Dataset[[#This Row],[2027/28 From - Total]] -> 0 | CK39: =Dataset[[#This Row],[2024/25 Reduction]] -> 0 | CL39: =SUM(Dataset[[#This Row],[2025/26 Reduction]],Dataset[[#This Row],[2025/26 From - Total]],Dataset[[#This Row],[2025/26 To - Total]]) -> 0 | CM39: =SUM(Dataset[[#This Row],[2026/27 Reduction]],Dataset[[#This Row],[2026/27 From - Total]],Dataset[[#This Row],[2026/27 To - Total]]) -> 0 | CN39: =SUM(Dataset[[#This Row],[2027/28 Reduction]],Dataset[[#This Row],[2027/28 From - Total]],Dataset[[#This Row],[2027/28 To - Total]]) -> 0 | CO39: =Dataset[[#This Row],[2024/25 Baseline]]+Dataset[[#This Row],[2024/25 Total change]] -> 0 | CP39: =Dataset[[#This Row],[2025/26 Baseline]]+Dataset[[#This Row],[2025/26 Total change]] -> 0 | CQ39: =Dataset[[#This Row],[2026/27 Baseline]]+Dataset[[#This Row],[2026/27 Total change]] -> 0 | CR39: =Dataset[[#This Row],[2027/28 Baseline]]+Dataset[[#This Row],[2027/28 Total change]] -> 0
A40: NAT|Non-transfer item | B40: 16|Inventory: Farming supplies | C40: 2025_26 | D40: MTEC2025 | E40: 16 | F40: 1 | G40: 1 | H40: 16685 | I40: 22 | J40: 16 | K40: 01 | L40: 01 | M40: 016685 | N40: 000022 | O40: 16|01|01|000022 | P40: 01 | Q40: 01 | R40: 02 | S40: 22 | T40: 22 | U40: 01|01|02|22|22 | V40: National | W40: Basic Education | X40: Administration | Y40: Ministry | Z40: Non-transfer item | AA40: Current | AB40: Current payments | AC40: Goods and services | AD40: Inventory: Farming supplies | AE40: Inventory: Farming supplies | AF40: Learning and culture | AG40: Basic education | AH40: NAT | AI40: 0 | AJ40: 0 | AK40: 0 | AL40: 0 | AM40: 0 | AN40: 0 | AP40: 0 | AQ40: 0 | AR40: 0 | AS40: 0 | CB40: =Dataset[[#This Row],[2025/26 From - Spending review Topic 1]]+Dataset[[#This Row],[2025/26 From - Spending review Topic 2]]+Dataset[[#This Row],[2025/26 From - Spending review Topic 3]]+Dataset[[#This Row],[2025/26 From - Spending review Topic 4]]+Dataset[[#This Row],[2025/26 From - Other reallocations]] -> 0 | CC40: =Dataset[[#This Row],[2026/27 From - Spending review Topic 1]]+Dataset[[#This Row],[2026/27 From - Spending review Topic 2]]+Dataset[[#This Row],[2026/27 From - Spending review Topic 3]]+Dataset[[#This Row],[2026/27 From - Spending review Topic 4]]+Dataset[[#This Row],[2026/27 From - Other reallocations]] -> 0 | CD40: =Dataset[[#This Row],[2027/28 From - Spending review Topic 1]]+Dataset[[#This Row],[2027/28 From - Spending review Topic 2]]+Dataset[[#This Row],[2027/28 From - Spending review Topic 3]]+Dataset[[#This Row],[2027/28 From - Spending review Topic 4]]+Dataset[[#This Row],[2027/28 From - Other reallocations]] -> 0 | CE40: =Dataset[[#This Row],[2025/26 To - Spending review Topic 1]]+Dataset[[#This Row],[2025/26 To - Spending review Topic 2]]+Dataset[[#This Row],[2025/26 To - Spending review Topic 3]]+Dataset[[#This Row],[2025/26 To - Spending review Topic 4]]+Dataset[[#This Row],[2025/26 To - Other reallocations]] -> 0 | CF40: =Dataset[[#This Row],[2026/27 To - Spending review Topic 1]]+Dataset[[#This Row],[2026/27 To - Spending review Topic 2]]+Dataset[[#This Row],[2026/27 To - Spending review Topic 3]]+Dataset[[#This Row],[2026/27 To - Spending review Topic 4]]+Dataset[[#This Row],[2026/27 To - Other reallocations]] -> 0 | CG40: =Dataset[[#This Row],[2027/28 To - Spending review Topic 1]]+Dataset[[#This Row],[2027/28 To - Spending review Topic 2]]+Dataset[[#This Row],[2027/28 To - Spending review Topic 3]]+Dataset[[#This Row],[2027/28 To - Spending review Topic 4]]+Dataset[[#This Row],[2027/28 To - Other reallocations]] -> 0 | CH40: =Dataset[[#This Row],[2025/26 Reduction]]+Dataset[[#This Row],[2025/26 From - Total]] -> 0 | CI40: =Dataset[[#This Row],[2026/27 Reduction]]+Dataset[[#This Row],[2026/27 From - Total]] -> 0 | CJ40: =Dataset[[#This Row],[2027/28 Reduction]]+Dataset[[#This Row],[2027/28 From - Total]] -> 0 | CK40: =Dataset[[#This Row],[2024/25 Reduction]] -> 0 | CL40: =SUM(Dataset[[#This Row],[2025/26 Reduction]],Dataset[[#This Row],[2025/26 From - Total]],Dataset[[#This Row],[2025/26 To - Total]]) -> 0 | CM40: =SUM(Dataset[[#This Row],[2026/27 Reduction]],Dataset[[#This Row],[2026/27 From - Total]],Dataset[[#This Row],[2026/27 To - Total]]) -> 0 | CN40: =SUM(Dataset[[#This Row],[2027/28 Reduction]],Dataset[[#This Row],[2027/28 From - Total]],Dataset[[#This Row],[2027/28 To - Total]]) -> 0 | CO40: =Dataset[[#This Row],[2024/25 Baseline]]+Dataset[[#This Row],[2024/25 Total change]] -> 0 | CP40: =Dataset[[#This Row],[2025/26 Baseline]]+Dataset[[#This Row],[2025/26 Total change]] -> 0 | CQ40: =Dataset[[#This Row],[2026/27 Baseline]]+Dataset[[#This Row],[2026/27 Total change]] -> 0 | CR40: =Dataset[[#This Row],[2027/28 Baseline]]+Dataset[[#This Row],[2027/28 Total change]] -> 0
A41: NAT|Non-transfer item | B41: 16|Inventory: Food and food supplies | C41: 2025_26 | D41: MTEC2025 | E41: 16 | F41: 1 | G41: 1 | H41: 16686 | I41: 23 | J41: 16 | K41: 01 | L41: 01 | M41: 016686 | N41: 000023 | O41: 16|01|01|000023 | P41: 01 | Q41: 01 | R41: 02 | S41: 23 | T41: 23 | U41: 01|01|02|23|23 | V41: National | W41: Basic Education | X41: Administration | Y41: Ministry | Z41: Non-transfer item | AA41: Current | AB41: Current payments | AC41: Goods and services | AD41: Inventory: Food and food supplies | AE41: Inventory: Food and food supplies | AF41: Learning and culture | AG41: Basic education | AH41: NAT | AI41: 0 | AJ41: 0 | AK41: 0 | AL41: 0 | AM41: 0 | AN41: 0 | AP41: 0 | AQ41: 0 | AR41: 0 | AS41: 0 | CB41: =Dataset[[#This Row],[2025/26 From - Spending review Topic 1]]+Dataset[[#This Row],[2025/26 From - Spending review Topic 2]]+Dataset[[#This Row],[2025/26 From - Spending review Topic 3]]+Dataset[[#This Row],[2025/26 From - Spending review Topic 4]]+Dataset[[#This Row],[2025/26 From - Other reallocations]] -> 0 | CC41: =Dataset[[#This Row],[2026/27 From - Spending review Topic 1]]+Dataset[[#This Row],[2026/27 From - Spending review Topic 2]]+Dataset[[#This Row],[2026/27 From - Spending review Topic 3]]+Dataset[[#This Row],[2026/27 From - Spending review Topic 4]]+Dataset[[#This Row],[2026/27 From - Other reallocations]] -> 0 | CD41: =Dataset[[#This Row],[2027/28 From - Spending review Topic 1]]+Dataset[[#This Row],[2027/28 From - Spending review Topic 2]]+Dataset[[#This Row],[2027/28 From - Spending review Topic 3]]+Dataset[[#This Row],[2027/28 From - Spending review Topic 4]]+Dataset[[#This Row],[2027/28 From - Other reallocations]] -> 0 | CE41: =Dataset[[#This Row],[2025/26 To - Spending review Topic 1]]+Dataset[[#This Row],[2025/26 To - Spending review Topic 2]]+Dataset[[#This Row],[2025/26 To - Spending review Topic 3]]+Dataset[[#This Row],[2025/26 To - Spending review Topic 4]]+Dataset[[#This Row],[2025/26 To - Other reallocations]] -> 0 | CF41: =Dataset[[#This Row],[2026/27 To - Spending review Topic 1]]+Dataset[[#This Row],[2026/27 To - Spending review Topic 2]]+Dataset[[#This Row],[2026/27 To - Spending review Topic 3]]+Dataset[[#This Row],[2026/27 To - Spending review Topic 4]]+Dataset[[#This Row],[2026/27 To - Other reallocations]] -> 0 | CG41: =Dataset[[#This Row],[2027/28 To - Spending review Topic 1]]+Dataset[[#This Row],[2027/28 To - Spending review Topic 2]]+Dataset[[#This Row],[2027/28 To - Spending review Topic 3]]+Dataset[[#This Row],[2027/28 To - Spending review Topic 4]]+Dataset[[#This Row],[2027/28 To - Other reallocations]] -> 0 | CH41: =Dataset[[#This Row],[2025/26 Reduction]]+Dataset[[#This Row],[2025/26 From - Total]] -> 0 | CI41: =Dataset[[#This Row],[2026/27 Reduction]]+Dataset[[#This Row],[2026/27 From - Total]] -> 0 | CJ41: =Dataset[[#This Row],[2027/28 Reduction]]+Dataset[[#This Row],[2027/28 From - Total]] -> 0 | CK41: =Dataset[[#This Row],[2024/25 Reduction]] -> 0 | CL41: =SUM(Dataset[[#This Row],[2025/26 Reduction]],Dataset[[#This Row],[2025/26 From - Total]],Dataset[[#This Row],[2025/26 To - Total]]) -> 0 | CM41: =SUM(Dataset[[#This Row],[2026/27 Reduction]],Dataset[[#This Row],[2026/27 From - Total]],Dataset[[#This Row],[2026/27 To - Total]]) -> 0 | CN41: =SUM(Dataset[[#This Row],[2027/28 Reduction]],Dataset[[#This Row],[2027/28 From - Total]],Dataset[[#This Row],[2027/28 To - Total]]) -> 0 | CO41: =Dataset[[#This Row],[2024/25 Baseline]]+Dataset[[#This Row],[2024/25 Total change]] -> 0 | CP41: =Dataset[[#This Row],[2025/26 Baseline]]+Dataset[[#This Row],[2025/26 Total change]] -> 0 | CQ41: =Dataset[[#This Row],[2026/27 Baseline]]+Dataset[[#This Row],[2026/27 Total change]] -> 0 | CR41: =Dataset[[#This Row],[2027/28 Baseline]]+Dataset[[#This Row],[2027/28 Total change]] -> 0
A42: NAT|Non-transfer item | B42: 16|Inventory: Fuel, oil and gas | C42: 2025_26 | D42: MTEC2025 | E42: 16 | F42: 1 | G42: 1 | H42: 16687 | I42: 24 | J42: 16 | K42: 01 | L42: 01 | M42: 016687 | N42: 000024 | O42: 16|01|01|000024 | P42: 01 | Q42: 01 | R42: 02 | S42: 24 | T42: 24 | U42: 01|01|02|24|24 | V42: National | W42: Basic Education | X42: Administration | Y42: Ministry | Z42: Non-transfer item | AA42: Current | AB42: Current payments | AC42: Goods and services | AD42: Inventory: Fuel, oil and gas | AE42: Inventory: Fuel, oil and gas | AF42: Learning and culture | AG42: Basic education | AH42: NAT | AI42: 0 | AJ42: 0 | AK42: 0 | AL42: 0 | AM42: 0 | AN42: 0 | AP42: 0 | AQ42: 0 | AR42: 0 | AS42: 0 | CB42: =Dataset[[#This Row],[2025/26 From - Spending review Topic 1]]+Dataset[[#This Row],[2025/26 From - Spending review Topic 2]]+Dataset[[#This Row],[2025/26 From - Spending review Topic 3]]+Dataset[[#This Row],[2025/26 From - Spending review Topic 4]]+Dataset[[#This Row],[2025/26 From - Other reallocations]] -> 0 | CC42: =Dataset[[#This Row],[2026/27 From - Spending review Topic 1]]+Dataset[[#This Row],[2026/27 From - Spending review Topic 2]]+Dataset[[#This Row],[2026/27 From - Spending review Topic 3]]+Dataset[[#This Row],[2026/27 From - Spending review Topic 4]]+Dataset[[#This Row],[2026/27 From - Other reallocations]] -> 0 | CD42: =Dataset[[#This Row],[2027/28 From - Spending review Topic 1]]+Dataset[[#This Row],[2027/28 From - Spending review Topic 2]]+Dataset[[#This Row],[2027/28 From - Spending review Topic 3]]+Dataset[[#This Row],[2027/28 From - Spending review Topic 4]]+Dataset[[#This Row],[2027/28 From - Other reallocations]] -> 0 | CE42: =Dataset[[#This Row],[2025/26 To - Spending review Topic 1]]+Dataset[[#This Row],[2025/26 To - Spending review Topic 2]]+Dataset[[#This Row],[2025/26 To - Spending review Topic 3]]+Dataset[[#This Row],[2025/26 To - Spending review Topic 4]]+Dataset[[#This Row],[2025/26 To - Other reallocations]] -> 0 | CF42: =Dataset[[#This Row],[2026/27 To - Spending review Topic 1]]+Dataset[[#This Row],[2026/27 To - Spending review Topic 2]]+Dataset[[#This Row],[2026/27 To - Spending review Topic 3]]+Dataset[[#This Row],[2026/27 To - Spending review Topic 4]]+Dataset[[#This Row],[2026/27 To - Other reallocations]] -> 0 | CG42: =Dataset[[#This Row],[2027/28 To - Spending review Topic 1]]+Dataset[[#This Row],[2027/28 To - Spending review Topic 2]]+Dataset[[#This Row],[2027/28 To - Spending review Topic 3]]+Dataset[[#This Row],[2027/28 To - Spending review Topic 4]]+Dataset[[#This Row],[2027/28 To - Other reallocations]] -> 0 | CH42: =Dataset[[#This Row],[2025/26 Reduction]]+Dataset[[#This Row],[2025/26 From - Total]] -> 0 | CI42: =Dataset[[#This Row],[2026/27 Reduction]]+Dataset[[#This Row],[2026/27 From - Total]] -> 0 | CJ42: =Dataset[[#This Row],[2027/28 Reduction]]+Dataset[[#This Row],[2027/28 From - Total]] -> 0 | CK42: =Dataset[[#This Row],[2024/25 Reduction]] -> 0 | CL42: =SUM(Dataset[[#This Row],[2025/26 Reduction]],Dataset[[#This Row],[2025/26 From - Total]],Dataset[[#This Row],[2025/26 To - Total]]) -> 0 | CM42: =SUM(Dataset[[#This Row],[2026/27 Reduction]],Dataset[[#This Row],[2026/27 From - Total]],Dataset[[#This Row],[2026/27 To - Total]]) -> 0 | CN42: =SUM(Dataset[[#This Row],[2027/28 Reduction]],Dataset[[#This Row],[2027/28 From - Total]],Dataset[[#This Row],[2027/28 To - Total]]) -> 0 | CO42: =Dataset[[#This Row],[2024/25 Baseline]]+Dataset[[#This Row],[2024/25 Total change]] -> 0 | CP42: =Dataset[[#This Row],[2025/26 Baseline]]+Dataset[[#This Row],[2025/26 Total change]] -> 0 | CQ42: =Dataset[[#This Row],[2026/27 Baseline]]+Dataset[[#This Row],[2026/27 Total change]] -> 0 | CR42: =Dataset[[#This Row],[2027/28 Baseline]]+Dataset[[#This Row],[2027/28 Total change]] -> 0
A43: NAT|Non-transfer item | B43: 16|Inventory: Learner and teacher support material | C43: 2025_26 | D43: MTEC2025 | E43: 16 | F43: 1 | G43: 1 | H43: 16688 | I43: 25 | J43: 16 | K43: 01 | L43: 01 | M43: 016688 | N43: 000025 | O43: 16|01|01|000025 | P43: 01 | Q43: 01 | R43: 02 | S43: 25 | T43: 25 | U43: 01|01|02|25|25 | V43: National | W43: Basic Education | X43: Administration | Y43: Ministry | Z43: Non-transfer item | AA43: Current | AB43: Current payments | AC43: Goods and services | AD43: Inventory: Learner and teacher support material | AE43: Inventory: Learner and teacher support material | AF43: Learning and culture | AG43: Basic education | AH43: NAT | AI43: 0 | AJ43: 0 | AK43: 0 | AL43: 0 | AM43: 0 | AN43: 0 | AP43: 0 | AQ43: 0 | AR43: 0 | AS43: 0 | CB43: =Dataset[[#This Row],[2025/26 From - Spending review Topic 1]]+Dataset[[#This Row],[2025/26 From - Spending review Topic 2]]+Dataset[[#This Row],[2025/26 From - Spending review Topic 3]]+Dataset[[#This Row],[2025/26 From - Spending review Topic 4]]+Dataset[[#This Row],[2025/26 From - Other reallocations]] -> 0 | CC43: =Dataset[[#This Row],[2026/27 From - Spending review Topic 1]]+Dataset[[#This Row],[2026/27 From - Spending review Topic 2]]+Dataset[[#This Row],[2026/27 From - Spending review Topic 3]]+Dataset[[#This Row],[2026/27 From - Spending review Topic 4]]+Dataset[[#This Row],[2026/27 From - Other reallocations]] -> 0 | CD43: =Dataset[[#This Row],[2027/28 From - Spending review Topic 1]]+Dataset[[#This Row],[2027/28 From - Spending review Topic 2]]+Dataset[[#This Row],[2027/28 From - Spending review Topic 3]]+Dataset[[#This Row],[2027/28 From - Spending review Topic 4]]+Dataset[[#This Row],[2027/28 From - Other reallocations]] -> 0 | CE43: =Dataset[[#This Row],[2025/26 To - Spending review Topic 1]]+Dataset[[#This Row],[2025/26 To - Spending review Topic 2]]+Dataset[[#This Row],[2025/26 To - Spending review Topic 3]]+Dataset[[#This Row],[2025/26 To - Spending review Topic 4]]+Dataset[[#This Row],[2025/26 To - Other reallocations]] -> 0 | CF43: =Dataset[[#This Row],[2026/27 To - Spending review Topic 1]]+Dataset[[#This Row],[2026/27 To - Spending review Topic 2]]+Dataset[[#This Row],[2026/27 To - Spending review Topic 3]]+Dataset[[#This Row],[2026/27 To - Spending review Topic 4]]+Dataset[[#This Row],[2026/27 To - Other reallocations]] -> 0 | CG43: =Dataset[[#This Row],[2027/28 To - Spending review Topic 1]]+Dataset[[#This Row],[2027/28 To - Spending review Topic 2]]+Dataset[[#This Row],[2027/28 To - Spending review Topic 3]]+Dataset[[#This Row],[2027/28 To - Spending review Topic 4]]+Dataset[[#This Row],[2027/28 To - Other reallocations]] -> 0 | CH43: =Dataset[[#This Row],[2025/26 Reduction]]+Dataset[[#This Row],[2025/26 From - Total]] -> 0 | CI43: =Dataset[[#This Row],[2026/27 Reduction]]+Dataset[[#This Row],[2026/27 From - Total]] -> 0 | CJ43: =Dataset[[#This Row],[2027/28 Reduction]]+Dataset[[#This Row],[2027/28 From - Total]] -> 0 | CK43: =Dataset[[#This Row],[2024/25 Reduction]] -> 0 | CL43: =SUM(Dataset[[#This Row],[2025/26 Reduction]],Dataset[[#This Row],[2025/26 From - Total]],Dataset[[#This Row],[2025/26 To - Total]]) -> 0 | CM43: =SUM(Dataset[[#This Row],[2026/27 Reduction]],Dataset[[#This Row],[2026/27 From - Total]],Dataset[[#This Row],[2026/27 To - Total]]) -> 0 | CN43: =SUM(Dataset[[#This Row],[2027/28 Reduction]],Dataset[[#This Row],[2027/28 From - Total]],Dataset[[#This Row],[2027/28 To - Total]]) -> 0 | CO43: =Dataset[[#This Row],[2024/25 Baseline]]+Dataset[[#This Row],[2024/25 Total change]] -> 0 | CP43: =Dataset[[#This Row],[2025/26 Baseline]]+Dataset[[#This Row],[2025/26 Total change]] -> 0 | CQ43: =Dataset[[#This Row],[2026/27 Baseline]]+Dataset[[#This Row],[2026/27 Total change]] -> 0 | CR43: =Dataset[[#This Row],[2027/28 Baseline]]+Dataset[[#This Row],[2027/28 Total change]] -> 0
A44: NAT|Non-transfer item | B44: 16|Inventory: Materials and supplies | C44: 2025_26 | D44: MTEC2025 | E44: 16 | F44: 1 | G44: 1 | H44: 16689 | I44: 26 | J44: 16 | K44: 01 | L44: 01 | M44: 016689 | N44: 000026 | O44: 16|01|01|000026 | P44: 01 | Q44: 01 | R44: 02 | S44: 26 | T44: 26 | U44: 01|01|02|26|26 | V44: National | W44: Basic Education | X44: Administration | Y44: Ministry | Z44: Non-transfer item | AA44: Current | AB44: Current payments | AC44: Goods and services | AD44: Inventory: Materials and supplies | AE44: Inventory: Materials and supplies | AF44: Learning and culture | AG44: Basic education | AH44: NAT | AI44: 0 | AJ44: 0 | AK44: 0 | AL44: 0 | AM44: 0 | AN44: 0 | AP44: 0 | AQ44: 0 | AR44: 0 | AS44: 0 | CB44: =Dataset[[#This Row],[2025/26 From - Spending review Topic 1]]+Dataset[[#This Row],[2025/26 From - Spending review Topic 2]]+Dataset[[#This Row],[2025/26 From - Spending review Topic 3]]+Dataset[[#This Row],[2025/26 From - Spending review Topic 4]]+Dataset[[#This Row],[2025/26 From - Other reallocations]] -> 0 | CC44: =Dataset[[#This Row],[2026/27 From - Spending review Topic 1]]+Dataset[[#This Row],[2026/27 From - Spending review Topic 2]]+Dataset[[#This Row],[2026/27 From - Spending review Topic 3]]+Dataset[[#This Row],[2026/27 From - Spending review Topic 4]]+Dataset[[#This Row],[2026/27 From - Other reallocations]] -> 0 | CD44: =Dataset[[#This Row],[2027/28 From - Spending review Topic 1]]+Dataset[[#This Row],[2027/28 From - Spending review Topic 2]]+Dataset[[#This Row],[2027/28 From - Spending review Topic 3]]+Dataset[[#This Row],[2027/28 From - Spending review Topic 4]]+Dataset[[#This Row],[2027/28 From - Other reallocations]] -> 0 | CE44: =Dataset[[#This Row],[2025/26 To - Spending review Topic 1]]+Dataset[[#This Row],[2025/26 To - Spending review Topic 2]]+Dataset[[#This Row],[2025/26 To - Spending review Topic 3]]+Dataset[[#This Row],[2025/26 To - Spending review Topic 4]]+Dataset[[#This Row],[2025/26 To - Other reallocations]] -> 0 | CF44: =Dataset[[#This Row],[2026/27 To - Spending review Topic 1]]+Dataset[[#This Row],[2026/27 To - Spending review Topic 2]]+Dataset[[#This Row],[2026/27 To - Spending review Topic 3]]+Dataset[[#This Row],[2026/27 To - Spending review Topic 4]]+Dataset[[#This Row],[2026/27 To - Other reallocations]] -> 0 | CG44: =Dataset[[#This Row],[2027/28 To - Spending review Topic 1]]+Dataset[[#This Row],[2027/28 To - Spending review Topic 2]]+Dataset[[#This Row],[2027/28 To - Spending review Topic 3]]+Dataset[[#This Row],[2027/28 To - Spending review Topic 4]]+Dataset[[#This Row],[2027/28 To - Other reallocations]] -> 0 | CH44: =Dataset[[#This Row],[2025/26 Reduction]]+Dataset[[#This Row],[2025/26 From - Total]] -> 0 | CI44: =Dataset[[#This Row],[2026/27 Reduction]]+Dataset[[#This Row],[2026/27 From - Total]] -> 0 | CJ44: =Dataset[[#This Row],[2027/28 Reduction]]+Dataset[[#This Row],[2027/28 From - Total]] -> 0 | CK44: =Dataset[[#This Row],[2024/25 Reduction]] -> 0 | CL44: =SUM(Dataset[[#This Row],[2025/26 Reduction]],Dataset[[#This Row],[2025/26 From - Total]],Dataset[[#This Row],[2025/26 To - Total]]) -> 0 | CM44: =SUM(Dataset[[#This Row],[2026/27 Reduction]],Dataset[[#This Row],[2026/27 From - Total]],Dataset[[#This Row],[2026/27 To - Total]]) -> 0 | CN44: =SUM(Dataset[[#This Row],[2027/28 Reduction]],Dataset[[#This Row],[2027/28 From - Total]],Dataset[[#This Row],[2027/28 To - Total]]) -> 0 | CO44: =Dataset[[#This Row],[2024/25 Baseline]]+Dataset[[#This Row],[2024/25 Total change]] -> 0 | CP44: =Dataset[[#This Row],[2025/26 Baseline]]+Dataset[[#This Row],[2025/26 Total change]] -> 0 | CQ44: =Dataset[[#This Row],[2026/27 Baseline]]+Dataset[[#This Row],[2026/27 Total change]] -> 0 | CR44: =Dataset[[#This Row],[2027/28 Baseline]]+Dataset[[#This Row],[2027/28 Total change]] -> 0
A45: NAT|Non-transfer item | B45: 16|Inventory: Medical supplies | C45: 2025_26 | D45: MTEC2025 | E45: 16 | F45: 1 | G45: 1 | H45: 16690 | I45: 27 | J45: 16 | K45: 01 | L45: 01 | M45: 016690 | N45: 000027 | O45: 16|01|01|000027 | P45: 01 | Q45: 01 | R45: 02 | S45: 27 | T45: 27 | U45: 01|01|02|27|27 | V45: National | W45: Basic Education | X45: Administration | Y45: Ministry | Z45: Non-transfer item | AA45: Current | AB45: Current payments | AC45: Goods and services | AD45: Inventory: Medical supplies | AE45: Inventory: Medical supplies | AF45: Learning and culture | AG45: Basic education | AH45: NAT | AI45: 0 | AJ45: 0 | AK45: 0 | AL45: 0 | AM45: 0 | AN45: 0 | AP45: 0 | AQ45: 0 | AR45: 0 | AS45: 0 | CB45: =Dataset[[#This Row],[2025/26 From - Spending review Topic 1]]+Dataset[[#This Row],[2025/26 From - Spending review Topic 2]]+Dataset[[#This Row],[2025/26 From - Spending review Topic 3]]+Dataset[[#This Row],[2025/26 From - Spending review Topic 4]]+Dataset[[#This Row],[2025/26 From - Other reallocations]] -> 0 | CC45: =Dataset[[#This Row],[2026/27 From - Spending review Topic 1]]+Dataset[[#This Row],[2026/27 From - Spending review Topic 2]]+Dataset[[#This Row],[2026/27 From - Spending review Topic 3]]+Dataset[[#This Row],[2026/27 From - Spending review Topic 4]]+Dataset[[#This Row],[2026/27 From - Other reallocations]] -> 0 | CD45: =Dataset[[#This Row],[2027/28 From - Spending review Topic 1]]+Dataset[[#This Row],[2027/28 From - Spending review Topic 2]]+Dataset[[#This Row],[2027/28 From - Spending review Topic 3]]+Dataset[[#This Row],[2027/28 From - Spending review Topic 4]]+Dataset[[#This Row],[2027/28 From - Other reallocations]] -> 0 | CE45: =Dataset[[#This Row],[2025/26 To - Spending review Topic 1]]+Dataset[[#This Row],[2025/26 To - Spending review Topic 2]]+Dataset[[#This Row],[2025/26 To - Spending review Topic 3]]+Dataset[[#This Row],[2025/26 To - Spending review Topic 4]]+Dataset[[#This Row],[2025/26 To - Other reallocations]] -> 0 | CF45: =Dataset[[#This Row],[2026/27 To - Spending review Topic 1]]+Dataset[[#This Row],[2026/27 To - Spending review Topic 2]]+Dataset[[#This Row],[2026/27 To - Spending review Topic 3]]+Dataset[[#This Row],[2026/27 To - Spending review Topic 4]]+Dataset[[#This Row],[2026/27 To - Other reallocations]] -> 0 | CG45: =Dataset[[#This Row],[2027/28 To - Spending review Topic 1]]+Dataset[[#This Row],[2027/28 To - Spending review Topic 2]]+Dataset[[#This Row],[2027/28 To - Spending review Topic 3]]+Dataset[[#This Row],[2027/28 To - Spending review Topic 4]]+Dataset[[#This Row],[2027/28 To - Other reallocations]] -> 0 | CH45: =Dataset[[#This Row],[2025/26 Reduction]]+Dataset[[#This Row],[2025/26 From - Total]] -> 0 | CI45: =Dataset[[#This Row],[2026/27 Reduction]]+Dataset[[#This Row],[2026/27 From - Total]] -> 0 | CJ45: =Dataset[[#This Row],[2027/28 Reduction]]+Dataset[[#This Row],[2027/28 From - Total]] -> 0 | CK45: =Dataset[[#This Row],[2024/25 Reduction]] -> 0 | CL45: =SUM(Dataset[[#This Row],[2025/26 Reduction]],Dataset[[#This Row],[2025/26 From - Total]],Dataset[[#This Row],[2025/26 To - Total]]) -> 0 | CM45: =SUM(Dataset[[#This Row],[2026/27 Reduction]],Dataset[[#This Row],[2026/27 From - Total]],Dataset[[#This Row],[2026/27 To - Total]]) -> 0 | CN45: =SUM(Dataset[[#This Row],[2027/28 Reduction]],Dataset[[#This Row],[2027/28 From - Total]],Dataset[[#This Row],[2027/28 To - Total]]) -> 0 | CO45: =Dataset[[#This Row],[2024/25 Baseline]]+Dataset[[#This Row],[2024/25 Total change]] -> 0 | CP45: =Dataset[[#This Row],[2025/26 Baseline]]+Dataset[[#This Row],[2025/26 Total change]] -> 0 | CQ45: =Dataset[[#This Row],[2026/27 Baseline]]+Dataset[[#This Row],[2026/27 Total change]] -> 0 | CR45: =Dataset[[#This Row],[2027/28 Baseline]]+Dataset[[#This Row],[2027/28 Total change]] -> 0
A46: NAT|Non-transfer item | B46: 16|Inventory: Medicine | C46: 2025_26 | D46: MTEC2025 | E46: 16 | F46: 1 | G46: 1 | H46: 16691 | I46: 28 | J46: 16 | K46: 01 | L46: 01 | M46: 016691 | N46: 000028 | O46: 16|01|01|000028 | P46: 01 | Q46: 01 | R46: 02 | S46: 28 | T46: 28 | U46: 01|01|02|28|28 | V46: National | W46: Basic Education | X46: Administration | Y46: Ministry | Z46: Non-transfer item | AA46: Current | AB46: Current payments | AC46: Goods and services | AD46: Inventory: Medicine | AE46: Inventory: Medicine | AF46: Learning and culture | AG46: Basic education | AH46: NAT | AI46: 0 | AJ46: 0 | AK46: 0 | AL46: 0 | AM46: 0 | AN46: 0 | AP46: 0 | AQ46: 0 | AR46: 0 | AS46: 0 | CB46: =Dataset[[#This Row],[2025/26 From - Spending review Topic 1]]+Dataset[[#This Row],[2025/26 From - Spending review Topic 2]]+Dataset[[#This Row],[2025/26 From - Spending review Topic 3]]+Dataset[[#This Row],[2025/26 From - Spending review Topic 4]]+Dataset[[#This Row],[2025/26 From - Other reallocations]] -> 0 | CC46: =Dataset[[#This Row],[2026/27 From - Spending review Topic 1]]+Dataset[[#This Row],[2026/27 From - Spending review Topic 2]]+Dataset[[#This Row],[2026/27 From - Spending review Topic 3]]+Dataset[[#This Row],[2026/27 From - Spending review Topic 4]]+Dataset[[#This Row],[2026/27 From - Other reallocations]] -> 0 | CD46: =Dataset[[#This Row],[2027/28 From - Spending review Topic 1]]+Dataset[[#This Row],[2027/28 From - Spending review Topic 2]]+Dataset[[#This Row],[2027/28 From - Spending review Topic 3]]+Dataset[[#This Row],[2027/28 From - Spending review Topic 4]]+Dataset[[#This Row],[2027/28 From - Other reallocations]] -> 0 | CE46: =Dataset[[#This Row],[2025/26 To - Spending review Topic 1]]+Dataset[[#This Row],[2025/26 To - Spending review Topic 2]]+Dataset[[#This Row],[2025/26 To - Spending review Topic 3]]+Dataset[[#This Row],[2025/26 To - Spending review Topic 4]]+Dataset[[#This Row],[2025/26 To - Other reallocations]] -> 0 | CF46: =Dataset[[#This Row],[2026/27 To - Spending review Topic 1]]+Dataset[[#This Row],[2026/27 To - Spending review Topic 2]]+Dataset[[#This Row],[2026/27 To - Spending review Topic 3]]+Dataset[[#This Row],[2026/27 To - Spending review Topic 4]]+Dataset[[#This Row],[2026/27 To - Other reallocations]] -> 0 | CG46: =Dataset[[#This Row],[2027/28 To - Spending review Topic 1]]+Dataset[[#This Row],[2027/28 To - Spending review Topic 2]]+Dataset[[#This Row],[2027/28 To - Spending review Topic 3]]+Dataset[[#This Row],[2027/28 To - Spending review Topic 4]]+Dataset[[#This Row],[2027/28 To - Other reallocations]] -> 0 | CH46: =Dataset[[#This Row],[2025/26 Reduction]]+Dataset[[#This Row],[2025/26 From - Total]] -> 0 | CI46: =Dataset[[#This Row],[2026/27 Reduction]]+Dataset[[#This Row],[2026/27 From - Total]] -> 0 | CJ46: =Dataset[[#This Row],[2027/28 Reduction]]+Dataset[[#This Row],[2027/28 From - Total]] -> 0 | CK46: =Dataset[[#This Row],[2024/25 Reduction]] -> 0 | CL46: =SUM(Dataset[[#This Row],[2025/26 Reduction]],Dataset[[#This Row],[2025/26 From - Total]],Dataset[[#This Row],[2025/26 To - Total]]) -> 0 | CM46: =SUM(Dataset[[#This Row],[2026/27 Reduction]],Dataset[[#This Row],[2026/27 From - Total]],Dataset[[#This Row],[2026/27 To - Total]]) -> 0 | CN46: =SUM(Dataset[[#This Row],[2027/28 Reduction]],Dataset[[#This Row],[2027/28 From - Total]],Dataset[[#This Row],[2027/28 To - Total]]) -> 0 | CO46: =Dataset[[#This Row],[2024/25 Baseline]]+Dataset[[#This Row],[2024/25 Total change]] -> 0 | CP46: =Dataset[[#This Row],[2025/26 Baseline]]+Dataset[[#This Row],[2025/26 Total change]] -> 0 | CQ46: =Dataset[[#This Row],[2026/27 Baseline]]+Dataset[[#This Row],[2026/27 Total change]] -> 0 | CR46: =Dataset[[#This Row],[2027/28 Baseline]]+Dataset[[#This Row],[2027/28 Total change]] -> 0
A47: NAT|Non-transfer item | B47: 16|Medsas inventory interface | C47: 2025_26 | D47: MTEC2025 | E47: 16 | F47: 1 | G47: 1 | H47: 16692 | I47: 29 | J47: 16 | K47: 01 | L47: 01 | M47: 016692 | N47: 000029 | O47: 16|01|01|000029 | P47: 01 | Q47: 01 | R47: 02 | S47: 29 | T47: 29 | U47: 01|01|02|29|29 | V47: National | W47: Basic Education | X47: Administration | Y47: Ministry | Z47: Non-transfer item | AA47: Current | AB47: Current payments | AC47: Goods and services | AD47: Medsas inventory interface | AE47: Medsas inventory interface | AF47: Learning and culture | AG47: Basic education | AH47: NAT | AI47: 0 | AJ47: 0 | AK47: 0 | AL47: 0 | AM47: 0 | AN47: 0 | AP47: 0 | AQ47: 0 | AR47: 0 | AS47: 0 | CB47: =Dataset[[#This Row],[2025/26 From - Spending review Topic 1]]+Dataset[[#This Row],[2025/26 From - Spending review Topic 2]]+Dataset[[#This Row],[2025/26 From - Spending review Topic 3]]+Dataset[[#This Row],[2025/26 From - Spending review Topic 4]]+Dataset[[#This Row],[2025/26 From - Other reallocations]] -> 0 | CC47: =Dataset[[#This Row],[2026/27 From - Spending review Topic 1]]+Dataset[[#This Row],[2026/27 From - Spending review Topic 2]]+Dataset[[#This Row],[2026/27 From - Spending review Topic 3]]+Dataset[[#This Row],[2026/27 From - Spending review Topic 4]]+Dataset[[#This Row],[2026/27 From - Other reallocations]] -> 0 | CD47: =Dataset[[#This Row],[2027/28 From - Spending review Topic 1]]+Dataset[[#This Row],[2027/28 From - Spending review Topic 2]]+Dataset[[#This Row],[2027/28 From - Spending review Topic 3]]+Dataset[[#This Row],[2027/28 From - Spending review Topic 4]]+Dataset[[#This Row],[2027/28 From - Other reallocations]] -> 0 | CE47: =Dataset[[#This Row],[2025/26 To - Spending review Topic 1]]+Dataset[[#This Row],[2025/26 To - Spending review Topic 2]]+Dataset[[#This Row],[2025/26 To - Spending review Topic 3]]+Dataset[[#This Row],[2025/26 To - Spending review Topic 4]]+Dataset[[#This Row],[2025/26 To - Other reallocations]] -> 0 | CF47: =Dataset[[#This Row],[2026/27 To - Spending review Topic 1]]+Dataset[[#This Row],[2026/27 To - Spending review Topic 2]]+Dataset[[#This Row],[2026/27 To - Spending review Topic 3]]+Dataset[[#This Row],[2026/27 To - Spending review Topic 4]]+Dataset[[#This Row],[2026/27 To - Other reallocations]] -> 0 | CG47: =Dataset[[#This Row],[2027/28 To - Spending review Topic 1]]+Dataset[[#This Row],[2027/28 To - Spending review Topic 2]]+Dataset[[#This Row],[2027/28 To - Spending review Topic 3]]+Dataset[[#This Row],[2027/28 To - Spending review Topic 4]]+Dataset[[#This Row],[2027/28 To - Other reallocations]] -> 0 | CH47: =Dataset[[#This Row],[2025/26 Reduction]]+Dataset[[#This Row],[2025/26 From - Total]] -> 0 | CI47: =Dataset[[#This Row],[2026/27 Reduction]]+Dataset[[#This Row],[2026/27 From - Total]] -> 0 | CJ47: =Dataset[[#This Row],[2027/28 Reduction]]+Dataset[[#This Row],[2027/28 From - Total]] -> 0 | CK47: =Dataset[[#This Row],[2024/25 Reduction]] -> 0 | CL47: =SUM(Dataset[[#This Row],[2025/26 Reduction]],Dataset[[#This Row],[2025/26 From - Total]],Dataset[[#This Row],[2025/26 To - Total]]) -> 0 | CM47: =SUM(Dataset[[#This Row],[2026/27 Reduction]],Dataset[[#This Row],[2026/27 From - Total]],Dataset[[#This Row],[2026/27 To - Total]]) -> 0 | CN47: =SUM(Dataset[[#This Row],[2027/28 Reduction]],Dataset[[#This Row],[2027/28 From - Total]],Dataset[[#This Row],[2027/28 To - Total]]) -> 0 | CO47: =Dataset[[#This Row],[2024/25 Baseline]]+Dataset[[#This Row],[2024/25 Total change]] -> 0 | CP47: =Dataset[[#This Row],[2025/26 Baseline]]+Dataset[[#This Row],[2025/26 Total change]] -> 0 | CQ47: =Dataset[[#This Row],[2026/27 Baseline]]+Dataset[[#This Row],[2026/27 Total change]] -> 0 | CR47: =Dataset[[#This Row],[2027/28 Baseline]]+Dataset[[#This Row],[2027/28 Total change]] -> 0
A48: NAT|Non-transfer item | B48: 16|Inventory: Other supplies | C48: 2025_26 | D48: MTEC2025 | E48: 16 | F48: 1 | G48: 1 | H48: 16693 | I48: 30 | J48: 16 | K48: 01 | L48: 01 | M48: 016693 | N48: 000030 | O48: 16|01|01|000030 | P48: 01 | Q48: 01 | R48: 02 | S48: 30 | T48: 30 | U48: 01|01|02|30|30 | V48: National | W48: Basic Education | X48: Administration | Y48: Ministry | Z48: Non-transfer item | AA48: Current | AB48: Current payments | AC48: Goods and services | AD48: Inventory: Other supplies | AE48: Inventory: Other supplies | AF48: Learning and culture | AG48: Basic education | AH48: NAT | AI48: 0 | AJ48: 0 | AK48: 0 | AL48: 0 | AM48: 0 | AN48: 0 | AP48: 0 | AQ48: 0 | AR48: 0 | AS48: 0 | CB48: =Dataset[[#This Row],[2025/26 From - Spending review Topic 1]]+Dataset[[#This Row],[2025/26 From - Spending review Topic 2]]+Dataset[[#This Row],[2025/26 From - Spending review Topic 3]]+Dataset[[#This Row],[2025/26 From - Spending review Topic 4]]+Dataset[[#This Row],[2025/26 From - Other reallocations]] -> 0 | CC48: =Dataset[[#This Row],[2026/27 From - Spending review Topic 1]]+Dataset[[#This Row],[2026/27 From - Spending review Topic 2]]+Dataset[[#This Row],[2026/27 From - Spending review Topic 3]]+Dataset[[#This Row],[2026/27 From - Spending review Topic 4]]+Dataset[[#This Row],[2026/27 From - Other reallocations]] -> 0 | CD48: =Dataset[[#This Row],[2027/28 From - Spending review Topic 1]]+Dataset[[#This Row],[2027/28 From - Spending review Topic 2]]+Dataset[[#This Row],[2027/28 From - Spending review Topic 3]]+Dataset[[#This Row],[2027/28 From - Spending review Topic 4]]+Dataset[[#This Row],[2027/28 From - Other reallocations]] -> 0 | CE48: =Dataset[[#This Row],[2025/26 To - Spending review Topic 1]]+Dataset[[#This Row],[2025/26 To - Spending review Topic 2]]+Dataset[[#This Row],[2025/26 To - Spending review Topic 3]]+Dataset[[#This Row],[2025/26 To - Spending review Topic 4]]+Dataset[[#This Row],[2025/26 To - Other reallocations]] -> 0 | CF48: =Dataset[[#This Row],[2026/27 To - Spending review Topic 1]]+Dataset[[#This Row],[2026/27 To - Spending review Topic 2]]+Dataset[[#This Row],[2026/27 To - Spending review Topic 3]]+Dataset[[#This Row],[2026/27 To - Spending review Topic 4]]+Dataset[[#This Row],[2026/27 To - Other reallocations]] -> 0 | CG48: =Dataset[[#This Row],[2027/28 To - Spending review Topic 1]]+Dataset[[#This Row],[2027/28 To - Spending review Topic 2]]+Dataset[[#This Row],[2027/28 To - Spending review Topic 3]]+Dataset[[#This Row],[2027/28 To - Spending review Topic 4]]+Dataset[[#This Row],[2027/28 To - Other reallocations]] -> 0 | CH48: =Dataset[[#This Row],[2025/26 Reduction]]+Dataset[[#This Row],[2025/26 From - Total]] -> 0 | CI48: =Dataset[[#This Row],[2026/27 Reduction]]+Dataset[[#This Row],[2026/27 From - Total]] -> 0 | CJ48: =Dataset[[#This Row],[2027/28 Reduction]]+Dataset[[#This Row],[2027/28 From - Total]] -> 0 | CK48: =Dataset[[#This Row],[2024/25 Reduction]] -> 0 | CL48: =SUM(Dataset[[#This Row],[2025/26 Reduction]],Dataset[[#This Row],[2025/26 From - Total]],Dataset[[#This Row],[2025/26 To - Total]]) -> 0 | CM48: =SUM(Dataset[[#This Row],[2026/27 Reduction]],Dataset[[#This Row],[2026/27 From - Total]],Dataset[[#This Row],[2026/27 To - Total]]) -> 0 | CN48: =SUM(Dataset[[#This Row],[2027/28 Reduction]],Dataset[[#This Row],[2027/28 From - Total]],Dataset[[#This Row],[2027/28 To - Total]]) -> 0 | CO48: =Dataset[[#This Row],[2024/25 Baseline]]+Dataset[[#This Row],[2024/25 Total change]] -> 0 | CP48: =Dataset[[#This Row],[2025/26 Baseline]]+Dataset[[#This Row],[2025/26 Total change]] -> 0 | CQ48: =Dataset[[#This Row],[2026/27 Baseline]]+Dataset[[#This Row],[2026/27 Total change]] -> 0 | CR48: =Dataset[[#This Row],[2027/28 Baseline]]+Dataset[[#This Row],[2027/28 Total change]] -> 0
A49: NAT|Non-transfer item | B49: 16|Consumable supplies | C49: 2025_26 | D49: MTEC2025 | E49: 16 | F49: 1 | G49: 1 | H49: 16694 | I49: 31 | J49: 16 | K49: 01 | L49: 01 | M49: 016694 | N49: 000031 | O49: 16|01|01|000031 | P49: 01 | Q49: 01 | R49: 02 | S49: 31 | T49: 31 | U49: 01|01|02|31|31 | V49: National | W49: Basic Education | X49: Administration | Y49: Ministry | Z49: Non-transfer item | AA49: Current | AB49: Current payments | AC49: Goods and services | AD49: Consumable supplies | AE49: Consumable supplies | AF49: Learning and culture | AG49: Basic education | AH49: NAT | AI49: 9 | AJ49: 16 | AK49: 34 | AL49: 7 | AM49: 28 | AN49: 28 | AO49: 19 | AP49: 7 | AQ49: 9 | AR49: 9 | AS49: 9 | CB49: =Dataset[[#This Row],[2025/26 From - Spending review Topic 1]]+Dataset[[#This Row],[2025/26 From - Spending review Topic 2]]+Dataset[[#This Row],[2025/26 From - Spending review Topic 3]]+Dataset[[#This Row],[2025/26 From - Spending review Topic 4]]+Dataset[[#This Row],[2025/26 From - Other reallocations]] -> 0 | CC49: =Dataset[[#This Row],[2026/27 From - Spending review Topic 1]]+Dataset[[#This Row],[2026/27 From - Spending review Topic 2]]+Dataset[[#This Row],[2026/27 From - Spending review Topic 3]]+Dataset[[#This Row],[2026/27 From - Spending review Topic 4]]+Dataset[[#This Row],[2026/27 From - Other reallocations]] -> 0 | CD49: =Dataset[[#This Row],[2027/28 From - Spending review Topic 1]]+Dataset[[#This Row],[2027/28 From - Spending review Topic 2]]+Dataset[[#This Row],[2027/28 From - Spending review Topic 3]]+Dataset[[#This Row],[2027/28 From - Spending review Topic 4]]+Dataset[[#This Row],[2027/28 From - Other reallocations]] -> 0 | CE49: =Dataset[[#This Row],[2025/26 To - Spending review Topic 1]]+Dataset[[#This Row],[2025/26 To - Spending review Topic 2]]+Dataset[[#This Row],[2025/26 To - Spending review Topic 3]]+Dataset[[#This Row],[2025/26 To - Spending review Topic 4]]+Dataset[[#This Row],[2025/26 To - Other reallocations]] -> 0 | CF49: =Dataset[[#This Row],[2026/27 To - Spending review Topic 1]]+Dataset[[#This Row],[2026/27 To - Spending review Topic 2]]+Dataset[[#This Row],[2026/27 To - Spending review Topic 3]]+Dataset[[#This Row],[2026/27 To - Spending review Topic 4]]+Dataset[[#This Row],[2026/27 To - Other reallocations]] -> 0 | CG49: =Dataset[[#This Row],[2027/28 To - Spending review Topic 1]]+Dataset[[#This Row],[2027/28 To - Spending review Topic 2]]+Dataset[[#This Row],[2027/28 To - Spending review Topic 3]]+Dataset[[#This Row],[2027/28 To - Spending review Topic 4]]+Dataset[[#This Row],[2027/28 To - Other reallocations]] -> 0 | CH49: =Dataset[[#This Row],[2025/26 Reduction]]+Dataset[[#This Row],[2025/26 From - Total]] -> 0 | CI49: =Dataset[[#This Row],[2026/27 Reduction]]+Dataset[[#This Row],[2026/27 From - Total]] -> 0 | CJ49: =Dataset[[#This Row],[2027/28 Reduction]]+Dataset[[#This Row],[2027/28 From - Total]] -> 0 | CK49: =Dataset[[#This Row],[2024/25 Reduction]] -> 0 | CL49: =SUM(Dataset[[#This Row],[2025/26 Reduction]],Dataset[[#This Row],[2025/26 From - Total]],Dataset[[#This Row],[2025/26 To - Total]]) -> 0 | CM49: =SUM(Dataset[[#This Row],[2026/27 Reduction]],Dataset[[#This Row],[2026/27 From - Total]],Dataset[[#This Row],[2026/27 To - Total]]) -> 0 | CN49: =SUM(Dataset[[#This Row],[2027/28 Reduction]],Dataset[[#This Row],[2027/28 From - Total]],Dataset[[#This Row],[2027/28 To - Total]]) -> 0 | CO49: =Dataset[[#This Row],[2024/25 Baseline]]+Dataset[[#This Row],[2024/25 Total change]] -> 7 | CP49: =Dataset[[#This Row],[2025/26 Baseline]]+Dataset[[#This Row],[2025/26 Total change]] -> 9 | CQ49: =Dataset[[#This Row],[2026/27 Baseline]]+Dataset[[#This Row],[2026/27 Total change]] -> 9 | CR49: =Dataset[[#This Row],[2027/28 Baseline]]+Dataset[[#This Row],[2027/28 Total change]] -> 9
A50: NAT|Non-transfer item | B50: 16|Consumables: Stationery, printing and office supplies | C50: 2025_26 | D50: MTEC2025 | E50: 16 | F50: 1 | G50: 1 | H50: 16695 | I50: 32 | J50: 16 | K50: 01 | L50: 01 | M50: 016695 | N50: 000032 | O50: 16|01|01|000032 | P50: 01 | Q50: 01 | R50: 02 | S50: 32 | T50: 32 | U50: 01|01|02|32|32 | V50: National | W50: Basic Education | X50: Administration | Y50: Ministry | Z50: Non-transfer item | AA50: Current | AB50: Current payments | AC50: Goods and services | AD50: Consumables: Stationery, printing and office supplies | AE50: Consumables: Stationery, printing and office supplies | AF50: Learning and culture | AG50: Basic education | AH50: NAT | AI50: 126 | AJ50: 259 | AK50: 47 | AL50: 639 | AM50: 439 | AN50: 439 | AO50: 160 | AP50: 666 | AQ50: 705 | AR50: 737 | AS50: 770 | CB50: =Dataset[[#This Row],[2025/26 From - Spending review Topic 1]]+Dataset[[#This Row],[2025/26 From - Spending review Topic 2]]+Dataset[[#This Row],[2025/26 From - Spending review Topic 3]]+Dataset[[#This Row],[2025/26 From - Spending review Topic 4]]+Dataset[[#This Row],[2025/26 From - Other reallocations]] -> 0 | CC50: =Dataset[[#This Row],[2026/27 From - Spending review Topic 1]]+Dataset[[#This Row],[2026/27 From - Spending review Topic 2]]+Dataset[[#This Row],[2026/27 From - Spending review Topic 3]]+Dataset[[#This Row],[2026/27 From - Spending review Topic 4]]+Dataset[[#This Row],[2026/27 From - Other reallocations]] -> 0 | CD50: =Dataset[[#This Row],[2027/28 From - Spending review Topic 1]]+Dataset[[#This Row],[2027/28 From - Spending review Topic 2]]+Dataset[[#This Row],[2027/28 From - Spending review Topic 3]]+Dataset[[#This Row],[2027/28 From - Spending review Topic 4]]+Dataset[[#This Row],[2027/28 From - Other reallocations]] -> 0 | CE50: =Dataset[[#This Row],[2025/26 To - Spending review Topic 1]]+Dataset[[#This Row],[2025/26 To - Spending review Topic 2]]+Dataset[[#This Row],[2025/26 To - Spending review Topic 3]]+Dataset[[#This Row],[2025/26 To - Spending review Topic 4]]+Dataset[[#This Row],[2025/26 To - Other reallocations]] -> 0 | CF50: =Dataset[[#This Row],[2026/27 To - Spending review Topic 1]]+Dataset[[#This Row],[2026/27 To - Spending review Topic 2]]+Dataset[[#This Row],[2026/27 To - Spending review Topic 3]]+Dataset[[#This Row],[2026/27 To - Spending review Topic 4]]+Dataset[[#This Row],[2026/27 To - Other reallocations]] -> 0 | CG50: =Dataset[[#This Row],[2027/28 To - Spending review Topic 1]]+Dataset[[#This Row],[2027/28 To - Spending review Topic 2]]+Dataset[[#This Row],[2027/28 To - Spending review Topic 3]]+Dataset[[#This Row],[2027/28 To - Spending review Topic 4]]+Dataset[[#This Row],[2027/28 To - Other reallocations]] -> 0 | CH50: =Dataset[[#This Row],[2025/26 Reduction]]+Dataset[[#This Row],[2025/26 From - Total]] -> 0 | CI50: =Dataset[[#This Row],[2026/27 Reduction]]+Dataset[[#This Row],[2026/27 From - Total]] -> 0 | CJ50: =Dataset[[#This Row],[2027/28 Reduction]]+Dataset[[#This Row],[2027/28 From - Total]] -> 0 | CK50: =Dataset[[#This Row],[2024/25 Reduction]] -> 0 | CL50: =SUM(Dataset[[#This Row],[2025/26 Reduction]],Dataset[[#This Row],[2025/26 From - Total]],Dataset[[#This Row],[2025/26 To - Total]]) -> 0 | CM50: =SUM(Dataset[[#This Row],[2026/27 Reduction]],Dataset[[#This Row],[2026/27 From - Total]],Dataset[[#This Row],[2026/27 To - Total]]) -> 0 | CN50: =SUM(Dataset[[#This Row],[2027/28 Reduction]],Dataset[[#This Row],[2027/28 From - Total]],Dataset[[#This Row],[2027/28 To - Total]]) -> 0 | CO50: =Dataset[[#This Row],[2024/25 Baseline]]+Dataset[[#This Row],[2024/25 Total change]] -> 666 | CP50: =Dataset[[#This Row],[2025/26 Baseline]]+Dataset[[#This Row],[2025/26 Total change]] -> 705 | CQ50: =Dataset[[#This Row],[2026/27 Baseline]]+Dataset[[#This Row],[2026/27 Total change]] -> 737 | CR50: =Dataset[[#This Row],[2027/28 Baseline]]+Dataset[[#This Row],[2027/28 Total change]] -> 770
A51: NAT|Non-transfer item | B51: 16|Operating leases | C51: 2025_26 | D51: MTEC2025 | E51: 16 | F51: 1 | G51: 1 | H51: 16696 | I51: 33 | J51: 16 | K51: 01 | L51: 01 | M51: 016696 | N51: 000033 | O51: 16|01|01|000033 | P51: 01 | Q51: 01 | R51: 02 | S51: 33 | T51: 33 | U51: 01|01|02|33|33 | V51: National | W51: Basic Education | X51: Administration | Y51: Ministry | Z51: Non-transfer item | AA51: Current | AB51: Current payments | AC51: Goods and services | AD51: Operating leases | AE51: Operating leases | AF51: Learning and culture | AG51: Basic education | AH51: NAT | AI51: 0 | AJ51: 0 | AK51: 2350 | AL51: 40 | AM51: 1040 | AN51: 1040 | AO51: 1551 | AP51: 45 | AQ51: 50 | AR51: 52 | AS51: 54 | CB51: =Dataset[[#This Row],[2025/26 From - Spending review Topic 1]]+Dataset[[#This Row],[2025/26 From - Spending review Topic 2]]+Dataset[[#This Row],[2025/26 From - Spending review Topic 3]]+Dataset[[#This Row],[2025/26 From - Spending review Topic 4]]+Dataset[[#This Row],[2025/26 From - Other reallocations]] -> 0 | CC51: =Dataset[[#This Row],[2026/27 From - Spending review Topic 1]]+Dataset[[#This Row],[2026/27 From - Spending review Topic 2]]+Dataset[[#This Row],[2026/27 From - Spending review Topic 3]]+Dataset[[#This Row],[2026/27 From - Spending review Topic 4]]+Dataset[[#This Row],[2026/27 From - Other reallocations]] -> 0 | CD51: =Dataset[[#This Row],[2027/28 From - Spending review Topic 1]]+Dataset[[#This Row],[2027/28 From - Spending review Topic 2]]+Dataset[[#This Row],[2027/28 From - Spending review Topic 3]]+Dataset[[#This Row],[2027/28 From - Spending review Topic 4]]+Dataset[[#This Row],[2027/28 From - Other reallocations]] -> 0 | CE51: =Dataset[[#This Row],[2025/26 To - Spending review Topic 1]]+Dataset[[#This Row],[2025/26 To - Spending review Topic 2]]+Dataset[[#This Row],[2025/26 To - Spending review Topic 3]]+Dataset[[#This Row],[2025/26 To - Spending review Topic 4]]+Dataset[[#This Row],[2025/26 To - Other reallocations]] -> 0 | CF51: =Dataset[[#This Row],[2026/27 To - Spending review Topic 1]]+Dataset[[#This Row],[2026/27 To - Spending review Topic 2]]+Dataset[[#This Row],[2026/27 To - Spending review Topic 3]]+Dataset[[#This Row],[2026/27 To - Spending review Topic 4]]+Dataset[[#This Row],[2026/27 To - Other reallocations]] -> 0 | CG51: =Dataset[[#This Row],[2027/28 To - Spending review Topic 1]]+Dataset[[#This Row],[2027/28 To - Spending review Topic 2]]+Dataset[[#This Row],[2027/28 To - Spending review Topic 3]]+Dataset[[#This Row],[2027/28 To - Spending review Topic 4]]+Dataset[[#This Row],[2027/28 To - Other reallocations]] -> 0 | CH51: =Dataset[[#This Row],[2025/26 Reduction]]+Dataset[[#This Row],[2025/26 From - Total]] -> 0 | CI51: =Dataset[[#This Row],[2026/27 Reduction]]+Dataset[[#This Row],[2026/27 From - Total]] -> 0 | CJ51: =Dataset[[#This Row],[2027/28 Reduction]]+Dataset[[#This Row],[2027/28 From - Total]] -> 0 | CK51: =Dataset[[#This Row],[2024/25 Reduction]] -> 0 | CL51: =SUM(Dataset[[#This Row],[2025/26 Reduction]],Dataset[[#This Row],[2025/26 From - Total]],Dataset[[#This Row],[2025/26 To - Total]]) -> 0 | CM51: =SUM(Dataset[[#This Row],[2026/27 Reduction]],Dataset[[#This Row],[2026/27 From - Total]],Dataset[[#This Row],[2026/27 To - Total]]) -> 0 | CN51: =SUM(Dataset[[#This Row],[2027/28 Reduction]],Dataset[[#This Row],[2027/28 From - Total]],Dataset[[#This Row],[2027/28 To - Total]]) -> 0 | CO51: =Dataset[[#This Row],[2024/25 Baseline]]+Dataset[[#This Row],[2024/25 Total change]] -> 45 | CP51: =Dataset[[#This Row],[2025/26 Baseline]]+Dataset[[#This Row],[2025/26 Total change]] -> 50 | CQ51: =Dataset[[#This Row],[2026/27 Baseline]]+Dataset[[#This Row],[2026/27 Total change]] -> 52 | CR51: =Dataset[[#This Row],[2027/28 Baseline]]+Dataset[[#This Row],[2027/28 Total change]] -> 54
A52: NAT|Non-transfer item | B52: 16|Rental and hiring | C52: 2025_26 | D52: MTEC2025 | E52: 16 | F52: 1 | G52: 1 | H52: 16697 | I52: 34 | J52: 16 | K52: 01 | L52: 01 | M52: 016697 | N52: 000034 | O52: 16|01|01|000034 | P52: 01 | Q52: 01 | R52: 02 | S52: 34 | T52: 34 | U52: 01|01|02|34|34 | V52: National | W52: Basic Education | X52: Administration | Y52: Ministry | Z52: Non-transfer item | AA52: Current | AB52: Current payments | AC52: Goods and services | AD52: Rental and hiring | AE52: Rental and hiring | AF52: Learning and culture | AG52: Basic education | AH52: NAT | AI52: 96 | AJ52: 219 | AK52: 201 | AL52: 29 | AM52: 164 | AN52: 164 | AO52: 848 | AP52: 30 | AQ52: 31 | AR52: 32 | AS52: 33 | CB52: =Dataset[[#This Row],[2025/26 From - Spending review Topic 1]]+Dataset[[#This Row],[2025/26 From - Spending review Topic 2]]+Dataset[[#This Row],[2025/26 From - Spending review Topic 3]]+Dataset[[#This Row],[2025/26 From - Spending review Topic 4]]+Dataset[[#This Row],[2025/26 From - Other reallocations]] -> 0 | CC52: =Dataset[[#This Row],[2026/27 From - Spending review Topic 1]]+Dataset[[#This Row],[2026/27 From - Spending review Topic 2]]+Dataset[[#This Row],[2026/27 From - Spending review Topic 3]]+Dataset[[#This Row],[2026/27 From - Spending review Topic 4]]+Dataset[[#This Row],[2026/27 From - Other reallocations]] -> 0 | CD52: =Dataset[[#This Row],[2027/28 From - Spending review Topic 1]]+Dataset[[#This Row],[2027/28 From - Spending review Topic 2]]+Dataset[[#This Row],[2027/28 From - Spending review Topic 3]]+Dataset[[#This Row],[2027/28 From - Spending review Topic 4]]+Dataset[[#This Row],[2027/28 From - Other reallocations]] -> 0 | CE52: =Dataset[[#This Row],[2025/26 To - Spending review Topic 1]]+Dataset[[#This Row],[2025/26 To - Spending review Topic 2]]+Dataset[[#This Row],[2025/26 To - Spending review Topic 3]]+Dataset[[#This Row],[2025/26 To - Spending review Topic 4]]+Dataset[[#This Row],[2025/26 To - Other reallocations]] -> 0 | CF52: =Dataset[[#This Row],[2026/27 To - Spending review Topic 1]]+Dataset[[#This Row],[2026/27 To - Spending review Topic 2]]+Dataset[[#This Row],[2026/27 To - Spending review Topic 3]]+Dataset[[#This Row],[2026/27 To - Spending review Topic 4]]+Dataset[[#This Row],[2026/27 To - Other reallocations]] -> 0 | CG52: =Dataset[[#This Row],[2027/28 To - Spending review Topic 1]]+Dataset[[#This Row],[2027/28 To - Spending review Topic 2]]+Dataset[[#This Row],[2027/28 To - Spending review Topic 3]]+Dataset[[#This Row],[2027/28 To - Spending review Topic 4]]+Dataset[[#This Row],[2027/28 To - Other reallocations]] -> 0 | CH52: =Dataset[[#This Row],[2025/26 Reduction]]+Dataset[[#This Row],[2025/26 From - Total]] -> 0 | CI52: =Dataset[[#This Row],[2026/27 Reduction]]+Dataset[[#This Row],[2026/27 From - Total]] -> 0 | CJ52: =Dataset[[#This Row],[2027/28 Reduction]]+Dataset[[#This Row],[2027/28 From - Total]] -> 0 | CK52: =Dataset[[#This Row],[2024/25 Reduction]] -> 0 | CL52: =SUM(Dataset[[#This Row],[2025/26 Reduction]],Dataset[[#This Row],[2025/26 From - Total]],Dataset[[#This Row],[2025/26 To - Total]]) -> 0 | CM52: =SUM(Dataset[[#This Row],[2026/27 Reduction]],Dataset[[#This Row],[2026/27 From - Total]],Dataset[[#This Row],[2026/27 To - Total]]) -> 0 | CN52: =SUM(Dataset[[#This Row],[2027/28 Reduction]],Dataset[[#This Row],[2027/28 From - Total]],Dataset[[#This Row],[2027/28 To - Total]]) -> 0 | CO52: =Dataset[[#This Row],[2024/25 Baseline]]+Dataset[[#This Row],[2024/25 Total change]] -> 30 | CP52: =Dataset[[#This Row],[2025/26 Baseline]]+Dataset[[#This Row],[2025/26 Total change]] -> 31 | CQ52: =Dataset[[#This Row],[2026/27 Baseline]]+Dataset[[#This Row],[2026/27 Total change]] -> 32 | CR52: =Dataset[[#This Row],[2027/28 Baseline]]+Dataset[[#This Row],[2027/28 Total change]] -> 33
A53: NAT|Non-transfer item | B53: 16|Property payments | C53: 2025_26 | D53: MTEC2025 | E53: 16 | F53: 1 | G53: 1 | H53: 16698 | I53: 35 | J53: 16 | K53: 01 | L53: 01 | M53: 016698 | N53: 000035 | O53: 16|01|01|000035 | P53: 01 | Q53: 01 | R53: 02 | S53: 35 | T53: 35 | U53: 01|01|02|35|35 | V53: National | W53: Basic Education | X53: Administration | Y53: Ministry | Z53: Non-transfer item | AA53: Current | AB53: Current payments | AC53: Goods and services | AD53: Property payments | AE53: Property payments | AF53: Learning and culture | AG53: Basic education | AH53: NAT | AI53: 0 | AJ53: 0 | AK53: 0 | AL53: 0 | AM53: 0 | AN53: 0 | AP53: 0 | AQ53: 0 | AR53: 0 | AS53: 0 | CB53: =Dataset[[#This Row],[2025/26 From - Spending review Topic 1]]+Dataset[[#This Row],[2025/26 From - Spending review Topic 2]]+Dataset[[#This Row],[2025/26 From - Spending review Topic 3]]+Dataset[[#This Row],[2025/26 From - Spending review Topic 4]]+Dataset[[#This Row],[2025/26 From - Other reallocations]] -> 0 | CC53: =Dataset[[#This Row],[2026/27 From - Spending review Topic 1]]+Dataset[[#This Row],[2026/27 From - Spending review Topic 2]]+Dataset[[#This Row],[2026/27 From - Spending review Topic 3]]+Dataset[[#This Row],[2026/27 From - Spending review Topic 4]]+Dataset[[#This Row],[2026/27 From - Other reallocations]] -> 0 | CD53: =Dataset[[#This Row],[2027/28 From - Spending review Topic 1]]+Dataset[[#This Row],[2027/28 From - Spending review Topic 2]]+Dataset[[#This Row],[2027/28 From - Spending review Topic 3]]+Dataset[[#This Row],[2027/28 From - Spending review Topic 4]]+Dataset[[#This Row],[2027/28 From - Other reallocations]] -> 0 | CE53: =Dataset[[#This Row],[2025/26 To - Spending review Topic 1]]+Dataset[[#This Row],[2025/26 To - Spending review Topic 2]]+Dataset[[#This Row],[2025/26 To - Spending review Topic 3]]+Dataset[[#This Row],[2025/26 To - Spending review Topic 4]]+Dataset[[#This Row],[2025/26 To - Other reallocations]] -> 0 | CF53: =Dataset[[#This Row],[2026/27 To - Spending review Topic 1]]+Dataset[[#This Row],[2026/27 To - Spending review Topic 2]]+Dataset[[#This Row],[2026/27 To - Spending review Topic 3]]+Dataset[[#This Row],[2026/27 To - Spending review Topic 4]]+Dataset[[#This Row],[2026/27 To - Other reallocations]] -> 0 | CG53: =Dataset[[#This Row],[2027/28 To - Spending review Topic 1]]+Dataset[[#This Row],[2027/28 To - Spending review Topic 2]]+Dataset[[#This Row],[2027/28 To - Spending review Topic 3]]+Dataset[[#This Row],[2027/28 To - Spending review Topic 4]]+Dataset[[#This Row],[2027/28 To - Other reallocations]] -> 0 | CH53: =Dataset[[#This Row],[2025/26 Reduction]]+Dataset[[#This Row],[2025/26 From - Total]] -> 0 | CI53: =Dataset[[#This Row],[2026/27 Reduction]]+Dataset[[#This Row],[2026/27 From - Total]] -> 0 | CJ53: =Dataset[[#This Row],[2027/28 Reduction]]+Dataset[[#This Row],[2027/28 From - Total]] -> 0 | CK53: =Dataset[[#This Row],[2024/25 Reduction]] -> 0 | CL53: =SUM(Dataset[[#This Row],[2025/26 Reduction]],Dataset[[#This Row],[2025/26 From - Total]],Dataset[[#This Row],[2025/26 To - Total]]) -> 0 | CM53: =SUM(Dataset[[#This Row],[2026/27 Reduction]],Dataset[[#This Row],[2026/27 From - Total]],Dataset[[#This Row],[2026/27 To - Total]]) -> 0 | CN53: =SUM(Dataset[[#This Row],[2027/28 Reduction]],Dataset[[#This Row],[2027/28 From - Total]],Dataset[[#This Row],[2027/28 To - Total]]) -> 0 | CO53: =Dataset[[#This Row],[2024/25 Baseline]]+Dataset[[#This Row],[2024/25 Total change]] -> 0 | CP53: =Dataset[[#This Row],[2025/26 Baseline]]+Dataset[[#This Row],[2025/26 Total change]] -> 0 | CQ53: =Dataset[[#This Row],[2026/27 Baseline]]+Dataset[[#This Row],[2026/27 Total change]] -> 0 | CR53: =Dataset[[#This Row],[2027/28 Baseline]]+Dataset[[#This Row],[2027/28 Total change]] -> 0
A54: NAT|Non-transfer item | B54: 16|Transport provided: Departmental activity | C54: 2025_26 | D54: MTEC2025 | E54: 16 | F54: 1 | G54: 1 | H54: 16699 | I54: 36 | J54: 16 | K54: 01 | L54: 01 | M54: 016699 | N54: 000036 | O54: 16|01|01|000036 | P54: 01 | Q54: 01 | R54: 02 | S54: 36 | T54: 36 | U54: 01|01|02|36|36 | V54: National | W54: Basic Education | X54: Administration | Y54: Ministry | Z54: Non-transfer item | AA54: Current | AB54: Current payments | AC54: Goods and services | AD54: Transport provided: Departmental activity | AE54: Transport provided: Departmental activity | AF54: Learning and culture | AG54: Basic education | AH54: NAT | AI54: 0 | AJ54: 0 | AK54: 0 | AL54: 0 | AM54: 0 | AN54: 0 | AP54: 0 | AQ54: 0 | AR54: 0 | AS54: 0 | CB54: =Dataset[[#This Row],[2025/26 From - Spending review Topic 1]]+Dataset[[#This Row],[2025/26 From - Spending review Topic 2]]+Dataset[[#This Row],[2025/26 From - Spending review Topic 3]]+Dataset[[#This Row],[2025/26 From - Spending review Topic 4]]+Dataset[[#This Row],[2025/26 From - Other reallocations]] -> 0 | CC54: =Dataset[[#This Row],[2026/27 From - Spending review Topic 1]]+Dataset[[#This Row],[2026/27 From - Spending review Topic 2]]+Dataset[[#This Row],[2026/27 From - Spending review Topic 3]]+Dataset[[#This Row],[2026/27 From - Spending review Topic 4]]+Dataset[[#This Row],[2026/27 From - Other reallocations]] -> 0 | CD54: =Dataset[[#This Row],[2027/28 From - Spending review Topic 1]]+Dataset[[#This Row],[2027/28 From - Spending review Topic 2]]+Dataset[[#This Row],[2027/28 From - Spending review Topic 3]]+Dataset[[#This Row],[2027/28 From - Spending review Topic 4]]+Dataset[[#This Row],[2027/28 From - Other reallocations]] -> 0 | CE54: =Dataset[[#This Row],[2025/26 To - Spending review Topic 1]]+Dataset[[#This Row],[2025/26 To - Spending review Topic 2]]+Dataset[[#This Row],[2025/26 To - Spending review Topic 3]]+Dataset[[#This Row],[2025/26 To - Spending review Topic 4]]+Dataset[[#This Row],[2025/26 To - Other reallocations]] -> 0 | CF54: =Dataset[[#This Row],[2026/27 To - Spending review Topic 1]]+Dataset[[#This Row],[2026/27 To - Spending review Topic 2]]+Dataset[[#This Row],[2026/27 To - Spending review Topic 3]]+Dataset[[#This Row],[2026/27 To - Spending review Topic 4]]+Dataset[[#This Row],[2026/27 To - Other reallocations]] -> 0 | CG54: =Dataset[[#This Row],[2027/28 To - Spending review Topic 1]]+Dataset[[#This Row],[2027/28 To - Spending review Topic 2]]+Dataset[[#This Row],[2027/28 To - Spending review Topic 3]]+Dataset[[#This Row],[2027/28 To - Spending review Topic 4]]+Dataset[[#This Row],[2027/28 To - Other reallocations]] -> 0 | CH54: =Dataset[[#This Row],[2025/26 Reduction]]+Dataset[[#This Row],[2025/26 From - Total]] -> 0 | CI54: =Dataset[[#This Row],[2026/27 Reduction]]+Dataset[[#This Row],[2026/27 From - Total]] -> 0 | CJ54: =Dataset[[#This Row],[2027/28 Reduction]]+Dataset[[#This Row],[2027/28 From - Total]] -> 0 | CK54: =Dataset[[#This Row],[2024/25 Reduction]] -> 0 | CL54: =SUM(Dataset[[#This Row],[2025/26 Reduction]],Dataset[[#This Row],[2025/26 From - Total]],Dataset[[#This Row],[2025/26 To - Total]]) -> 0 | CM54: =SUM(Dataset[[#This Row],[2026/27 Reduction]],Dataset[[#This Row],[2026/27 From - Total]],Dataset[[#This Row],[2026/27 To - Total]]) -> 0 | CN54: =SUM(Dataset[[#This Row],[2027/28 Reduction]],Dataset[[#This Row],[2027/28 From - Total]],Dataset[[#This Row],[2027/28 To - Total]]) -> 0 | CO54: =Dataset[[#This Row],[2024/25 Baseline]]+Dataset[[#This Row],[2024/25 Total change]] -> 0 | CP54: =Dataset[[#This Row],[2025/26 Baseline]]+Dataset[[#This Row],[2025/26 Total change]] -> 0 | CQ54: =Dataset[[#This Row],[2026/27 Baseline]]+Dataset[[#This Row],[2026/27 Total change]] -> 0 | CR54: =Dataset[[#This Row],[2027/28 Baseline]]+Dataset[[#This Row],[2027/28 Total change]] -> 0
A55: NAT|Non-transfer item | B55: 16|Travel and subsistence | C55: 2025_26 | D55: MTEC2025 | E55: 16 | F55: 1 | G55: 1 | H55: 16700 | I55: 37 | J55: 16 | K55: 01 | L55: 01 | M55: 016700 | N55: 000037 | O55: 16|01|01|000037 | P55: 01 | Q55: 01 | R55: 02 | S55: 37 | T55: 37 | U55: 01|01|02|37|37 | V55: National | W55: Basic Education | X55: Administration | Y55: Ministry | Z55: Non-transfer item | AA55: Current | AB55: Current payments | AC55: Goods and services | AD55: Travel and subsistence | AE55: Travel and subsistence | AF55: Learning and culture | AG55: Basic education | AH55: NAT | AI55: 3817 | AJ55: 8437 | AK55: 13202 | AL55: 5702 | AM55: 9194 | AN55: 9194 | AO55: 21221 | AP55: 6113 | AQ55: 6289 | AR55: 6577 | AS55: 6874 | CB55: =Dataset[[#This Row],[2025/26 From - Spending review Topic 1]]+Dataset[[#This Row],[2025/26 From - Spending review Topic 2]]+Dataset[[#This Row],[2025/26 From - Spending review Topic 3]]+Dataset[[#This Row],[2025/26 From - Spending review Topic 4]]+Dataset[[#This Row],[2025/26 From - Other reallocations]] -> 0 | CC55: =Dataset[[#This Row],[2026/27 From - Spending review Topic 1]]+Dataset[[#This Row],[2026/27 From - Spending review Topic 2]]+Dataset[[#This Row],[2026/27 From - Spending review Topic 3]]+Dataset[[#This Row],[2026/27 From - Spending review Topic 4]]+Dataset[[#This Row],[2026/27 From - Other reallocations]] -> 0 | CD55: =Dataset[[#This Row],[2027/28 From - Spending review Topic 1]]+Dataset[[#This Row],[2027/28 From - Spending review Topic 2]]+Dataset[[#This Row],[2027/28 From - Spending review Topic 3]]+Dataset[[#This Row],[2027/28 From - Spending review Topic 4]]+Dataset[[#This Row],[2027/28 From - Other reallocations]] -> 0 | CE55: =Dataset[[#This Row],[2025/26 To - Spending review Topic 1]]+Dataset[[#This Row],[2025/26 To - Spending review Topic 2]]+Dataset[[#This Row],[2025/26 To - Spending review Topic 3]]+Dataset[[#This Row],[2025/26 To - Spending review Topic 4]]+Dataset[[#This Row],[2025/26 To - Other reallocations]] -> 0 | CF55: =Dataset[[#This Row],[2026/27 To - Spending review Topic 1]]+Dataset[[#This Row],[2026/27 To - Spending review Topic 2]]+Dataset[[#This Row],[2026/27 To - Spending review Topic 3]]+Dataset[[#This Row],[2026/27 To - Spending review Topic 4]]+Dataset[[#This Row],[2026/27 To - Other reallocations]] -> 0 | CG55: =Dataset[[#This Row],[2027/28 To - Spending review Topic 1]]+Dataset[[#This Row],[2027/28 To - Spending review Topic 2]]+Dataset[[#This Row],[2027/28 To - Spending review Topic 3]]+Dataset[[#This Row],[2027/28 To - Spending review Topic 4]]+Dataset[[#This Row],[2027/28 To - Other reallocations]] -> 0 | CH55: =Dataset[[#This Row],[2025/26 Reduction]]+Dataset[[#This Row],[2025/26 From - Total]] -> 0 | CI55: =Dataset[[#This Row],[2026/27 Reduction]]+Dataset[[#This Row],[2026/27 From - Total]] -> 0 | CJ55: =Dataset[[#This Row],[2027/28 Reduction]]+Dataset[[#This Row],[2027/28 From - Total]] -> 0 | CK55: =Dataset[[#This Row],[2024/25 Reduction]] -> 0 | CL55: =SUM(Dataset[[#This Row],[2025/26 Reduction]],Dataset[[#This Row],[2025/26 From - Total]],Dataset[[#This Row],[2025/26 To - Total]]) -> 0 | CM55: =SUM(Dataset[[#This Row],[2026/27 Reduction]],Dataset[[#This Row],[2026/27 From - Total]],Dataset[[#This Row],[2026/27 To - Total]]) -> 0 | CN55: =SUM(Dataset[[#This Row],[2027/28 Reduction]],Dataset[[#This Row],[2027/28 From - Total]],Dataset[[#This Row],[2027/28 To - Total]]) -> 0 | CO55: =Dataset[[#This Row],[2024/25 Baseline]]+Dataset[[#This Row],[2024/25 Total change]] -> 6113 | CP55: =Dataset[[#This Row],[2025/26 Baseline]]+Dataset[[#This Row],[2025/26 Total change]] -> 6289 | CQ55: =Dataset[[#This Row],[2026/27 Baseline]]+Dataset[[#This Row],[2026/27 Total change]] -> 6577 | CR55: =Dataset[[#This Row],[2027/28 Baseline]]+Dataset[[#This Row],[2027/28 Total change]] -> 6874
A56: NAT|Non-transfer item | B56: 16|Training and development | C56: 2025_26 | D56: MTEC2025 | E56: 16 | F56: 1 | G56: 1 | H56: 16701 | I56: 38 | J56: 16 | K56: 01 | L56: 01 | M56: 016701 | N56: 000038 | O56: 16|01|01|000038 | P56: 01 | Q56: 01 | R56: 02 | S56: 38 | T56: 38 | U56: 01|01|02|38|38 | V56: National | W56: Basic Education | X56: Administration | Y56: Ministry | Z56: Non-transfer item | AA56: Current | AB56: Current payments | AC56: Goods and services | AD56: Training and development | AE56: Training and development | AF56: Learning and culture | AG56: Basic education | AH56: NAT | AI56: 0 | AJ56: 0 | AK56: 0 | AL56: 0 | AM56: 0 | AN56: 0 | AP56: 0 | AQ56: 0 | AR56: 0 | AS56: 0 | CB56: =Dataset[[#This Row],[2025/26 From - Spending review Topic 1]]+Dataset[[#This Row],[2025/26 From - Spending review Topic 2]]+Dataset[[#This Row],[2025/26 From - Spending review Topic 3]]+Dataset[[#This Row],[2025/26 From - Spending review Topic 4]]+Dataset[[#This Row],[2025/26 From - Other reallocations]] -> 0 | CC56: =Dataset[[#This Row],[2026/27 From - Spending review Topic 1]]+Dataset[[#This Row],[2026/27 From - Spending review Topic 2]]+Dataset[[#This Row],[2026/27 From - Spending review Topic 3]]+Dataset[[#This Row],[2026/27 From - Spending review Topic 4]]+Dataset[[#This Row],[2026/27 From - Other reallocations]] -> 0 | CD56: =Dataset[[#This Row],[2027/28 From - Spending review Topic 1]]+Dataset[[#This Row],[2027/28 From - Spending review Topic 2]]+Dataset[[#This Row],[2027/28 From - Spending review Topic 3]]+Dataset[[#This Row],[2027/28 From - Spending review Topic 4]]+Dataset[[#This Row],[2027/28 From - Other reallocations]] -> 0 | CE56: =Dataset[[#This Row],[2025/26 To - Spending review Topic 1]]+Dataset[[#This Row],[2025/26 To - Spending review Topic 2]]+Dataset[[#This Row],[2025/26 To - Spending review Topic 3]]+Dataset[[#This Row],[2025/26 To - Spending review Topic 4]]+Dataset[[#This Row],[2025/26 To - Other reallocations]] -> 0 | CF56: =Dataset[[#This Row],[2026/27 To - Spending review Topic 1]]+Dataset[[#This Row],[2026/27 To - Spending review Topic 2]]+Dataset[[#This Row],[2026/27 To - Spending review Topic 3]]+Dataset[[#This Row],[2026/27 To - Spending review Topic 4]]+Dataset[[#This Row],[2026/27 To - Other reallocations]] -> 0 | CG56: =Dataset[[#This Row],[2027/28 To - Spending review Topic 1]]+Dataset[[#This Row],[2027/28 To - Spending review Topic 2]]+Dataset[[#This Row],[2027/28 To - Spending review Topic 3]]+Dataset[[#This Row],[2027/28 To - Spending review Topic 4]]+Dataset[[#This Row],[2027/28 To - Other reallocations]] -> 0 | CH56: =Dataset[[#This Row],[2025/26 Reduction]]+Dataset[[#This Row],[2025/26 From - Total]] -> 0 | CI56: =Dataset[[#This Row],[2026/27 Reduction]]+Dataset[[#This Row],[2026/27 From - Total]] -> 0 | CJ56: =Dataset[[#This Row],[2027/28 Reduction]]+Dataset[[#This Row],[2027/28 From - Total]] -> 0 | CK56: =Dataset[[#This Row],[2024/25 Reduction]] -> 0 | CL56: =SUM(Dataset[[#This Row],[2025/26 Reduction]],Dataset[[#This Row],[2025/26 From - Total]],Dataset[[#This Row],[2025/26 To - Total]]) -> 0 | CM56: =SUM(Dataset[[#This Row],[2026/27 Reduction]],Dataset[[#This Row],[2026/27 From - Total]],Dataset[[#This Row],[2026/27 To - Total]]) -> 0 | CN56: =SUM(Dataset[[#This Row],[2027/28 Reduction]],Dataset[[#This Row],[2027/28 From - Total]],Dataset[[#This Row],[2027/28 To - Total]]) -> 0 | CO56: =Dataset[[#This Row],[2024/25 Baseline]]+Dataset[[#This Row],[2024/25 Total change]] -> 0 | CP56: =Dataset[[#This Row],[2025/26 Baseline]]+Dataset[[#This Row],[2025/26 Total change]] -> 0 | CQ56: =Dataset[[#This Row],[2026/27 Baseline]]+Dataset[[#This Row],[2026/27 Total change]] -> 0 | CR56: =Dataset[[#This Row],[2027/28 Baseline]]+Dataset[[#This Row],[2027/28 Total change]] -> 0
A57: NAT|Non-transfer item | B57: 16|Operating payments | C57: 2025_26 | D57: MTEC2025 | E57: 16 | F57: 1 | G57: 1 | H57: 16702 | I57: 39 | J57: 16 | K57: 01 | L57: 01 | M57: 016702 | N57: 000039 | O57: 16|01|01|000039 | P57: 01 | Q57: 01 | R57: 02 | S57: 39 | T57: 39 | U57: 01|01|02|39|39 | V57: National | W57: Basic Education | X57: Administration | Y57: Ministry | Z57: Non-transfer item | AA57: Current | AB57: Current payments | AC57: Goods and services | AD57: Operating payments | AE57: Operating payments | AF57: Learning and culture | AG57: Basic education | AH57: NAT | AI57: 1 | AJ57: 5 | AK57: 2 | AL57: 104 | AM57: 104 | AN57: 104 | AO57: 10 | AP57: 113 | AQ57: 125 | AR57: 131 | AS57: 137 | CB57: =Dataset[[#This Row],[2025/26 From - Spending review Topic 1]]+Dataset[[#This Row],[2025/26 From - Spending review Topic 2]]+Dataset[[#This Row],[2025/26 From - Spending review Topic 3]]+Dataset[[#This Row],[2025/26 From - Spending review Topic 4]]+Dataset[[#This Row],[2025/26 From - Other reallocations]] -> 0 | CC57: =Dataset[[#This Row],[2026/27 From - Spending review Topic 1]]+Dataset[[#This Row],[2026/27 From - Spending review Topic 2]]+Dataset[[#This Row],[2026/27 From - Spending review Topic 3]]+Dataset[[#This Row],[2026/27 From - Spending review Topic 4]]+Dataset[[#This Row],[2026/27 From - Other reallocations]] -> 0 | CD57: =Dataset[[#This Row],[2027/28 From - Spending review Topic 1]]+Dataset[[#This Row],[2027/28 From - Spending review Topic 2]]+Dataset[[#This Row],[2027/28 From - Spending review Topic 3]]+Dataset[[#This Row],[2027/28 From - Spending review Topic 4]]+Dataset[[#This Row],[2027/28 From - Other reallocations]] -> 0 | CE57: =Dataset[[#This Row],[2025/26 To - Spending review Topic 1]]+Dataset[[#This Row],[2025/26 To - Spending review Topic 2]]+Dataset[[#This Row],[2025/26 To - Spending review Topic 3]]+Dataset[[#This Row],[2025/26 To - Spending review Topic 4]]+Dataset[[#This Row],[2025/26 To - Other reallocations]] -> 0 | CF57: =Dataset[[#This Row],[2026/27 To - Spending review Topic 1]]+Dataset[[#This Row],[2026/27 To - Spending review Topic 2]]+Dataset[[#This Row],[2026/27 To - Spending review Topic 3]]+Dataset[[#This Row],[2026/27 To - Spending review Topic 4]]+Dataset[[#This Row],[2026/27 To - Other reallocations]] -> 0 | CG57: =Dataset[[#This Row],[2027/28 To - Spending review Topic 1]]+Dataset[[#This Row],[2027/28 To - Spending review Topic 2]]+Dataset[[#This Row],[2027/28 To - Spending review Topic 3]]+Dataset[[#This Row],[2027/28 To - Spending review Topic 4]]+Dataset[[#This Row],[2027/28 To - Other reallocations]] -> 0 | CH57: =Dataset[[#This Row],[2025/26 Reduction]]+Dataset[[#This Row],[2025/26 From - Total]] -> 0 | CI57: =Dataset[[#This Row],[2026/27 Reduction]]+Dataset[[#This Row],[2026/27 From - Total]] -> 0 | CJ57: =Dataset[[#This Row],[2027/28 Reduction]]+Dataset[[#This Row],[2027/28 From - Total]] -> 0 | CK57: =Dataset[[#This Row],[2024/25 Reduction]] -> 0 | CL57: =SUM(Dataset[[#This Row],[2025/26 Reduction]],Dataset[[#This Row],[2025/26 From - Total]],Dataset[[#This Row],[2025/26 To - Total]]) -> 0 | CM57: =SUM(Dataset[[#This Row],[2026/27 Reduction]],Dataset[[#This Row],[2026/27 From - Total]],Dataset[[#This Row],[2026/27 To - Total]]) -> 0 | CN57: =SUM(Dataset[[#This Row],[2027/28 Reduction]],Dataset[[#This Row],[2027/28 From - Total]],Dataset[[#This Row],[2027/28 To - Total]]) -> 0 | CO57: =Dataset[[#This Row],[2024/25 Baseline]]+Dataset[[#This Row],[2024/25 Total change]] -> 113 | CP57: =Dataset[[#This Row],[2025/26 Baseline]]+Dataset[[#This Row],[2025/26 Total change]] -> 125 | CQ57: =Dataset[[#This Row],[2026/27 Baseline]]+Dataset[[#This Row],[2026/27 Total change]] -> 131 | CR57: =Dataset[[#This Row],[2027/28 Baseline]]+Dataset[[#This Row],[2027/28 Total change]] -> 137
A58: NAT|Non-transfer item | B58: 16|Venues and facilities | C58: 2025_26 | D58: MTEC2025 | E58: 16 | F58: 1 | G58: 1 | H58: 16703 | I58: 40 | J58: 16 | K58: 01 | L58: 01 | M58: 016703 | N58: 000040 | O58: 16|01|01|000040 | P58: 01 | Q58: 01 | R58: 02 | S58: 40 | T58: 40 | U58: 01|01|02|40|40 | V58: National | W58: Basic Education | X58: Administration | Y58: Ministry | Z58: Non-transfer item | AA58: Current | AB58: Current payments | AC58: Goods and services | AD58: Venues and facilities | AE58: Venues and facilities | AF58: Learning and culture | AG58: Basic education | AH58: NAT | AI58: 0 | AJ58: 339 | AK58: 780 | AL58: 565 | AM58: 565 | AN58: 565 | AO58: 333 | AP58: 582 | AQ58: 611 | AR58: 639 | AS58: 668 | CB58: =Dataset[[#This Row],[2025/26 From - Spending review Topic 1]]+Dataset[[#This Row],[2025/26 From - Spending review Topic 2]]+Dataset[[#This Row],[2025/26 From - Spending review Topic 3]]+Dataset[[#This Row],[2025/26 From - Spending review Topic 4]]+Dataset[[#This Row],[2025/26 From - Other reallocations]] -> 0 | CC58: =Dataset[[#This Row],[2026/27 From - Spending review Topic 1]]+Dataset[[#This Row],[2026/27 From - Spending review Topic 2]]+Dataset[[#This Row],[2026/27 From - Spending review Topic 3]]+Dataset[[#This Row],[2026/27 From - Spending review Topic 4]]+Dataset[[#This Row],[2026/27 From - Other reallocations]] -> 0 | CD58: =Dataset[[#This Row],[2027/28 From - Spending review Topic 1]]+Dataset[[#This Row],[2027/28 From - Spending review Topic 2]]+Dataset[[#This Row],[2027/28 From - Spending review Topic 3]]+Dataset[[#This Row],[2027/28 From - Spending review Topic 4]]+Dataset[[#This Row],[2027/28 From - Other reallocations]] -> 0 | CE58: =Dataset[[#This Row],[2025/26 To - Spending review Topic 1]]+Dataset[[#This Row],[2025/26 To - Spending review Topic 2]]+Dataset[[#This Row],[2025/26 To - Spending review Topic 3]]+Dataset[[#This Row],[2025/26 To - Spending review Topic 4]]+Dataset[[#This Row],[2025/26 To - Other reallocations]] -> 0 | CF58: =Dataset[[#This Row],[2026/27 To - Spending review Topic 1]]+Dataset[[#This Row],[2026/27 To - Spending review Topic 2]]+Dataset[[#This Row],[2026/27 To - Spending review Topic 3]]+Dataset[[#This Row],[2026/27 To - Spending review Topic 4]]+Dataset[[#This Row],[2026/27 To - Other reallocations]] -> 0 | CG58: =Dataset[[#This Row],[2027/28 To - Spending review Topic 1]]+Dataset[[#This Row],[2027/28 To - Spending review Topic 2]]+Dataset[[#This Row],[2027/28 To - Spending review Topic 3]]+Dataset[[#This Row],[2027/28 To - Spending review Topic 4]]+Dataset[[#This Row],[2027/28 To - Other reallocations]] -> 0 | CH58: =Dataset[[#This Row],[2025/26 Reduction]]+Dataset[[#This Row],[2025/26 From - Total]] -> 0 | CI58: =Dataset[[#This Row],[2026/27 Reduction]]+Dataset[[#This Row],[2026/27 From - Total]] -> 0 | CJ58: =Dataset[[#This Row],[2027/28 Reduction]]+Dataset[[#This Row],[2027/28 From - Total]] -> 0 | CK58: =Dataset[[#This Row],[2024/25 Reduction]] -> 0 | CL58: =SUM(Dataset[[#This Row],[2025/26 Reduction]],Dataset[[#This Row],[2025/26 From - Total]],Dataset[[#This Row],[2025/26 To - Total]]) -> 0 | CM58: =SUM(Dataset[[#This Row],[2026/27 Reduction]],Dataset[[#This Row],[2026/27 From - Total]],Dataset[[#This Row],[2026/27 To - Total]]) -> 0 | CN58: =SUM(Dataset[[#This Row],[2027/28 Reduction]],Dataset[[#This Row],[2027/28 From - Total]],Dataset[[#This Row],[2027/28 To - Total]]) -> 0 | CO58: =Dataset[[#This Row],[2024/25 Baseline]]+Dataset[[#This Row],[2024/25 Total change]] -> 582 | CP58: =Dataset[[#This Row],[2025/26 Baseline]]+Dataset[[#This Row],[2025/26 Total change]] -> 611 | CQ58: =Dataset[[#This Row],[2026/27 Baseline]]+Dataset[[#This Row],[2026/27 Total change]] -> 639 | CR58: =Dataset[[#This Row],[2027/28 Baseline]]+Dataset[[#This Row],[2027/28 Total change]] -> 668
A59: NAT|Non-transfer item | B59: 16|Interest (Incl. interest on unitary payments (PPP)) | C59: 2025_26 | D59: MTEC2025 | E59: 16 | F59: 1 | G59: 1 | H59: 16704 | I59: 41 | J59: 16 | K59: 01 | L59: 01 | M59: 016704 | N59: 000041 | O59: 16|01|01|000041 | P59: 01 | Q59: 01 | R59: 03 | S59: 41 | T59: 41 | U59: 01|01|03|41|41 | V59: National | W59: Basic Education | X59: Administration | Y59: Ministry | Z59: Non-transfer item | AA59: Current | AB59: Current payments | AC59: Interest and rent on land | AD59: Interest (Incl. interest on unitary payments (PPP)) | AE59: Interest (Incl. interest on unitary payments (PPP)) | AF59: Learning and culture | AG59: Basic education | AH59: NAT | AI59: 0 | AJ59: 0 | AK59: 0 | AL59: 0 | AM59: 0 | AN59: 0 | AP59: 0 | AQ59: 0 | AR59: 0 | AS59: 0 | CB59: =Dataset[[#This Row],[2025/26 From - Spending review Topic 1]]+Dataset[[#This Row],[2025/26 From - Spending review Topic 2]]+Dataset[[#This Row],[2025/26 From - Spending review Topic 3]]+Dataset[[#This Row],[2025/26 From - Spending review Topic 4]]+Dataset[[#This Row],[2025/26 From - Other reallocations]] -> 0 | CC59: =Dataset[[#This Row],[2026/27 From - Spending review Topic 1]]+Dataset[[#This Row],[2026/27 From - Spending review Topic 2]]+Dataset[[#This Row],[2026/27 From - Spending review Topic 3]]+Dataset[[#This Row],[2026/27 From - Spending review Topic 4]]+Dataset[[#This Row],[2026/27 From - Other reallocations]] -> 0 | CD59: =Dataset[[#This Row],[2027/28 From - Spending review Topic 1]]+Dataset[[#This Row],[2027/28 From - Spending review Topic 2]]+Dataset[[#This Row],[2027/28 From - Spending review Topic 3]]+Dataset[[#This Row],[2027/28 From - Spending review Topic 4]]+Dataset[[#This Row],[2027/28 From - Other reallocations]] -> 0 | CE59: =Dataset[[#This Row],[2025/26 To - Spending review Topic 1]]+Dataset[[#This Row],[2025/26 To - Spending review Topic 2]]+Dataset[[#This Row],[2025/26 To - Spending review Topic 3]]+Dataset[[#This Row],[2025/26 To - Spending review Topic 4]]+Dataset[[#This Row],[2025/26 To - Other reallocations]] -> 0 | CF59: =Dataset[[#This Row],[2026/27 To - Spending review Topic 1]]+Dataset[[#This Row],[2026/27 To - Spending review Topic 2]]+Dataset[[#This Row],[2026/27 To - Spending review Topic 3]]+Dataset[[#This Row],[2026/27 To - Spending review Topic 4]]+Dataset[[#This Row],[2026/27 To - Other reallocations]] -> 0 | CG59: =Dataset[[#This Row],[2027/28 To - Spending review Topic 1]]+Dataset[[#This Row],[2027/28 To - Spending review Topic 2]]+Dataset[[#This Row],[2027/28 To - Spending review Topic 3]]+Dataset[[#This Row],[2027/28 To - Spending review Topic 4]]+Dataset[[#This Row],[2027/28 To - Other reallocations]] -> 0 | CH59: =Dataset[[#This Row],[2025/26 Reduction]]+Dataset[[#This Row],[2025/26 From - Total]] -> 0 | CI59: =Dataset[[#This Row],[2026/27 Reduction]]+Dataset[[#This Row],[2026/27 From - Total]] -> 0 | CJ59: =Dataset[[#This Row],[2027/28 Reduction]]+Dataset[[#This Row],[2027/28 From - Total]] -> 0 | CK59: =Dataset[[#This Row],[2024/25 Reduction]] -> 0 | CL59: =SUM(Dataset[[#This Row],[2025/26 Reduction]],Dataset[[#This Row],[2025/26 From - Total]],Dataset[[#This Row],[2025/26 To - Total]]) -> 0 | CM59: =SUM(Dataset[[#This Row],[2026/27 Reduction]],Dataset[[#This Row],[2026/27 From - Total]],Dataset[[#This Row],[2026/27 To - Total]]) -> 0 | CN59: =SUM(Dataset[[#This Row],[2027/28 Reduction]],Dataset[[#This Row],[2027/28 From - Total]],Dataset[[#This Row],[2027/28 To - Total]]) -> 0 | CO59: =Dataset[[#This Row],[2024/25 Baseline]]+Dataset[[#This Row],[2024/25 Total change]] -> 0 | CP59: =Dataset[[#This Row],[2025/26 Baseline]]+Dataset[[#This Row],[2025/26 Total change]] -> 0 | CQ59: =Dataset[[#This Row],[2026/27 Baseline]]+Dataset[[#This Row],[2026/27 Total change]] -> 0 | CR59: =Dataset[[#This Row],[2027/28 Baseline]]+Dataset[[#This Row],[2027/28 Total change]] -> 0
A60: NAT|Non-transfer item | B60: 16|Rent on land | C60: 2025_26 | D60: MTEC2025 | E60: 16 | F60: 1 | G60: 1 | H60: 16705 | I60: 42 | J60: 16 | K60: 01 | L60: 01 | M60: 016705 | N60: 000042 | O60: 16|01|01|000042 | P60: 01 | Q60: 01 | R60: 03 | S60: 42 | T60: 42 | U60: 01|01|03|42|42 | V60: National | W60: Basic Education | X60: Administration | Y60: Ministry | Z60: Non-transfer item | AA60: Current | AB60: Current payments | AC60: Interest and rent on land | AD60: Rent on land | AE60: Rent on land | AF60: Learning and culture | AG60: Basic education | AH60: NAT | AI60: 0 | AJ60: 0 | AK60: 0 | AL60: 0 | AM60: 0 | AN60: 0 | AP60: 0 | AQ60: 0 | AR60: 0 | AS60: 0 | CB60: =Dataset[[#This Row],[2025/26 From - Spending review Topic 1]]+Dataset[[#This Row],[2025/26 From - Spending review Topic 2]]+Dataset[[#This Row],[2025/26 From - Spending review Topic 3]]+Dataset[[#This Row],[2025/26 From - Spending review Topic 4]]+Dataset[[#This Row],[2025/26 From - Other reallocations]] -> 0 | CC60: =Dataset[[#This Row],[2026/27 From - Spending review Topic 1]]+Dataset[[#This Row],[2026/27 From - Spending review Topic 2]]+Dataset[[#This Row],[2026/27 From - Spending review Topic 3]]+Dataset[[#This Row],[2026/27 From - Spending review Topic 4]]+Dataset[[#This Row],[2026/27 From - Other reallocations]] -> 0 | CD60: =Dataset[[#This Row],[2027/28 From - Spending review Topic 1]]+Dataset[[#This Row],[2027/28 From - Spending review Topic 2]]+Dataset[[#This Row],[2027/28 From - Spending review Topic 3]]+Dataset[[#This Row],[2027/28 From - Spending review Topic 4]]+Dataset[[#This Row],[2027/28 From - Other reallocations]] -> 0 | CE60: =Dataset[[#This Row],[2025/26 To - Spending review Topic 1]]+Dataset[[#This Row],[2025/26 To - Spending review Topic 2]]+Dataset[[#This Row],[2025/26 To - Spending review Topic 3]]+Dataset[[#This Row],[2025/26 To - Spending review Topic 4]]+Dataset[[#This Row],[2025/26 To - Other reallocations]] -> 0 | CF60: =Dataset[[#This Row],[2026/27 To - Spending review Topic 1]]+Dataset[[#This Row],[2026/27 To - Spending review Topic 2]]+Dataset[[#This Row],[2026/27 To - Spending review Topic 3]]+Dataset[[#This Row],[2026/27 To - Spending review Topic 4]]+Dataset[[#This Row],[2026/27 To - Other reallocations]] -> 0 | CG60: =Dataset[[#This Row],[2027/28 To - Spending review Topic 1]]+Dataset[[#This Row],[2027/28 To - Spending review Topic 2]]+Dataset[[#This Row],[2027/28 To - Spending review Topic 3]]+Dataset[[#This Row],[2027/28 To - Spending review Topic 4]]+Dataset[[#This Row],[2027/28 To - Other reallocations]] -> 0 | CH60: =Dataset[[#This Row],[2025/26 Reduction]]+Dataset[[#This Row],[2025/26 From - Total]] -> 0 | CI60: =Dataset[[#This Row],[2026/27 Reduction]]+Dataset[[#This Row],[2026/27 From - Total]] -> 0 | CJ60: =Dataset[[#This Row],[2027/28 Reduction]]+Dataset[[#This Row],[2027/28 From - Total]] -> 0 | CK60: =Dataset[[#This Row],[2024/25 Reduction]] -> 0 | CL60: =SUM(Dataset[[#This Row],[2025/26 Reduction]],Dataset[[#This Row],[2025/26 From - Total]],Dataset[[#This Row],[2025/26 To - Total]]) -> 0 | CM60: =SUM(Dataset[[#This Row],[2026/27 Reduction]],Dataset[[#This Row],[2026/27 From - Total]],Dataset[[#This Row],[2026/27 To - Total]]) -> 0 | CN60: =SUM(Dataset[[#This Row],[2027/28 Reduction]],Dataset[[#This Row],[2027/28 From - Total]],Dataset[[#This Row],[2027/28 To - Total]]) -> 0 | CO60: =Dataset[[#This Row],[2024/25 Baseline]]+Dataset[[#This Row],[2024/25 Total change]] -> 0 | CP60: =Dataset[[#This Row],[2025/26 Baseline]]+Dataset[[#This Row],[2025/26 Total change]] -> 0 | CQ60: =Dataset[[#This Row],[2026/27 Baseline]]+Dataset[[#This Row],[2026/27 Total change]] -> 0 | CR60: =Dataset[[#This Row],[2027/28 Baseline]]+Dataset[[#This Row],[2027/28 Total change]] -> 0
A61: NAT|Employee social benefits | B61: 16|Social benefits | C61: 2025_26 | D61: MTEC2025 | E61: 16 | F61: 1 | G61: 1 | H61: 16706 | I61: 43 | J61: 16 | K61: 01 | L61: 01 | M61: 016706 | N61: 000043 | O61: 16|01|01|000043 | P61: 01 | Q61: 02 | R61: 10 | S61: 52 | T61: 56 | U61: 01|02|10|52|56 | V61: National | W61: Basic Education | X61: Administration | Y61: Ministry | Z61: Employee social benefits | AA61: Current | AB61: Transfers and subsidies | AC61: Households | AD61: Social benefits | AE61: Social benefits | AF61: Learning and culture | AG61: Basic education | AH61: NAT | AI61: 0 | AJ61: 0 | AK61: 96 | AL61: 0 | AM61: 233 | AN61: 233 | AP61: 0 | AQ61: 0 | AR61: 0 | AS61: 0 | CB61: =Dataset[[#This Row],[2025/26 From - Spending review Topic 1]]+Dataset[[#This Row],[2025/26 From - Spending review Topic 2]]+Dataset[[#This Row],[2025/26 From - Spending review Topic 3]]+Dataset[[#This Row],[2025/26 From - Spending review Topic 4]]+Dataset[[#This Row],[2025/26 From - Other reallocations]] -> 0 | CC61: =Dataset[[#This Row],[2026/27 From - Spending review Topic 1]]+Dataset[[#This Row],[2026/27 From - Spending review Topic 2]]+Dataset[[#This Row],[2026/27 From - Spending review Topic 3]]+Dataset[[#This Row],[2026/27 From - Spending review Topic 4]]+Dataset[[#This Row],[2026/27 From - Other reallocations]] -> 0 | CD61: =Dataset[[#This Row],[2027/28 From - Spending review Topic 1]]+Dataset[[#This Row],[2027/28 From - Spending review Topic 2]]+Dataset[[#This Row],[2027/28 From - Spending review Topic 3]]+Dataset[[#This Row],[2027/28 From - Spending review Topic 4]]+Dataset[[#This Row],[2027/28 From - Other reallocations]] -> 0 | CE61: =Dataset[[#This Row],[2025/26 To - Spending review Topic 1]]+Dataset[[#This Row],[2025/26 To - Spending review Topic 2]]+Dataset[[#This Row],[2025/26 To - Spending review Topic 3]]+Dataset[[#This Row],[2025/26 To - Spending review Topic 4]]+Dataset[[#This Row],[2025/26 To - Other reallocations]] -> 0 | CF61: =Dataset[[#This Row],[2026/27 To - Spending review Topic 1]]+Dataset[[#This Row],[2026/27 To - Spending review Topic 2]]+Dataset[[#This Row],[2026/27 To - Spending review Topic 3]]+Dataset[[#This Row],[2026/27 To - Spending review Topic 4]]+Dataset[[#This Row],[2026/27 To - Other reallocations]] -> 0 | CG61: =Dataset[[#This Row],[2027/28 To - Spending review Topic 1]]+Dataset[[#This Row],[2027/28 To - Spending review Topic 2]]+Dataset[[#This Row],[2027/28 To - Spending review Topic 3]]+Dataset[[#This Row],[2027/28 To - Spending review Topic 4]]+Dataset[[#This Row],[2027/28 To - Other reallocations]] -> 0 | CH61: =Dataset[[#This Row],[2025/26 Reduction]]+Dataset[[#This Row],[2025/26 From - Total]] -> 0 | CI61: =Dataset[[#This Row],[2026/27 Reduction]]+Dataset[[#This Row],[2026/27 From - Total]] -> 0 | CJ61: =Dataset[[#This Row],[2027/28 Reduction]]+Dataset[[#This Row],[2027/28 From - Total]] -> 0 | CK61: =Dataset[[#This Row],[2024/25 Reduction]] -> 0 | CL61: =SUM(Dataset[[#This Row],[2025/26 Reduction]],Dataset[[#This Row],[2025/26 From - Total]],Dataset[[#This Row],[2025/26 To - Total]]) -> 0 | CM61: =SUM(Dataset[[#This Row],[2026/27 Reduction]],Dataset[[#This Row],[2026/27 From - Total]],Dataset[[#This Row],[2026/27 To - Total]]) -> 0 | CN61: =SUM(Dataset[[#This Row],[2027/28 Reduction]],Dataset[[#This Row],[2027/28 From - Total]],Dataset[[#This Row],[2027/28 To - Total]]) -> 0 | CO61: =Dataset[[#This Row],[2024/25 Baseline]]+Dataset[[#This Row],[2024/25 Total change]] -> 0 | CP61: =Dataset[[#This Row],[2025/26 Baseline]]+Dataset[[#This Row],[2025/26 Total change]] -> 0 | CQ61: =Dataset[[#This Row],[2026/27 Baseline]]+Dataset[[#This Row],[2026/27 Total change]] -> 0 | CR61: =Dataset[[#This Row],[2027/28 Baseline]]+Dataset[[#This Row],[2027/28 Total change]] -> 0
A62: NAT|Non-transfer item | B62: 16|Buildings | C62: 2025_26 | D62: MTEC2025 | E62: 16 | F62: 1 | G62: 1 | H62: 16707 | I62: 44 | J62: 16 | K62: 01 | L62: 01 | M62: 016707 | N62: 000044 | O62: 16|01|01|000044 | P62: 02 | Q62: 03 | R62: 11 | S62: 54 | T62: 58 | U62: 02|03|11|54|58 | V62: National | W62: Basic Education | X62: Administration | Y62: Ministry | Z62: Non-transfer item | AA62: Capital | AB62: Payments for capital assets | AC62: Buildings and other fixed structures | AD62: Buildings | AE62: Buildings | AF62: Learning and culture | AG62: Basic education | AH62: NAT | AI62: 0 | AJ62: 0 | AK62: 0 | AL62: 0 | AM62: 0 | AN62: 0 | AP62: 0 | AQ62: 0 | AR62: 0 | AS62: 0 | CB62: =Dataset[[#This Row],[2025/26 From - Spending review Topic 1]]+Dataset[[#This Row],[2025/26 From - Spending review Topic 2]]+Dataset[[#This Row],[2025/26 From - Spending review Topic 3]]+Dataset[[#This Row],[2025/26 From - Spending review Topic 4]]+Dataset[[#This Row],[2025/26 From - Other reallocations]] -> 0 | CC62: =Dataset[[#This Row],[2026/27 From - Spending review Topic 1]]+Dataset[[#This Row],[2026/27 From - Spending review Topic 2]]+Dataset[[#This Row],[2026/27 From - Spending review Topic 3]]+Dataset[[#This Row],[2026/27 From - Spending review Topic 4]]+Dataset[[#This Row],[2026/27 From - Other reallocations]] -> 0 | CD62: =Dataset[[#This Row],[2027/28 From - Spending review Topic 1]]+Dataset[[#This Row],[2027/28 From - Spending review Topic 2]]+Dataset[[#This Row],[2027/28 From - Spending review Topic 3]]+Dataset[[#This Row],[2027/28 From - Spending review Topic 4]]+Dataset[[#This Row],[2027/28 From - Other reallocations]] -> 0 | CE62: =Dataset[[#This Row],[2025/26 To - Spending review Topic 1]]+Dataset[[#This Row],[2025/26 To - Spending review Topic 2]]+Dataset[[#This Row],[2025/26 To - Spending review Topic 3]]+Dataset[[#This Row],[2025/26 To - Spending review Topic 4]]+Dataset[[#This Row],[2025/26 To - Other reallocations]] -> 0 | CF62: =Dataset[[#This Row],[2026/27 To - Spending review Topic 1]]+Dataset[[#This Row],[2026/27 To - Spending review Topic 2]]+Dataset[[#This Row],[2026/27 To - Spending review Topic 3]]+Dataset[[#This Row],[2026/27 To - Spending review Topic 4]]+Dataset[[#This Row],[2026/27 To - Other reallocations]] -> 0 | CG62: =Dataset[[#This Row],[2027/28 To - Spending review Topic 1]]+Dataset[[#This Row],[2027/28 To - Spending review Topic 2]]+Dataset[[#This Row],[2027/28 To - Spending review Topic 3]]+Dataset[[#This Row],[2027/28 To - Spending review Topic 4]]+Dataset[[#This Row],[2027/28 To - Other reallocations]] -> 0 | CH62: =Dataset[[#This Row],[2025/26 Reduction]]+Dataset[[#This Row],[2025/26 From - Total]] -> 0 | CI62: =Dataset[[#This Row],[2026/27 Reduction]]+Dataset[[#This Row],[2026/27 From - Total]] -> 0 | CJ62: =Dataset[[#This Row],[2027/28 Reduction]]+Dataset[[#This Row],[2027/28 From - Total]] -> 0 | CK62: =Dataset[[#This Row],[2024/25 Reduction]] -> 0 | CL62: =SUM(Dataset[[#This Row],[2025/26 Reduction]],Dataset[[#This Row],[2025/26 From - Total]],Dataset[[#This Row],[2025/26 To - Total]]) -> 0 | CM62: =SUM(Dataset[[#This Row],[2026/27 Reduction]],Dataset[[#This Row],[2026/27 From - Total]],Dataset[[#This Row],[2026/27 To - Total]]) -> 0 | CN62: =SUM(Dataset[[#This Row],[2027/28 Reduction]],Dataset[[#This Row],[2027/28 From - Total]],Dataset[[#This Row],[2027/28 To - Total]]) -> 0 | CO62: =Dataset[[#This Row],[2024/25 Baseline]]+Dataset[[#This Row],[2024/25 Total change]] -> 0 | CP62: =Dataset[[#This Row],[2025/26 Baseline]]+Dataset[[#This Row],[2025/26 Total change]] -> 0 | CQ62: =Dataset[[#This Row],[2026/27 Baseline]]+Dataset[[#This Row],[2026/27 Total change]] -> 0 | CR62: =Dataset[[#This Row],[2027/28 Baseline]]+Dataset[[#This Row],[2027/28 Total change]] -> 0
A63: NAT|Non-transfer item | B63: 16|Other fixed structures | C63: 2025_26 | D63: MTEC2025 | E63: 16 | F63: 1 | G63: 1 | H63: 16708 | I63: 45 | J63: 16 | K63: 01 | L63: 01 | M63: 016708 | N63: 000045 | O63: 16|01|01|000045 | P63: 02 | Q63: 03 | R63: 11 | S63: 55 | T63: 59 | U63: 02|03|11|55|59 | V63: National | W63: Basic Education | X63: Administration | Y63: Ministry | Z63: Non-transfer item | AA63: Capital | AB63: Payments for capital assets | AC63: Buildings and other fixed structures | AD63: Other fixed structures | AE63: Other fixed structures | AF63: Learning and culture | AG63: Basic education | AH63: NAT | AI63: 0 | AJ63: 0 | AK63: 0 | AL63: 0 | AM63: 0 | AN63: 0 | AP63: 0 | AQ63: 0 | AR63: 0 | AS63: 0 | CB63: =Dataset[[#This Row],[2025/26 From - Spending review Topic 1]]+Dataset[[#This Row],[2025/26 From - Spending review Topic 2]]+Dataset[[#This Row],[2025/26 From - Spending review Topic 3]]+Dataset[[#This Row],[2025/26 From - Spending review Topic 4]]+Dataset[[#This Row],[2025/26 From - Other reallocations]] -> 0 | CC63: =Dataset[[#This Row],[2026/27 From - Spending review Topic 1]]+Dataset[[#This Row],[2026/27 From - Spending review Topic 2]]+Dataset[[#This Row],[2026/27 From - Spending review Topic 3]]+Dataset[[#This Row],[2026/27 From - Spending review Topic 4]]+Dataset[[#This Row],[2026/27 From - Other reallocations]] -> 0 | CD63: =Dataset[[#This Row],[2027/28 From - Spending review Topic 1]]+Dataset[[#This Row],[2027/28 From - Spending review Topic 2]]+Dataset[[#This Row],[2027/28 From - Spending review Topic 3]]+Dataset[[#This Row],[2027/28 From - Spending review Topic 4]]+Dataset[[#This Row],[2027/28 From - Other reallocations]] -> 0 | CE63: =Dataset[[#This Row],[2025/26 To - Spending review Topic 1]]+Dataset[[#This Row],[2025/26 To - Spending review Topic 2]]+Dataset[[#This Row],[2025/26 To - Spending review Topic 3]]+Dataset[[#This Row],[2025/26 To - Spending review Topic 4]]+Dataset[[#This Row],[2025/26 To - Other reallocations]] -> 0 | CF63: =Dataset[[#This Row],[2026/27 To - Spending review Topic 1]]+Dataset[[#This Row],[2026/27 To - Spending review Topic 2]]+Dataset[[#This Row],[2026/27 To - Spending review Topic 3]]+Dataset[[#This Row],[2026/27 To - Spending review Topic 4]]+Dataset[[#This Row],[2026/27 To - Other reallocations]] -> 0 | CG63: =Dataset[[#This Row],[2027/28 To - Spending review Topic 1]]+Dataset[[#This Row],[2027/28 To - Spending review Topic 2]]+Dataset[[#This Row],[2027/28 To - Spending review Topic 3]]+Dataset[[#This Row],[2027/28 To - Spending review Topic 4]]+Dataset[[#This Row],[2027/28 To - Other reallocations]] -> 0 | CH63: =Dataset[[#This Row],[2025/26 Reduction]]+Dataset[[#This Row],[2025/26 From - Total]] -> 0 | CI63: =Dataset[[#This Row],[2026/27 Reduction]]+Dataset[[#This Row],[2026/27 From - Total]] -> 0 | CJ63: =Dataset[[#This Row],[2027/28 Reduction]]+Dataset[[#This Row],[2027/28 From - Total]] -> 0 | CK63: =Dataset[[#This Row],[2024/25 Reduction]] -> 0 | CL63: =SUM(Dataset[[#This Row],[2025/26 Reduction]],Dataset[[#This Row],[2025/26 From - Total]],Dataset[[#This Row],[2025/26 To - Total]]) -> 0 | CM63: =SUM(Dataset[[#This Row],[2026/27 Reduction]],Dataset[[#This Row],[2026/27 From - Total]],Dataset[[#This Row],[2026/27 To - Total]]) -> 0 | CN63: =SUM(Dataset[[#This Row],[2027/28 Reduction]],Dataset[[#This Row],[2027/28 From - Total]],Dataset[[#This Row],[2027/28 To - Total]]) -> 0 | CO63: =Dataset[[#This Row],[2024/25 Baseline]]+Dataset[[#This Row],[2024/25 Total change]] -> 0 | CP63: =Dataset[[#This Row],[2025/26 Baseline]]+Dataset[[#This Row],[2025/26 Total change]] -> 0 | CQ63: =Dataset[[#This Row],[2026/27 Baseline]]+Dataset[[#This Row],[2026/27 Total change]] -> 0 | CR63: =Dataset[[#This Row],[2027/28 Baseline]]+Dataset[[#This Row],[2027/28 Total change]] -> 0
A64: NAT|Non-transfer item | B64: 16|Transport equipment | C64: 2025_26 | D64: MTEC2025 | E64: 16 | F64: 1 | G64: 1 | H64: 16709 | I64: 46 | J64: 16 | K64: 01 | L64: 01 | M64: 016709 | N64: 000046 | O64: 16|01|01|000046 | P64: 02 | Q64: 03 | R64: 12 | S64: 56 | T64: 60 | U64: 02|03|12|56|60 | V64: National | W64: Basic Education | X64: Administration | Y64: Ministry | Z64: Non-transfer item | AA64: Capital | AB64: Payments for capital assets | AC64: Machinery and equipment | AD64: Transport equipment | AE64: Transport equipment | AF64: Learning and culture | AG64: Basic education | AH64: NAT | AI64: 0 | AJ64: 0 | AK64: 0 | AL64: 0 | AM64: 0 | AN64: 0 | AP64: 0 | AQ64: 0 | AR64: 0 | AS64: 0 | CB64: =Dataset[[#This Row],[2025/26 From - Spending review Topic 1]]+Dataset[[#This Row],[2025/26 From - Spending review Topic 2]]+Dataset[[#This Row],[2025/26 From - Spending review Topic 3]]+Dataset[[#This Row],[2025/26 From - Spending review Topic 4]]+Dataset[[#This Row],[2025/26 From - Other reallocations]] -> 0 | CC64: =Dataset[[#This Row],[2026/27 From - Spending review Topic 1]]+Dataset[[#This Row],[2026/27 From - Spending review Topic 2]]+Dataset[[#This Row],[2026/27 From - Spending review Topic 3]]+Dataset[[#This Row],[2026/27 From - Spending review Topic 4]]+Dataset[[#This Row],[2026/27 From - Other reallocations]] -> 0 | CD64: =Dataset[[#This Row],[2027/28 From - Spending review Topic 1]]+Dataset[[#This Row],[2027/28 From - Spending review Topic 2]]+Dataset[[#This Row],[2027/28 From - Spending review Topic 3]]+Dataset[[#This Row],[2027/28 From - Spending review Topic 4]]+Dataset[[#This Row],[2027/28 From - Other reallocations]] -> 0 | CE64: =Dataset[[#This Row],[2025/26 To - Spending review Topic 1]]+Dataset[[#This Row],[2025/26 To - Spending review Topic 2]]+Dataset[[#This Row],[2025/26 To - Spending review Topic 3]]+Dataset[[#This Row],[2025/26 To - Spending review Topic 4]]+Dataset[[#This Row],[2025/26 To - Other reallocations]] -> 0 | CF64: =Dataset[[#This Row],[2026/27 To - Spending review Topic 1]]+Dataset[[#This Row],[2026/27 To - Spending review Topic 2]]+Dataset[[#This Row],[2026/27 To - Spending review Topic 3]]+Dataset[[#This Row],[2026/27 To - Spending review Topic 4]]+Dataset[[#This Row],[2026/27 To - Other reallocations]] -> 0 | CG64: =Dataset[[#This Row],[2027/28 To - Spending review Topic 1]]+Dataset[[#This Row],[2027/28 To - Spending review Topic 2]]+Dataset[[#This Row],[2027/28 To - Spending review Topic 3]]+Dataset[[#This Row],[2027/28 To - Spending review Topic 4]]+Dataset[[#This Row],[2027/28 To - Other reallocations]] -> 0 | CH64: =Dataset[[#This Row],[2025/26 Reduction]]+Dataset[[#This Row],[2025/26 From - Total]] -> 0 | CI64: =Dataset[[#This Row],[2026/27 Reduction]]+Dataset[[#This Row],[2026/27 From - Total]] -> 0 | CJ64: =Dataset[[#This Row],[2027/28 Reduction]]+Dataset[[#This Row],[2027/28 From - Total]] -> 0 | CK64: =Dataset[[#This Row],[2024/25 Reduction]] -> 0 | CL64: =SUM(Dataset[[#This Row],[2025/26 Reduction]],Dataset[[#This Row],[2025/26 From - Total]],Dataset[[#This Row],[2025/26 To - Total]]) -> 0 | CM64: =SUM(Dataset[[#This Row],[2026/27 Reduction]],Dataset[[#This Row],[2026/27 From - Total]],Dataset[[#This Row],[2026/27 To - Total]]) -> 0 | CN64: =SUM(Dataset[[#This Row],[2027/28 Reduction]],Dataset[[#This Row],[2027/28 From - Total]],Dataset[[#This Row],[2027/28 To - Total]]) -> 0 | CO64: =Dataset[[#This Row],[2024/25 Baseline]]+Dataset[[#This Row],[2024/25 Total change]] -> 0 | CP64: =Dataset[[#This Row],[2025/26 Baseline]]+Dataset[[#This Row],[2025/26 Total change]] -> 0 | CQ64: =Dataset[[#This Row],[2026/27 Baseline]]+Dataset[[#This Row],[2026/27 Total change]] -> 0 | CR64: =Dataset[[#This Row],[2027/28 Baseline]]+Dataset[[#This Row],[2027/28 Total change]] -> 0
A65: NAT|Non-transfer item | B65: 16|Other machinery and equipment | C65: 2025_26 | D65: MTEC2025 | E65: 16 | F65: 1 | G65: 1 | H65: 16710 | I65: 47 | J65: 16 | K65: 01 | L65: 01 | M65: 016710 | N65: 000047 | O65: 16|01|01|000047 | P65: 02 | Q65: 03 | R65: 12 | S65: 57 | T65: 61 | U65: 02|03|12|57|61 | V65: National | W65: Basic Education | X65: Administration | Y65: Ministry | Z65: Non-transfer item | AA65: Capital | AB65: Payments for capital assets | AC65: Machinery and equipment | AD65: Other machinery and equipment | AE65: Other machinery and equipment | AF65: Learning and culture | AG65: Basic education | AH65: NAT | AI65: 494 | AJ65: 65 | AK65: 651 | AL65: 583 | AM65: 583 | AN65: 583 | AO65: 374 | AP65: 601 | AQ65: 680 | AR65: 711 | AS65: 743 | CB65: =Dataset[[#This Row],[2025/26 From - Spending review Topic 1]]+Dataset[[#This Row],[2025/26 From - Spending review Topic 2]]+Dataset[[#This Row],[2025/26 From - Spending review Topic 3]]+Dataset[[#This Row],[2025/26 From - Spending review Topic 4]]+Dataset[[#This Row],[2025/26 From - Other reallocations]] -> 0 | CC65: =Dataset[[#This Row],[2026/27 From - Spending review Topic 1]]+Dataset[[#This Row],[2026/27 From - Spending review Topic 2]]+Dataset[[#This Row],[2026/27 From - Spending review Topic 3]]+Dataset[[#This Row],[2026/27 From - Spending review Topic 4]]+Dataset[[#This Row],[2026/27 From - Other reallocations]] -> 0 | CD65: =Dataset[[#This Row],[2027/28 From - Spending review Topic 1]]+Dataset[[#This Row],[2027/28 From - Spending review Topic 2]]+Dataset[[#This Row],[2027/28 From - Spending review Topic 3]]+Dataset[[#This Row],[2027/28 From - Spending review Topic 4]]+Dataset[[#This Row],[2027/28 From - Other reallocations]] -> 0 | CE65: =Dataset[[#This Row],[2025/26 To - Spending review Topic 1]]+Dataset[[#This Row],[2025/26 To - Spending review Topic 2]]+Dataset[[#This Row],[2025/26 To - Spending review Topic 3]]+Dataset[[#This Row],[2025/26 To - Spending review Topic 4]]+Dataset[[#This Row],[2025/26 To - Other reallocations]] -> 0 | CF65: =Dataset[[#This Row],[2026/27 To - Spending review Topic 1]]+Dataset[[#This Row],[2026/27 To - Spending review Topic 2]]+Dataset[[#This Row],[2026/27 To - Spending review Topic 3]]+Dataset[[#This Row],[2026/27 To - Spending review Topic 4]]+Dataset[[#This Row],[2026/27 To - Other reallocations]] -> 0 | CG65: =Dataset[[#This Row],[2027/28 To - Spending review Topic 1]]+Dataset[[#This Row],[2027/28 To - Spending review Topic 2]]+Dataset[[#This Row],[2027/28 To - Spending review Topic 3]]+Dataset[[#This Row],[2027/28 To - Spending review Topic 4]]+Dataset[[#This Row],[2027/28 To - Other reallocations]] -> 0 | CH65: =Dataset[[#This Row],[2025/26 Reduction]]+Dataset[[#This Row],[2025/26 From - Total]] -> 0 | CI65: =Dataset[[#This Row],[2026/27 Reduction]]+Dataset[[#This Row],[2026/27 From - Total]] -> 0 | CJ65: =Dataset[[#This Row],[2027/28 Reduction]]+Dataset[[#This Row],[2027/28 From - Total]] -> 0 | CK65: =Dataset[[#This Row],[2024/25 Reduction]] -> 0 | CL65: =SUM(Dataset[[#This Row],[2025/26 Reduction]],Dataset[[#This Row],[2025/26 From - Total]],Dataset[[#This Row],[2025/26 To - Total]]) -> 0 | CM65: =SUM(Dataset[[#This Row],[2026/27 Reduction]],Dataset[[#This Row],[2026/27 From - Total]],Dataset[[#This Row],[2026/27 To - Total]]) -> 0 | CN65: =SUM(Dataset[[#This Row],[2027/28 Reduction]],Dataset[[#This Row],[2027/28 From - Total]],Dataset[[#This Row],[2027/28 To - Total]]) -> 0 | CO65: =Dataset[[#This Row],[2024/25 Baseline]]+Dataset[[#This Row],[2024/25 Total change]] -> 601 | CP65: =Dataset[[#This Row],[2025/26 Baseline]]+Dataset[[#This Row],[2025/26 Total change]] -> 680 | CQ65: =Dataset[[#This Row],[2026/27 Baseline]]+Dataset[[#This Row],[2026/27 Total change]] -> 711 | CR65: =Dataset[[#This Row],[2027/28 Baseline]]+Dataset[[#This Row],[2027/28 Total change]] -> 743
A66: NAT|Non-transfer item | B66: 16|Heritage assets | C66: 2025_26 | D66: MTEC2025 | E66: 16 | F66: 1 | G66: 1 | H66: 16711 | I66: 48 | J66: 16 | K66: 01 | L66: 01 | M66: 016711 | N66: 000048 | O66: 16|01|01|000048 | P66: 02 | Q66: 03 | R66: 13 | S66: 58 | T66: 62 | U66: 02|03|13|58|62 | V66: National | W66: Basic Education | X66: Administration | Y66: Ministry | Z66: Non-transfer item | AA66: Capital | AB66: Payments for capital assets | AC66: Heritage assets | AD66: Heritage assets | AE66: Heritage assets | AF66: Learning and culture | AG66: Basic education | AH66: NAT | AI66: 0 | AJ66: 0 | AK66: 0 | AL66: 0 | AM66: 0 | AN66: 0 | AP66: 0 | AQ66: 0 | AR66: 0 | AS66: 0 | CB66: =Dataset[[#This Row],[2025/26 From - Spending review Topic 1]]+Dataset[[#This Row],[2025/26 From - Spending review Topic 2]]+Dataset[[#This Row],[2025/26 From - Spending review Topic 3]]+Dataset[[#This Row],[2025/26 From - Spending review Topic 4]]+Dataset[[#This Row],[2025/26 From - Other reallocations]] -> 0 | CC66: =Dataset[[#This Row],[2026/27 From - Spending review Topic 1]]+Dataset[[#This Row],[2026/27 From - Spending review Topic 2]]+Dataset[[#This Row],[2026/27 From - Spending review Topic 3]]+Dataset[[#This Row],[2026/27 From - Spending review Topic 4]]+Dataset[[#This Row],[2026/27 From - Other reallocations]] -> 0 | CD66: =Dataset[[#This Row],[2027/28 From - Spending review Topic 1]]+Dataset[[#This Row],[2027/28 From - Spending review Topic 2]]+Dataset[[#This Row],[2027/28 From - Spending review Topic 3]]+Dataset[[#This Row],[2027/28 From - Spending review Topic 4]]+Dataset[[#This Row],[2027/28 From - Other reallocations]] -> 0 | CE66: =Dataset[[#This Row],[2025/26 To - Spending review Topic 1]]+Dataset[[#This Row],[2025/26 To - Spending review Topic 2]]+Dataset[[#This Row],[2025/26 To - Spending review Topic 3]]+Dataset[[#This Row],[2025/26 To - Spending review Topic 4]]+Dataset[[#This Row],[2025/26 To - Other reallocations]] -> 0 | CF66: =Dataset[[#This Row],[2026/27 To - Spending review Topic 1]]+Dataset[[#This Row],[2026/27 To - Spending review Topic 2]]+Dataset[[#This Row],[2026/27 To - Spending review Topic 3]]+Dataset[[#This Row],[2026/27 To - Spending review Topic 4]]+Dataset[[#This Row],[2026/27 To - Other reallocations]] -> 0 | CG66: =Dataset[[#This Row],[2027/28 To - Spending review Topic 1]]+Dataset[[#This Row],[2027/28 To - Spending review Topic 2]]+Dataset[[#This Row],[2027/28 To - Spending review Topic 3]]+Dataset[[#This Row],[2027/28 To - Spending review Topic 4]]+Dataset[[#This Row],[2027/28 To - Other reallocations]] -> 0 | CH66: =Dataset[[#This Row],[2025/26 Reduction]]+Dataset[[#This Row],[2025/26 From - Total]] -> 0 | CI66: =Dataset[[#This Row],[2026/27 Reduction]]+Dataset[[#This Row],[2026/27 From - Total]] -> 0 | CJ66: =Dataset[[#This Row],[2027/28 Reduction]]+Dataset[[#This Row],[2027/28 From - Total]] -> 0 | CK66: =Dataset[[#This Row],[2024/25 Reduction]] -> 0 | CL66: =SUM(Dataset[[#This Row],[2025/26 Reduction]],Dataset[[#This Row],[2025/26 From - Total]],Dataset[[#This Row],[2025/26 To - Total]]) -> 0 | CM66: =SUM(Dataset[[#This Row],[2026/27 Reduction]],Dataset[[#This Row],[2026/27 From - Total]],Dataset[[#This Row],[2026/27 To - Total]]) -> 0 | CN66: =SUM(Dataset[[#This Row],[2027/28 Reduction]],Dataset[[#This Row],[2027/28 From - Total]],Dataset[[#This Row],[2027/28 To - Total]]) -> 0 | CO66: =Dataset[[#This Row],[2024/25 Baseline]]+Dataset[[#This Row],[2024/25 Total change]] -> 0 | CP66: =Dataset[[#This Row],[2025/26 Baseline]]+Dataset[[#This Row],[2025/26 Total change]] -> 0 | CQ66: =Dataset[[#This Row],[2026/27 Baseline]]+Dataset[[#This Row],[2026/27 Total change]] -> 0 | CR66: =Dataset[[#This Row],[2027/28 Baseline]]+Dataset[[#This Row],[2027/28 Total change]] -> 0
A67: NAT|Non-transfer item | B67: 16|Specialised military assets | C67: 2025_26 | D67: MTEC2025 | E67: 16 | F67: 1 | G67: 1 | H67: 16712 | I67: 49 | J67: 16 | K67: 01 | L67: 01 | M67: 016712 | N67: 000049 | O67: 16|01|01|000049 | P67: 02 | Q67: 03 | R67: 14 | S67: 59 | T67: 63 | U67: 02|03|14|59|63 | V67: National | W67: Basic Education | X67: Administration | Y67: Ministry | Z67: Non-transfer item | AA67: Capital | AB67: Payments for capital assets | AC67: Specialised military assets | AD67: Specialised military assets | AE67: Specialised military assets | AF67: Learning and culture | AG67: Basic education | AH67: NAT | AI67: 0 | AJ67: 0 | AK67: 0 | AL67: 0 | AM67: 0 | AN67: 0 | AP67: 0 | AQ67: 0 | AR67: 0 | AS67: 0 | CB67: =Dataset[[#This Row],[2025/26 From - Spending review Topic 1]]+Dataset[[#This Row],[2025/26 From - Spending review Topic 2]]+Dataset[[#This Row],[2025/26 From - Spending review Topic 3]]+Dataset[[#This Row],[2025/26 From - Spending review Topic 4]]+Dataset[[#This Row],[2025/26 From - Other reallocations]] -> 0 | CC67: =Dataset[[#This Row],[2026/27 From - Spending review Topic 1]]+Dataset[[#This Row],[2026/27 From - Spending review Topic 2]]+Dataset[[#This Row],[2026/27 From - Spending review Topic 3]]+Dataset[[#This Row],[2026/27 From - Spending review Topic 4]]+Dataset[[#This Row],[2026/27 From - Other reallocations]] -> 0 | CD67: =Dataset[[#This Row],[2027/28 From - Spending review Topic 1]]+Dataset[[#This Row],[2027/28 From - Spending review Topic 2]]+Dataset[[#This Row],[2027/28 From - Spending review Topic 3]]+Dataset[[#This Row],[2027/28 From - Spending review Topic 4]]+Dataset[[#This Row],[2027/28 From - Other reallocations]] -> 0 | CE67: =Dataset[[#This Row],[2025/26 To - Spending review Topic 1]]+Dataset[[#This Row],[2025/26 To - Spending review Topic 2]]+Dataset[[#This Row],[2025/26 To - Spending review Topic 3]]+Dataset[[#This Row],[2025/26 To - Spending review Topic 4]]+Dataset[[#This Row],[2025/26 To - Other reallocations]] -> 0 | CF67: =Dataset[[#This Row],[2026/27 To - Spending review Topic 1]]+Dataset[[#This Row],[2026/27 To - Spending review Topic 2]]+Dataset[[#This Row],[2026/27 To - Spending review Topic 3]]+Dataset[[#This Row],[2026/27 To - Spending review Topic 4]]+Dataset[[#This Row],[2026/27 To - Other reallocations]] -> 0 | CG67: =Dataset[[#This Row],[2027/28 To - Spending review Topic 1]]+Dataset[[#This Row],[2027/28 To - Spending review Topic 2]]+Dataset[[#This Row],[2027/28 To - Spending review Topic 3]]+Dataset[[#This Row],[2027/28 To - Spending review Topic 4]]+Dataset[[#This Row],[2027/28 To - Other reallocations]] -> 0 | CH67: =Dataset[[#This Row],[2025/26 Reduction]]+Dataset[[#This Row],[2025/26 From - Total]] -> 0 | CI67: =Dataset[[#This Row],[2026/27 Reduction]]+Dataset[[#This Row],[2026/27 From - Total]] -> 0 | CJ67: =Dataset[[#This Row],[2027/28 Reduction]]+Dataset[[#This Row],[2027/28 From - Total]] -> 0 | CK67: =Dataset[[#This Row],[2024/25 Reduction]] -> 0 | CL67: =SUM(Dataset[[#This Row],[2025/26 Reduction]],Dataset[[#This Row],[2025/26 From - Total]],Dataset[[#This Row],[2025/26 To - Total]]) -> 0 | CM67: =SUM(Dataset[[#This Row],[2026/27 Reduction]],Dataset[[#This Row],[2026/27 From - Total]],Dataset[[#This Row],[2026/27 To - Total]]) -> 0 | CN67: =SUM(Dataset[[#This Row],[2027/28 Reduction]],Dataset[[#This Row],[2027/28 From - Total]],Dataset[[#This Row],[2027/28 To - Total]]) -> 0 | CO67: =Dataset[[#This Row],[2024/25 Baseline]]+Dataset[[#This Row],[2024/25 Total change]] -> 0 | CP67: =Dataset[[#This Row],[2025/26 Baseline]]+Dataset[[#This Row],[2025/26 Total change]] -> 0 | CQ67: =Dataset[[#This Row],[2026/27 Baseline]]+Dataset[[#This Row],[2026/27 Total change]] -> 0 | CR67: =Dataset[[#This Row],[2027/28 Baseline]]+Dataset[[#This Row],[2027/28 Total change]] -> 0
A68: NAT|Non-transfer item | B68: 16|Biological assets | C68: 2025_26 | D68: MTEC2025 | E68: 16 | F68: 1 | G68: 1 | H68: 16713 | I68: 50 | J68: 16 | K68: 01 | L68: 01 | M68: 016713 | N68: 000050 | O68: 16|01|01|000050 | P68: 02 | Q68: 03 | R68: 15 | S68: 60 | T68: 64 | U68: 02|03|15|60|64 | V68: National | W68: Basic Education | X68: Administration | Y68: Ministry | Z68: Non-transfer item | AA68: Capital | AB68: Payments for capital assets | AC68: Biological assets | AD68: Biological assets | AE68: Biological assets | AF68: Learning and culture | AG68: Basic education | AH68: NAT | AI68: 0 | AJ68: 0 | AK68: 0 | AL68: 0 | AM68: 0 | AN68: 0 | AP68: 0 | AQ68: 0 | AR68: 0 | AS68: 0 | CB68: =Dataset[[#This Row],[2025/26 From - Spending review Topic 1]]+Dataset[[#This Row],[2025/26 From - Spending review Topic 2]]+Dataset[[#This Row],[2025/26 From - Spending review Topic 3]]+Dataset[[#This Row],[2025/26 From - Spending review Topic 4]]+Dataset[[#This Row],[2025/26 From - Other reallocations]] -> 0 | CC68: =Dataset[[#This Row],[2026/27 From - Spending review Topic 1]]+Dataset[[#This Row],[2026/27 From - Spending review Topic 2]]+Dataset[[#This Row],[2026/27 From - Spending review Topic 3]]+Dataset[[#This Row],[2026/27 From - Spending review Topic 4]]+Dataset[[#This Row],[2026/27 From - Other reallocations]] -> 0 | CD68: =Dataset[[#This Row],[2027/28 From - Spending review Topic 1]]+Dataset[[#This Row],[2027/28 From - Spending review Topic 2]]+Dataset[[#This Row],[2027/28 From - Spending review Topic 3]]+Dataset[[#This Row],[2027/28 From - Spending review Topic 4]]+Dataset[[#This Row],[2027/28 From - Other reallocations]] -> 0 | CE68: =Dataset[[#This Row],[2025/26 To - Spending review Topic 1]]+Dataset[[#This Row],[2025/26 To - Spending review Topic 2]]+Dataset[[#This Row],[2025/26 To - Spending review Topic 3]]+Dataset[[#This Row],[2025/26 To - Spending review Topic 4]]+Dataset[[#This Row],[2025/26 To - Other reallocations]] -> 0 | CF68: =Dataset[[#This Row],[2026/27 To - Spending review Topic 1]]+Dataset[[#This Row],[2026/27 To - Spending review Topic 2]]+Dataset[[#This Row],[2026/27 To - Spending review Topic 3]]+Dataset[[#This Row],[2026/27 To - Spending review Topic 4]]+Dataset[[#This Row],[2026/27 To - Other reallocations]] -> 0 | CG68: =Dataset[[#This Row],[2027/28 To - Spending review Topic 1]]+Dataset[[#This Row],[2027/28 To - Spending review Topic 2]]+Dataset[[#This Row],[2027/28 To - Spending review Topic 3]]+Dataset[[#This Row],[2027/28 To - Spending review Topic 4]]+Dataset[[#This Row],[2027/28 To - Other reallocations]] -> 0 | CH68: =Dataset[[#This Row],[2025/26 Reduction]]+Dataset[[#This Row],[2025/26 From - Total]] -> 0 | CI68: =Dataset[[#This Row],[2026/27 Reduction]]+Dataset[[#This Row],[2026/27 From - Total]] -> 0 | CJ68: =Dataset[[#This Row],[2027/28 Reduction]]+Dataset[[#This Row],[2027/28 From - Total]] -> 0 | CK68: =Dataset[[#This Row],[2024/25 Reduction]] -> 0 | CL68: =SUM(Dataset[[#This Row],[2025/26 Reduction]],Dataset[[#This Row],[2025/26 From - Total]],Dataset[[#This Row],[2025/26 To - Total]]) -> 0 | CM68: =SUM(Dataset[[#This Row],[2026/27 Reduction]],Dataset[[#This Row],[2026/27 From - Total]],Dataset[[#This Row],[2026/27 To - Total]]) -> 0 | CN68: =SUM(Dataset[[#This Row],[2027/28 Reduction]],Dataset[[#This Row],[2027/28 From - Total]],Dataset[[#This Row],[2027/28 To - Total]]) -> 0 | CO68: =Dataset[[#This Row],[2024/25 Baseline]]+Dataset[[#This Row],[2024/25 Total change]] -> 0 | CP68: =Dataset[[#This Row],[2025/26 Baseline]]+Dataset[[#This Row],[2025/26 Total change]] -> 0 | CQ68: =Dataset[[#This Row],[2026/27 Baseline]]+Dataset[[#This Row],[2026/27 Total change]] -> 0 | CR68: =Dataset[[#This Row],[2027/28 Baseline]]+Dataset[[#This Row],[2027/28 Total change]] -> 0
A69: NAT|Non-transfer item | B69: 16|Land and sub-soil assets | C69: 2025_26 | D69: MTEC2025 | E69: 16 | F69: 1 | G69: 1 | H69: 16714 | I69: 51 | J69: 16 | K69: 01 | L69: 01 | M69: 016714 | N69: 000051 | O69: 16|01|01|000051 | P69: 02 | Q69: 03 | R69: 16 | S69: 61 | T69: 65 | U69: 02|03|16|61|65 | V69: National | W69: Basic Education | X69: Administration | Y69: Ministry | Z69: Non-transfer item | AA69: Capital | AB69: Payments for capital assets | AC69: Land and sub-soil assets | AD69: Land and sub-soil assets | AE69: Land and sub-soil assets | AF69: Learning and culture | AG69: Basic education | AH69: NAT | AI69: 0 | AJ69: 0 | AK69: 0 | AL69: 0 | AM69: 0 | AN69: 0 | AP69: 0 | AQ69: 0 | AR69: 0 | AS69: 0 | CB69: =Dataset[[#This Row],[2025/26 From - Spending review Topic 1]]+Dataset[[#This Row],[2025/26 From - Spending review Topic 2]]+Dataset[[#This Row],[2025/26 From - Spending review Topic 3]]+Dataset[[#This Row],[2025/26 From - Spending review Topic 4]]+Dataset[[#This Row],[2025/26 From - Other reallocations]] -> 0 | CC69: =Dataset[[#This Row],[2026/27 From - Spending review Topic 1]]+Dataset[[#This Row],[2026/27 From - Spending review Topic 2]]+Dataset[[#This Row],[2026/27 From - Spending review Topic 3]]+Dataset[[#This Row],[2026/27 From - Spending review Topic 4]]+Dataset[[#This Row],[2026/27 From - Other reallocations]] -> 0 | CD69: =Dataset[[#This Row],[2027/28 From - Spending review Topic 1]]+Dataset[[#This Row],[2027/28 From - Spending review Topic 2]]+Dataset[[#This Row],[2027/28 From - Spending review Topic 3]]+Dataset[[#This Row],[2027/28 From - Spending review Topic 4]]+Dataset[[#This Row],[2027/28 From - Other reallocations]] -> 0 | CE69: =Dataset[[#This Row],[2025/26 To - Spending review Topic 1]]+Dataset[[#This Row],[2025/26 To - Spending review Topic 2]]+Dataset[[#This Row],[2025/26 To - Spending review Topic 3]]+Dataset[[#This Row],[2025/26 To - Spending review Topic 4]]+Dataset[[#This Row],[2025/26 To - Other reallocations]] -> 0 | CF69: =Dataset[[#This Row],[2026/27 To - Spending review Topic 1]]+Dataset[[#This Row],[2026/27 To - Spending review Topic 2]]+Dataset[[#This Row],[2026/27 To - Spending review Topic 3]]+Dataset[[#This Row],[2026/27 To - Spending review Topic 4]]+Dataset[[#This Row],[2026/27 To - Other reallocations]] -> 0 | CG69: =Dataset[[#This Row],[2027/28 To - Spending review Topic 1]]+Dataset[[#This Row],[2027/28 To - Spending review Topic 2]]+Dataset[[#This Row],[2027/28 To - Spending review Topic 3]]+Dataset[[#This Row],[2027/28 To - Spending review Topic 4]]+Dataset[[#This Row],[2027/28 To - Other reallocations]] -> 0 | CH69: =Dataset[[#This Row],[2025/26 Reduction]]+Dataset[[#This Row],[2025/26 From - Total]] -> 0 | CI69: =Dataset[[#This Row],[2026/27 Reduction]]+Dataset[[#This Row],[2026/27 From - Total]] -> 0 | CJ69: =Dataset[[#This Row],[2027/28 Reduction]]+Dataset[[#This Row],[2027/28 From - Total]] -> 0 | CK69: =Dataset[[#This Row],[2024/25 Reduction]] -> 0 | CL69: =SUM(Dataset[[#This Row],[2025/26 Reduction]],Dataset[[#This Row],[2025/26 From - Total]],Dataset[[#This Row],[2025/26 To - Total]]) -> 0 | CM69: =SUM(Dataset[[#This Row],[2026/27 Reduction]],Dataset[[#This Row],[2026/27 From - Total]],Dataset[[#This Row],[2026/27 To - Total]]) -> 0 | CN69: =SUM(Dataset[[#This Row],[2027/28 Reduction]],Dataset[[#This Row],[2027/28 From - Total]],Dataset[[#This Row],[2027/28 To - Total]]) -> 0 | CO69: =Dataset[[#This Row],[2024/25 Baseline]]+Dataset[[#This Row],[2024/25 Total change]] -> 0 | CP69: =Dataset[[#This Row],[2025/26 Baseline]]+Dataset[[#This Row],[2025/26 Total change]] -> 0 | CQ69: =Dataset[[#This Row],[2026/27 Baseline]]+Dataset[[#This Row],[2026/27 Total change]] -> 0 | CR69: =Dataset[[#This Row],[2027/28 Baseline]]+Dataset[[#This Row],[2027/28 Total change]] -> 0
A70: NAT|Non-transfer item | B70: 16|Software and other intangible assets | C70: 2025_26 | D70: MTEC2025 | E70: 16 | F70: 1 | G70: 1 | H70: 16715 | I70: 52 | J70: 16 | K70: 01 | L70: 01 | M70: 016715 | N70: 000052 | O70: 16|01|01|000052 | P70: 02 | Q70: 03 | R70: 17 | S70: 62 | T70: 66 | U70: 02|03|17|62|66 | V70: National | W70: Basic Education | X70: Administration | Y70: Ministry | Z70: Non-transfer item | AA70: Capital | AB70: Payments for capital assets | AC70: Software and other intangible assets | AD70: Software and other intangible assets | AE70: Software and other intangible assets | AF70: Learning and culture | AG70: Basic education | AH70: NAT | AI70: 0 | AJ70: 0 | AK70: 0 | AL70: 0 | AM70: 0 | AN70: 0 | AP70: 0 | AQ70: 0 | AR70: 0 | AS70: 0 | CB70: =Dataset[[#This Row],[2025/26 From - Spending review Topic 1]]+Dataset[[#This Row],[2025/26 From - Spending review Topic 2]]+Dataset[[#This Row],[2025/26 From - Spending review Topic 3]]+Dataset[[#This Row],[2025/26 From - Spending review Topic 4]]+Dataset[[#This Row],[2025/26 From - Other reallocations]] -> 0 | CC70: =Dataset[[#This Row],[2026/27 From - Spending review Topic 1]]+Dataset[[#This Row],[2026/27 From - Spending review Topic 2]]+Dataset[[#This Row],[2026/27 From - Spending review Topic 3]]+Dataset[[#This Row],[2026/27 From - Spending review Topic 4]]+Dataset[[#This Row],[2026/27 From - Other reallocations]] -> 0 | CD70: =Dataset[[#This Row],[2027/28 From - Spending review Topic 1]]+Dataset[[#This Row],[2027/28 From - Spending review Topic 2]]+Dataset[[#This Row],[2027/28 From - Spending review Topic 3]]+Dataset[[#This Row],[2027/28 From - Spending review Topic 4]]+Dataset[[#This Row],[2027/28 From - Other reallocations]] -> 0 | CE70: =Dataset[[#This Row],[2025/26 To - Spending review Topic 1]]+Dataset[[#This Row],[2025/26 To - Spending review Topic 2]]+Dataset[[#This Row],[2025/26 To - Spending review Topic 3]]+Dataset[[#This Row],[2025/26 To - Spending review Topic 4]]+Dataset[[#This Row],[2025/26 To - Other reallocations]] -> 0 | CF70: =Dataset[[#This Row],[2026/27 To - Spending review Topic 1]]+Dataset[[#This Row],[2026/27 To - Spending review Topic 2]]+Dataset[[#This Row],[2026/27 To - Spending review Topic 3]]+Dataset[[#This Row],[2026/27 To - Spending review Topic 4]]+Dataset[[#This Row],[2026/27 To - Other reallocations]] -> 0 | CG70: =Dataset[[#This Row],[2027/28 To - Spending review Topic 1]]+Dataset[[#This Row],[2027/28 To - Spending review Topic 2]]+Dataset[[#This Row],[2027/28 To - Spending review Topic 3]]+Dataset[[#This Row],[2027/28 To - Spending review Topic 4]]+Dataset[[#This Row],[2027/28 To - Other reallocations]] -> 0 | CH70: =Dataset[[#This Row],[2025/26 Reduction]]+Dataset[[#This Row],[2025/26 From - Total]] -> 0 | CI70: =Dataset[[#This Row],[2026/27 Reduction]]+Dataset[[#This Row],[2026/27 From - Total]] -> 0 | CJ70: =Dataset[[#This Row],[2027/28 Reduction]]+Dataset[[#This Row],[2027/28 From - Total]] -> 0 | CK70: =Dataset[[#This Row],[2024/25 Reduction]] -> 0 | CL70: =SUM(Dataset[[#This Row],[2025/26 Reduction]],Dataset[[#This Row],[2025/26 From - Total]],Dataset[[#This Row],[2025/26 To - Total]]) -> 0 | CM70: =SUM(Dataset[[#This Row],[2026/27 Reduction]],Dataset[[#This Row],[2026/27 From - Total]],Dataset[[#This Row],[2026/27 To - Total]]) -> 0 | CN70: =SUM(Dataset[[#This Row],[2027/28 Reduction]],Dataset[[#This Row],[2027/28 From - Total]],Dataset[[#This Row],[2027/28 To - Total]]) -> 0 | CO70: =Dataset[[#This Row],[2024/25 Baseline]]+Dataset[[#This Row],[2024/25 Total change]] -> 0 | CP70: =Dataset[[#This Row],[2025/26 Baseline]]+Dataset[[#This Row],[2025/26 Total change]] -> 0 | CQ70: =Dataset[[#This Row],[2026/27 Baseline]]+Dataset[[#This Row],[2026/27 Total change]] -> 0 | CR70: =Dataset[[#This Row],[2027/28 Baseline]]+Dataset[[#This Row],[2027/28 Total change]] -> 0
A71: NAT|Thefts and losses | B71: 16|Payments for financial assets | C71: 2025_26 | D71: MTEC2025 | E71: 16 | F71: 1 | G71: 1 | H71: 16716 | I71: 53 | J71: 16 | K71: 01 | L71: 01 | M71: 016716 | N71: 000053 | O71: 16|01|01|000053 | P71: 03 | Q71: 04 | R71: 18 | S71: 63 | T71: 67 | U71: 03|04|18|63|67 | V71: National | W71: Basic Education | X71: Administration | Y71: Ministry | Z71: Thefts and losses | AA71: Payments for financial assets | AB71: Payments for financial assets | AC71: Payments for financial assets | AD71: Payments for financial assets | AE71: Payments for financial assets | AF71: Learning and culture | AG71: Basic education | AH71: NAT | AI71: 71 | AJ71: 4 | AK71: 15 | AL71: 0 | AM71: 74 | AN71: 74 | AP71: 0 | AQ71: 0 | AR71: 0 | AS71: 0 | CB71: =Dataset[[#This Row],[2025/26 From - Spending review Topic 1]]+Dataset[[#This Row],[2025/26 From - Spending review Topic 2]]+Dataset[[#This Row],[2025/26 From - Spending review Topic 3]]+Dataset[[#This Row],[2025/26 From - Spending review Topic 4]]+Dataset[[#This Row],[2025/26 From - Other reallocations]] -> 0 | CC71: =Dataset[[#This Row],[2026/27 From - Spending review Topic 1]]+Dataset[[#This Row],[2026/27 From - Spending review Topic 2]]+Dataset[[#This Row],[2026/27 From - Spending review Topic 3]]+Dataset[[#This Row],[2026/27 From - Spending review Topic 4]]+Dataset[[#This Row],[2026/27 From - Other reallocations]] -> 0 | CD71: =Dataset[[#This Row],[2027/28 From - Spending review Topic 1]]+Dataset[[#This Row],[2027/28 From - Spending review Topic 2]]+Dataset[[#This Row],[2027/28 From - Spending review Topic 3]]+Dataset[[#This Row],[2027/28 From - Spending review Topic 4]]+Dataset[[#This Row],[2027/28 From - Other reallocations]] -> 0 | CE71: =Dataset[[#This Row],[2025/26 To - Spending review Topic 1]]+Dataset[[#This Row],[2025/26 To - Spending review Topic 2]]+Dataset[[#This Row],[2025/26 To - Spending review Topic 3]]+Dataset[[#This Row],[2025/26 To - Spending review Topic 4]]+Dataset[[#This Row],[2025/26 To - Other reallocations]] -> 0 | CF71: =Dataset[[#This Row],[2026/27 To - Spending review Topic 1]]+Dataset[[#This Row],[2026/27 To - Spending review Topic 2]]+Dataset[[#This Row],[2026/27 To - Spending review Topic 3]]+Dataset[[#This Row],[2026/27 To - Spending review Topic 4]]+Dataset[[#This Row],[2026/27 To - Other reallocations]] -> 0 | CG71: =Dataset[[#This Row],[2027/28 To - Spending review Topic 1]]+Dataset[[#This Row],[2027/28 To - Spending review Topic 2]]+Dataset[[#This Row],[2027/28 To - Spending review Topic 3]]+Dataset[[#This Row],[2027/28 To - Spending review Topic 4]]+Dataset[[#This Row],[2027/28 To - Other reallocations]] -> 0 | CH71: =Dataset[[#This Row],[2025/26 Reduction]]+Dataset[[#This Row],[2025/26 From - Total]] -> 0 | CI71: =Dataset[[#This Row],[2026/27 Reduction]]+Dataset[[#This Row],[2026/27 From - Total]] -> 0 | CJ71: =Dataset[[#This Row],[2027/28 Reduction]]+Dataset[[#This Row],[2027/28 From - Total]] -> 0 | CK71: =Dataset[[#This Row],[2024/25 Reduction]] -> 0 | CL71: =SUM(Dataset[[#This Row],[2025/26 Reduction]],Dataset[[#This Row],[2025/26 From - Total]],Dataset[[#This Row],[2025/26 To - Total]]) -> 0 | CM71: =SUM(Dataset[[#This Row],[2026/27 Reduction]],Dataset[[#This Row],[2026/27 From - Total]],Dataset[[#This Row],[2026/27 To - Total]]) -> 0 | CN71: =SUM(Dataset[[#This Row],[2027/28 Reduction]],Dataset[[#This Row],[2027/28 From - Total]],Dataset[[#This Row],[2027/28 To - Total]]) -> 0 | CO71: =Dataset[[#This Row],[2024/25 Baseline]]+Dataset[[#This Row],[2024/25 Total change]] -> 0 | CP71: =Dataset[[#This Row],[2025/26 Baseline]]+Dataset[[#This Row],[2025/26 Total change]] -> 0 | CQ71: =Dataset[[#This Row],[2026/27 Baseline]]+Dataset[[#This Row],[2026/27 Total change]] -> 0 | CR71: =Dataset[[#This Row],[2027/28 Baseline]]+Dataset[[#This Row],[2027/28 Total change]] -> 0
A72: NAT|Non-transfer item | B72: 16|Salaries and wages | C72: 2025_26 | D72: MTEC2025 | E72: 16 | F72: 1 | G72: 2 | H72: 16717 | I72: 54 | J72: 16 | K72: 01 | L72: 02 | M72: 016717 | N72: 000054 | O72: 16|01|02|000054 | P72: 01 | Q72: 01 | R72: 01 | S72: 01 | T72: 01 | U72: 01|01|01|01|01 | V72: National | W72: Basic Education | X72: Administration | Y72: Department Management | Z72: Non-transfer item | AA72: Current | AB72: Current payments | AC72: Compensation of employees | AD72: Salaries and wages | AE72: Salaries and wages | AF72: Learning and culture | AG72: Basic education | AH72: NAT | AI72: 61605 | AJ72: 68048 | AK72: 70850 | AL72: 64783 | AM72: 66283 | AN72: 66283 | AO72: 73347 | AP72: 77516 | AQ72: 80187 | AR72: 84132 | AS72: 87937 | CB72: =Dataset[[#This Row],[2025/26 From - Spending review Topic 1]]+Dataset[[#This Row],[2025/26 From - Spending review Topic 2]]+Dataset[[#This Row],[2025/26 From - Spending review Topic 3]]+Dataset[[#This Row],[2025/26 From - Spending review Topic 4]]+Dataset[[#This Row],[2025/26 From - Other reallocations]] -> 0 | CC72: =Dataset[[#This Row],[2026/27 From - Spending review Topic 1]]+Dataset[[#This Row],[2026/27 From - Spending review Topic 2]]+Dataset[[#This Row],[2026/27 From - Spending review Topic 3]]+Dataset[[#This Row],[2026/27 From - Spending review Topic 4]]+Dataset[[#This Row],[2026/27 From - Other reallocations]] -> 0 | CD72: =Dataset[[#This Row],[2027/28 From - Spending review Topic 1]]+Dataset[[#This Row],[2027/28 From - Spending review Topic 2]]+Dataset[[#This Row],[2027/28 From - Spending review Topic 3]]+Dataset[[#This Row],[2027/28 From - Spending review Topic 4]]+Dataset[[#This Row],[2027/28 From - Other reallocations]] -> 0 | CE72: =Dataset[[#This Row],[2025/26 To - Spending review Topic 1]]+Dataset[[#This Row],[2025/26 To - Spending review Topic 2]]+Dataset[[#This Row],[2025/26 To - Spending review Topic 3]]+Dataset[[#This Row],[2025/26 To - Spending review Topic 4]]+Dataset[[#This Row],[2025/26 To - Other reallocations]] -> 0 | CF72: =Dataset[[#This Row],[2026/27 To - Spending review Topic 1]]+Dataset[[#This Row],[2026/27 To - Spending review Topic 2]]+Dataset[[#This Row],[2026/27 To - Spending review Topic 3]]+Dataset[[#This Row],[2026/27 To - Spending review Topic 4]]+Dataset[[#This Row],[2026/27 To - Other reallocations]] -> 0 | CG72: =Dataset[[#This Row],[2027/28 To - Spending review Topic 1]]+Dataset[[#This Row],[2027/28 To - Spending review Topic 2]]+Dataset[[#This Row],[2027/28 To - Spending review Topic 3]]+Dataset[[#This Row],[2027/28 To - Spending review Topic 4]]+Dataset[[#This Row],[2027/28 To - Other reallocations]] -> 0 | CH72: =Dataset[[#This Row],[2025/26 Reduction]]+Dataset[[#This Row],[2025/26 From - Total]] -> 0 | CI72: =Dataset[[#This Row],[2026/27 Reduction]]+Dataset[[#This Row],[2026/27 From - Total]] -> 0 | CJ72: =Dataset[[#This Row],[2027/28 Reduction]]+Dataset[[#This Row],[2027/28 From - Total]] -> 0 | CK72: =Dataset[[#This Row],[2024/25 Reduction]] -> 0 | CL72: =SUM(Dataset[[#This Row],[2025/26 Reduction]],Dataset[[#This Row],[2025/26 From - Total]],Dataset[[#This Row],[2025/26 To - Total]]) -> 0 | CM72: =SUM(Dataset[[#This Row],[2026/27 Reduction]],Dataset[[#This Row],[2026/27 From - Total]],Dataset[[#This Row],[2026/27 To - Total]]) -> 0 | CN72: =SUM(Dataset[[#This Row],[2027/28 Reduction]],Dataset[[#This Row],[2027/28 From - Total]],Dataset[[#This Row],[2027/28 To - Total]]) -> 0 | CO72: =Dataset[[#This Row],[2024/25 Baseline]]+Dataset[[#This Row],[2024/25 Total change]] -> 77516 | CP72: =Dataset[[#This Row],[2025/26 Baseline]]+Dataset[[#This Row],[2025/26 Total change]] -> 80187 | CQ72: =Dataset[[#This Row],[2026/27 Baseline]]+Dataset[[#This Row],[2026/27 Total change]] -> 84132 | CR72: =Dataset[[#This Row],[2027/28 Baseline]]+Dataset[[#This Row],[2027/28 Total change]] -> 87937
A73: NAT|Non-transfer item | B73: 16|Social contributions | C73: 2025_26 | D73: MTEC2025 | E73: 16 | F73: 1 | G73: 2 | H73: 16718 | I73: 55 | J73: 16 | K73: 01 | L73: 02 | M73: 016718 | N73: 000055 | O73: 16|01|02|000055 | P73: 01 | Q73: 01 | R73: 01 | S73: 02 | T73: 02 | U73: 01|01|01|02|02 | V73: National | W73: Basic Education | X73: Administration | Y73: Department Management | Z73: Non-transfer item | AA73: Current | AB73: Current payments | AC73: Compensation of employees | AD73: Social contributions | AE73: Social contributions | AF73: Learning and culture | AG73: Basic education | AH73: NAT | AI73: 7364 | AJ73: 7742 | AK73: 8286 | AL73: 8202 | AM73: 8202 | AN73: 8202 | AO73: 8853 | AP73: 9118 | AQ73: 9891 | AR73: 10089 | AS73: 10545 | CB73: =Dataset[[#This Row],[2025/26 From - Spending review Topic 1]]+Dataset[[#This Row],[2025/26 From - Spending review Topic 2]]+Dataset[[#This Row],[2025/26 From - Spending review Topic 3]]+Dataset[[#This Row],[2025/26 From - Spending review Topic 4]]+Dataset[[#This Row],[2025/26 From - Other reallocations]] -> 0 | CC73: =Dataset[[#This Row],[2026/27 From - Spending review Topic 1]]+Dataset[[#This Row],[2026/27 From - Spending review Topic 2]]+Dataset[[#This Row],[2026/27 From - Spending review Topic 3]]+Dataset[[#This Row],[2026/27 From - Spending review Topic 4]]+Dataset[[#This Row],[2026/27 From - Other reallocations]] -> 0 | CD73: =Dataset[[#This Row],[2027/28 From - Spending review Topic 1]]+Dataset[[#This Row],[2027/28 From - Spending review Topic 2]]+Dataset[[#This Row],[2027/28 From - Spending review Topic 3]]+Dataset[[#This Row],[2027/28 From - Spending review Topic 4]]+Dataset[[#This Row],[2027/28 From - Other reallocations]] -> 0 | CE73: =Dataset[[#This Row],[2025/26 To - Spending review Topic 1]]+Dataset[[#This Row],[2025/26 To - Spending review Topic 2]]+Dataset[[#This Row],[2025/26 To - Spending review Topic 3]]+Dataset[[#This Row],[2025/26 To - Spending review Topic 4]]+Dataset[[#This Row],[2025/26 To - Other reallocations]] -> 0 | CF73: =Dataset[[#This Row],[2026/27 To - Spending review Topic 1]]+Dataset[[#This Row],[2026/27 To - Spending review Topic 2]]+Dataset[[#This Row],[2026/27 To - Spending review Topic 3]]+Dataset[[#This Row],[2026/27 To - Spending review Topic 4]]+Dataset[[#This Row],[2026/27 To - Other reallocations]] -> 0 | CG73: =Dataset[[#This Row],[2027/28 To - Spending review Topic 1]]+Dataset[[#This Row],[2027/28 To - Spending review Topic 2]]+Dataset[[#This Row],[2027/28 To - Spending review Topic 3]]+Dataset[[#This Row],[2027/28 To - Spending review Topic 4]]+Dataset[[#This Row],[2027/28 To - Other reallocations]] -> 0 | CH73: =Dataset[[#This Row],[2025/26 Reduction]]+Dataset[[#This Row],[2025/26 From - Total]] -> 0 | CI73: =Dataset[[#This Row],[2026/27 Reduction]]+Dataset[[#This Row],[2026/27 From - Total]] -> 0 | CJ73: =Dataset[[#This Row],[2027/28 Reduction]]+Dataset[[#This Row],[2027/28 From - Total]] -> 0 | CK73: =Dataset[[#This Row],[2024/25 Reduction]] -> 0 | CL73: =SUM(Dataset[[#This Row],[2025/26 Reduction]],Dataset[[#This Row],[2025/26 From - Total]],Dataset[[#This Row],[2025/26 To - Total]]) -> 0 | CM73: =SUM(Dataset[[#This Row],[2026/27 Reduction]],Dataset[[#This Row],[2026/27 From - Total]],Dataset[[#This Row],[2026/27 To - Total]]) -> 0 | CN73: =SUM(Dataset[[#This Row],[2027/28 Reduction]],Dataset[[#This Row],[2027/28 From - Total]],Dataset[[#This Row],[2027/28 To - Total]]) -> 0 | CO73: =Dataset[[#This Row],[2024/25 Baseline]]+Dataset[[#This Row],[2024/25 Total change]] -> 9118 | CP73: =Dataset[[#This Row],[2025/26 Baseline]]+Dataset[[#This Row],[2025/26 Total change]] -> 9891 | CQ73: =Dataset[[#This Row],[2026/27 Baseline]]+Dataset[[#This Row],[2026/27 Total change]] -> 10089 | CR73: =Dataset[[#This Row],[2027/28 Baseline]]+Dataset[[#This Row],[2027/28 Total change]] -> 10545
A74: NAT|Non-transfer item | B74: 16|Administrative fees | C74: 2025_26 | D74: MTEC2025 | E74: 16 | F74: 1 | G74: 2 | H74: 16719 | I74: 56 | J74: 16 | K74: 01 | L74: 02 | M74: 016719 | N74: 000056 | O74: 16|01|02|000056 | P74: 01 | Q74: 01 | R74: 02 | S74: 03 | T74: 03 | U74: 01|01|02|03|03 | V74: National | W74: Basic Education | X74: Administration | Y74: Department Management | Z74: Non-transfer item | AA74: Current | AB74: Current payments | AC74: Goods and services | AD74: Administrative fees | AE74: Administrative fees | AF74: Learning and culture | AG74: Basic education | AH74: NAT | AI74: 146 | AJ74: 236 | AK74: 390 | AL74: 281 | AM74: 1332 | AN74: 1332 | AO74: 575 | AP74: 318 | AQ74: 332 | AR74: 347 | AS74: 363 | CB74: =Dataset[[#This Row],[2025/26 From - Spending review Topic 1]]+Dataset[[#This Row],[2025/26 From - Spending review Topic 2]]+Dataset[[#This Row],[2025/26 From - Spending review Topic 3]]+Dataset[[#This Row],[2025/26 From - Spending review Topic 4]]+Dataset[[#This Row],[2025/26 From - Other reallocations]] -> 0 | CC74: =Dataset[[#This Row],[2026/27 From - Spending review Topic 1]]+Dataset[[#This Row],[2026/27 From - Spending review Topic 2]]+Dataset[[#This Row],[2026/27 From - Spending review Topic 3]]+Dataset[[#This Row],[2026/27 From - Spending review Topic 4]]+Dataset[[#This Row],[2026/27 From - Other reallocations]] -> 0 | CD74: =Dataset[[#This Row],[2027/28 From - Spending review Topic 1]]+Dataset[[#This Row],[2027/28 From - Spending review Topic 2]]+Dataset[[#This Row],[2027/28 From - Spending review Topic 3]]+Dataset[[#This Row],[2027/28 From - Spending review Topic 4]]+Dataset[[#This Row],[2027/28 From - Other reallocations]] -> 0 | CE74: =Dataset[[#This Row],[2025/26 To - Spending review Topic 1]]+Dataset[[#This Row],[2025/26 To - Spending review Topic 2]]+Dataset[[#This Row],[2025/26 To - Spending review Topic 3]]+Dataset[[#This Row],[2025/26 To - Spending review Topic 4]]+Dataset[[#This Row],[2025/26 To - Other reallocations]] -> 0 | CF74: =Dataset[[#This Row],[2026/27 To - Spending review Topic 1]]+Dataset[[#This Row],[2026/27 To - Spending review Topic 2]]+Dataset[[#This Row],[2026/27 To - Spending review Topic 3]]+Dataset[[#This Row],[2026/27 To - Spending review Topic 4]]+Dataset[[#This Row],[2026/27 To - Other reallocations]] -> 0 | CG74: =Dataset[[#This Row],[2027/28 To - Spending review Topic 1]]+Dataset[[#This Row],[2027/28 To - Spending review Topic 2]]+Dataset[[#This Row],[2027/28 To - Spending review Topic 3]]+Dataset[[#This Row],[2027/28 To - Spending review Topic 4]]+Dataset[[#This Row],[2027/28 To - Other reallocations]] -> 0 | CH74: =Dataset[[#This Row],[2025/26 Reduction]]+Dataset[[#This Row],[2025/26 From - Total]] -> 0 | CI74: =Dataset[[#This Row],[2026/27 Reduction]]+Dataset[[#This Row],[2026/27 From - Total]] -> 0 | CJ74: =Dataset[[#This Row],[2027/28 Reduction]]+Dataset[[#This Row],[2027/28 From - Total]] -> 0 | CK74: =Dataset[[#This Row],[2024/25 Reduction]] -> 0 | CL74: =SUM(Dataset[[#This Row],[2025/26 Reduction]],Dataset[[#This Row],[2025/26 From - Total]],Dataset[[#This Row],[2025/26 To - Total]]) -> 0 | CM74: =SUM(Dataset[[#This Row],[2026/27 Reduction]],Dataset[[#This Row],[2026/27 From - Total]],Dataset[[#This Row],[2026/27 To - Total]]) -> 0 | CN74: =SUM(Dataset[[#This Row],[2027/28 Reduction]],Dataset[[#This Row],[2027/28 From - Total]],Dataset[[#This Row],[2027/28 To - Total]]) -> 0 | CO74: =Dataset[[#This Row],[2024/25 Baseline]]+Dataset[[#This Row],[2024/25 Total change]] -> 318 | CP74: =Dataset[[#This Row],[2025/26 Baseline]]+Dataset[[#This Row],[2025/26 Total change]] -> 332 | CQ74: =Dataset[[#This Row],[2026/27 Baseline]]+Dataset[[#This Row],[2026/27 Total change]] -> 347 | CR74: =Dataset[[#This Row],[2027/28 Baseline]]+Dataset[[#This Row],[2027/28 Total change]] -> 363
A75: NAT|Non-transfer item | B75: 16|Advertising | C75: 2025_26 | D75: MTEC2025 | E75: 16 | F75: 1 | G75: 2 | H75: 16720 | I75: 57 | J75: 16 | K75: 01 | L75: 02 | M75: 016720 | N75: 000057 | O75: 16|01|02|000057 | P75: 01 | Q75: 01 | R75: 02 | S75: 04 | T75: 04 | U75: 01|01|02|04|04 | V75: National | W75: Basic Education | X75: Administration | Y75: Department Management | Z75: Non-transfer item | AA75: Current | AB75: Current payments | AC75: Goods and services | AD75: Advertising | AE75: Advertising | AF75: Learning and culture | AG75: Basic education | AH75: NAT | AI75: 2343 | AJ75: 644 | AK75: 478 | AL75: 15 | AM75: 15 | AN75: 15 | AO75: 3035 | AP75: 17 | AQ75: 18 | AR75: 19 | AS75: 20 | CB75: =Dataset[[#This Row],[2025/26 From - Spending review Topic 1]]+Dataset[[#This Row],[2025/26 From - Spending review Topic 2]]+Dataset[[#This Row],[2025/26 From - Spending review Topic 3]]+Dataset[[#This Row],[2025/26 From - Spending review Topic 4]]+Dataset[[#This Row],[2025/26 From - Other reallocations]] -> 0 | CC75: =Dataset[[#This Row],[2026/27 From - Spending review Topic 1]]+Dataset[[#This Row],[2026/27 From - Spending review Topic 2]]+Dataset[[#This Row],[2026/27 From - Spending review Topic 3]]+Dataset[[#This Row],[2026/27 From - Spending review Topic 4]]+Dataset[[#This Row],[2026/27 From - Other reallocations]] -> 0 | CD75: =Dataset[[#This Row],[2027/28 From - Spending review Topic 1]]+Dataset[[#This Row],[2027/28 From - Spending review Topic 2]]+Dataset[[#This Row],[2027/28 From - Spending review Topic 3]]+Dataset[[#This Row],[2027/28 From - Spending review Topic 4]]+Dataset[[#This Row],[2027/28 From - Other reallocations]] -> 0 | CE75: =Dataset[[#This Row],[2025/26 To - Spending review Topic 1]]+Dataset[[#This Row],[2025/26 To - Spending review Topic 2]]+Dataset[[#This Row],[2025/26 To - Spending review Topic 3]]+Dataset[[#This Row],[2025/26 To - Spending review Topic 4]]+Dataset[[#This Row],[2025/26 To - Other reallocations]] -> 0 | CF75: =Dataset[[#This Row],[2026/27 To - Spending review Topic 1]]+Dataset[[#This Row],[2026/27 To - Spending review Topic 2]]+Dataset[[#This Row],[2026/27 To - Spending review Topic 3]]+Dataset[[#This Row],[2026/27 To - Spending review Topic 4]]+Dataset[[#This Row],[2026/27 To - Other reallocations]] -> 0 | CG75: =Dataset[[#This Row],[2027/28 To - Spending review Topic 1]]+Dataset[[#This Row],[2027/28 To - Spending review Topic 2]]+Dataset[[#This Row],[2027/28 To - Spending review Topic 3]]+Dataset[[#This Row],[2027/28 To - Spending review Topic 4]]+Dataset[[#This Row],[2027/28 To - Other reallocations]] -> 0 | CH75: =Dataset[[#This Row],[2025/26 Reduction]]+Dataset[[#This Row],[2025/26 From - Total]] -> 0 | CI75: =Dataset[[#This Row],[2026/27 Reduction]]+Dataset[[#This Row],[2026/27 From - Total]] -> 0 | CJ75: =Dataset[[#This Row],[2027/28 Reduction]]+Dataset[[#This Row],[2027/28 From - Total]] -> 0 | CK75: =Dataset[[#This Row],[2024/25 Reduction]] -> 0 | CL75: =SUM(Dataset[[#This Row],[2025/26 Reduction]],Dataset[[#This Row],[2025/26 From - Total]],Dataset[[#This Row],[2025/26 To - Total]]) -> 0 | CM75: =SUM(Dataset[[#This Row],[2026/27 Reduction]],Dataset[[#This Row],[2026/27 From - Total]],Dataset[[#This Row],[2026/27 To - Total]]) -> 0 | CN75: =SUM(Dataset[[#This Row],[2027/28 Reduction]],Dataset[[#This Row],[2027/28 From - Total]],Dataset[[#This Row],[2027/28 To - Total]]) -> 0 | CO75: =Dataset[[#This Row],[2024/25 Baseline]]+Dataset[[#This Row],[2024/25 Total change]] -> 17 | CP75: =Dataset[[#This Row],[2025/26 Baseline]]+Dataset[[#This Row],[2025/26 Total change]] -> 18 | CQ75: =Dataset[[#This Row],[2026/27 Baseline]]+Dataset[[#This Row],[2026/27 Total change]] -> 19 | CR75: =Dataset[[#This Row],[2027/28 Baseline]]+Dataset[[#This Row],[2027/28 Total change]] -> 20
A76: NAT|Non-transfer item | B76: 16|Minor assets | C76: 2025_26 | D76: MTEC2025 | E76: 16 | F76: 1 | G76: 2 | H76: 16721 | I76: 58 | J76: 16 | K76: 01 | L76: 02 | M76: 016721 | N76: 000058 | O76: 16|01|02|000058 | P76: 01 | Q76: 01 | R76: 02 | S76: 05 | T76: 05 | U76: 01|01|02|05|05 | V76: National | W76: Basic Education | X76: Administration | Y76: Department Management | Z76: Non-transfer item | AA76: Current | AB76: Current payments | AC76: Goods and services | AD76: Minor assets | AE76: Minor assets | AF76: Learning and culture | AG76: Basic education | AH76: NAT | AI76: 49 | AJ76: 53 | AK76: 108 | AL76: 91 | AM76: 204 | AN76: 204 | AO76: 44 | AP76: 97 | AQ76: 101 | AR76: 106 | AS76: 111 | CB76: =Dataset[[#This Row],[2025/26 From - Spending review Topic 1]]+Dataset[[#This Row],[2025/26 From - Spending review Topic 2]]+Dataset[[#This Row],[2025/26 From - Spending review Topic 3]]+Dataset[[#This Row],[2025/26 From - Spending review Topic 4]]+Dataset[[#This Row],[2025/26 From - Other reallocations]] -> 0 | CC76: =Dataset[[#This Row],[2026/27 From - Spending review Topic 1]]+Dataset[[#This Row],[2026/27 From - Spending review Topic 2]]+Dataset[[#This Row],[2026/27 From - Spending review Topic 3]]+Dataset[[#This Row],[2026/27 From - Spending review Topic 4]]+Dataset[[#This Row],[2026/27 From - Other reallocations]] -> 0 | CD76: =Dataset[[#This Row],[2027/28 From - Spending review Topic 1]]+Dataset[[#This Row],[2027/28 From - Spending review Topic 2]]+Dataset[[#This Row],[2027/28 From - Spending review Topic 3]]+Dataset[[#This Row],[2027/28 From - Spending review Topic 4]]+Dataset[[#This Row],[2027/28 From - Other reallocations]] -> 0 | CE76: =Dataset[[#This Row],[2025/26 To - Spending review Topic 1]]+Dataset[[#This Row],[2025/26 To - Spending review Topic 2]]+Dataset[[#This Row],[2025/26 To - Spending review Topic 3]]+Dataset[[#This Row],[2025/26 To - Spending review Topic 4]]+Dataset[[#This Row],[2025/26 To - Other reallocations]] -> 0 | CF76: =Dataset[[#This Row],[2026/27 To - Spending review Topic 1]]+Dataset[[#This Row],[2026/27 To - Spending review Topic 2]]+Dataset[[#This Row],[2026/27 To - Spending review Topic 3]]+Dataset[[#This Row],[2026/27 To - Spending review Topic 4]]+Dataset[[#This Row],[2026/27 To - Other reallocations]] -> 0 | CG76: =Dataset[[#This Row],[2027/28 To - Spending review Topic 1]]+Dataset[[#This Row],[2027/28 To - Spending review Topic 2]]+Dataset[[#This Row],[2027/28 To - Spending review Topic 3]]+Dataset[[#This Row],[2027/28 To - Spending review Topic 4]]+Dataset[[#This Row],[2027/28 To - Other reallocations]] -> 0 | CH76: =Dataset[[#This Row],[2025/26 Reduction]]+Dataset[[#This Row],[2025/26 From - Total]] -> 0 | CI76: =Dataset[[#This Row],[2026/27 Reduction]]+Dataset[[#This Row],[2026/27 From - Total]] -> 0 | CJ76: =Dataset[[#This Row],[2027/28 Reduction]]+Dataset[[#This Row],[2027/28 From - Total]] -> 0 | CK76: =Dataset[[#This Row],[2024/25 Reduction]] -> 0 | CL76: =SUM(Dataset[[#This Row],[2025/26 Reduction]],Dataset[[#This Row],[2025/26 From - Total]],Dataset[[#This Row],[2025/26 To - Total]]) -> 0 | CM76: =SUM(Dataset[[#This Row],[2026/27 Reduction]],Dataset[[#This Row],[2026/27 From - Total]],Dataset[[#This Row],[2026/27 To - Total]]) -> 0 | CN76: =SUM(Dataset[[#This Row],[2027/28 Reduction]],Dataset[[#This Row],[2027/28 From - Total]],Dataset[[#This Row],[2027/28 To - Total]]) -> 0 | CO76: =Dataset[[#This Row],[2024/25 Baseline]]+Dataset[[#This Row],[2024/25 Total change]] -> 97 | CP76: =Dataset[[#This Row],[2025/26 Baseline]]+Dataset[[#This Row],[2025/26 Total change]] -> 101 | CQ76: =Dataset[[#This Row],[2026/27 Baseline]]+Dataset[[#This Row],[2026/27 Total change]] -> 106 | CR76: =Dataset[[#This Row],[2027/28 Baseline]]+Dataset[[#This Row],[2027/28 Total change]] -> 111
A77: NAT|Non-transfer item | B77: 16|Audit costs: External | C77: 2025_26 | D77: MTEC2025 | E77: 16 | F77: 1 | G77: 2 | H77: 16722 | I77: 59 | J77: 16 | K77: 01 | L77: 02 | M77: 016722 | N77: 000059 | O77: 16|01|02|000059 | P77: 01 | Q77: 01 | R77: 02 | S77: 06 | T77: 06 | U77: 01|01|02|06|06 | V77: National | W77: Basic Education | X77: Administration | Y77: Department Management | Z77: Non-transfer item | AA77: Current | AB77: Current payments | AC77: Goods and services | AD77: Audit costs: External | AE77: Audit costs: External | AF77: Learning and culture | AG77: Basic education | AH77: NAT | AI77: 0 | AJ77: 0 | AK77: 0 | AL77: 0 | AM77: 0 | AN77: 0 | AP77: 0 | AQ77: 0 | AR77: 0 | AS77: 0 | CB77: =Dataset[[#This Row],[2025/26 From - Spending review Topic 1]]+Dataset[[#This Row],[2025/26 From - Spending review Topic 2]]+Dataset[[#This Row],[2025/26 From - Spending review Topic 3]]+Dataset[[#This Row],[2025/26 From - Spending review Topic 4]]+Dataset[[#This Row],[2025/26 From - Other reallocations]] -> 0 | CC77: =Dataset[[#This Row],[2026/27 From - Spending review Topic 1]]+Dataset[[#This Row],[2026/27 From - Spending review Topic 2]]+Dataset[[#This Row],[2026/27 From - Spending review Topic 3]]+Dataset[[#This Row],[2026/27 From - Spending review Topic 4]]+Dataset[[#This Row],[2026/27 From - Other reallocations]] -> 0 | CD77: =Dataset[[#This Row],[2027/28 From - Spending review Topic 1]]+Dataset[[#This Row],[2027/28 From - Spending review Topic 2]]+Dataset[[#This Row],[2027/28 From - Spending review Topic 3]]+Dataset[[#This Row],[2027/28 From - Spending review Topic 4]]+Dataset[[#This Row],[2027/28 From - Other reallocations]] -> 0 | CE77: =Dataset[[#This Row],[2025/26 To - Spending review Topic 1]]+Dataset[[#This Row],[2025/26 To - Spending review Topic 2]]+Dataset[[#This Row],[2025/26 To - Spending review Topic 3]]+Dataset[[#This Row],[2025/26 To - Spending review Topic 4]]+Dataset[[#This Row],[2025/26 To - Other reallocations]] -> 0 | CF77: =Dataset[[#This Row],[2026/27 To - Spending review Topic 1]]+Dataset[[#This Row],[2026/27 To - Spending review Topic 2]]+Dataset[[#This Row],[2026/27 To - Spending review Topic 3]]+Dataset[[#This Row],[2026/27 To - Spending review Topic 4]]+Dataset[[#This Row],[2026/27 To - Other reallocations]] -> 0 | CG77: =Dataset[[#This Row],[2027/28 To - Spending review Topic 1]]+Dataset[[#This Row],[2027/28 To - Spending review Topic 2]]+Dataset[[#This Row],[2027/28 To - Spending review Topic 3]]+Dataset[[#This Row],[2027/28 To - Spending review Topic 4]]+Dataset[[#This Row],[2027/28 To - Other reallocations]] -> 0 | CH77: =Dataset[[#This Row],[2025/26 Reduction]]+Dataset[[#This Row],[2025/26 From - Total]] -> 0 | CI77: =Dataset[[#This Row],[2026/27 Reduction]]+Dataset[[#This Row],[2026/27 From - Total]] -> 0 | CJ77: =Dataset[[#This Row],[2027/28 Reduction]]+Dataset[[#This Row],[2027/28 From - Total]] -> 0 | CK77: =Dataset[[#This Row],[2024/25 Reduction]] -> 0 | CL77: =SUM(Dataset[[#This Row],[2025/26 Reduction]],Dataset[[#This Row],[2025/26 From - Total]],Dataset[[#This Row],[2025/26 To - Total]]) -> 0 | CM77: =SUM(Dataset[[#This Row],[2026/27 Reduction]],Dataset[[#This Row],[2026/27 From - Total]],Dataset[[#This Row],[2026/27 To - Total]]) -> 0 | CN77: =SUM(Dataset[[#This Row],[2027/28 Reduction]],Dataset[[#This Row],[2027/28 From - Total]],Dataset[[#This Row],[2027/28 To - Total]]) -> 0 | CO77: =Dataset[[#This Row],[2024/25 Baseline]]+Dataset[[#This Row],[2024/25 Total change]] -> 0 | CP77: =Dataset[[#This Row],[2025/26 Baseline]]+Dataset[[#This Row],[2025/26 Total change]] -> 0 | CQ77: =Dataset[[#This Row],[2026/27 Baseline]]+Dataset[[#This Row],[2026/27 Total change]] -> 0 | CR77: =Dataset[[#This Row],[2027/28 Baseline]]+Dataset[[#This Row],[2027/28 Total change]] -> 0
A78: NAT|Non-transfer item | B78: 16|Bursaries: Employees | C78: 2025_26 | D78: MTEC2025 | E78: 16 | F78: 1 | G78: 2 | H78: 16723 | I78: 60 | J78: 16 | K78: 01 | L78: 02 | M78: 016723 | N78: 000060 | O78: 16|01|02|000060 | P78: 01 | Q78: 01 | R78: 02 | S78: 07 | T78: 07 | U78: 01|01|02|07|07 | V78: National | W78: Basic Education | X78: Administration | Y78: Department Management | Z78: Non-transfer item | AA78: Current | AB78: Current payments | AC78: Goods and services | AD78: Bursaries: Employees | AE78: Bursaries: Employees | AF78: Learning and culture | AG78: Basic education | AH78: NAT | AI78: 0 | AJ78: 0 | AK78: 0 | AL78: 0 | AM78: 0 | AN78: 0 | AP78: 0 | AQ78: 0 | AR78: 0 | AS78: 0 | CB78: =Dataset[[#This Row],[2025/26 From - Spending review Topic 1]]+Dataset[[#This Row],[2025/26 From - Spending review Topic 2]]+Dataset[[#This Row],[2025/26 From - Spending review Topic 3]]+Dataset[[#This Row],[2025/26 From - Spending review Topic 4]]+Dataset[[#This Row],[2025/26 From - Other reallocations]] -> 0 | CC78: =Dataset[[#This Row],[2026/27 From - Spending review Topic 1]]+Dataset[[#This Row],[2026/27 From - Spending review Topic 2]]+Dataset[[#This Row],[2026/27 From - Spending review Topic 3]]+Dataset[[#This Row],[2026/27 From - Spending review Topic 4]]+Dataset[[#This Row],[2026/27 From - Other reallocations]] -> 0 | CD78: =Dataset[[#This Row],[2027/28 From - Spending review Topic 1]]+Dataset[[#This Row],[2027/28 From - Spending review Topic 2]]+Dataset[[#This Row],[2027/28 From - Spending review Topic 3]]+Dataset[[#This Row],[2027/28 From - Spending review Topic 4]]+Dataset[[#This Row],[2027/28 From - Other reallocations]] -> 0 | CE78: =Dataset[[#This Row],[2025/26 To - Spending review Topic 1]]+Dataset[[#This Row],[2025/26 To - Spending review Topic 2]]+Dataset[[#This Row],[2025/26 To - Spending review Topic 3]]+Dataset[[#This Row],[2025/26 To - Spending review Topic 4]]+Dataset[[#This Row],[2025/26 To - Other reallocations]] -> 0 | CF78: =Dataset[[#This Row],[2026/27 To - Spending review Topic 1]]+Dataset[[#This Row],[2026/27 To - Spending review Topic 2]]+Dataset[[#This Row],[2026/27 To - Spending review Topic 3]]+Dataset[[#This Row],[2026/27 To - Spending review Topic 4]]+Dataset[[#This Row],[2026/27 To - Other reallocations]] -> 0 | CG78: =Dataset[[#This Row],[2027/28 To - Spending review Topic 1]]+Dataset[[#This Row],[2027/28 To - Spending review Topic 2]]+Dataset[[#This Row],[2027/28 To - Spending review Topic 3]]+Dataset[[#This Row],[2027/28 To - Spending review Topic 4]]+Dataset[[#This Row],[2027/28 To - Other reallocations]] -> 0 | CH78: =Dataset[[#This Row],[2025/26 Reduction]]+Dataset[[#This Row],[2025/26 From - Total]] -> 0 | CI78: =Dataset[[#This Row],[2026/27 Reduction]]+Dataset[[#This Row],[2026/27 From - Total]] -> 0 | CJ78: =Dataset[[#This Row],[2027/28 Reduction]]+Dataset[[#This Row],[2027/28 From - Total]] -> 0 | CK78: =Dataset[[#This Row],[2024/25 Reduction]] -> 0 | CL78: =SUM(Dataset[[#This Row],[2025/26 Reduction]],Dataset[[#This Row],[2025/26 From - Total]],Dataset[[#This Row],[2025/26 To - Total]]) -> 0 | CM78: =SUM(Dataset[[#This Row],[2026/27 Reduction]],Dataset[[#This Row],[2026/27 From - Total]],Dataset[[#This Row],[2026/27 To - Total]]) -> 0 | CN78: =SUM(Dataset[[#This Row],[2027/28 Reduction]],Dataset[[#This Row],[2027/28 From - Total]],Dataset[[#This Row],[2027/28 To - Total]]) -> 0 | CO78: =Dataset[[#This Row],[2024/25 Baseline]]+Dataset[[#This Row],[2024/25 Total change]] -> 0 | CP78: =Dataset[[#This Row],[2025/26 Baseline]]+Dataset[[#This Row],[2025/26 Total change]] -> 0 | CQ78: =Dataset[[#This Row],[2026/27 Baseline]]+Dataset[[#This Row],[2026/27 Total change]] -> 0 | CR78: =Dataset[[#This Row],[2027/28 Baseline]]+Dataset[[#This Row],[2027/28 Total change]] -> 0
A79: NAT|Non-transfer item | B79: 16|Catering: Departmental activities | C79: 2025_26 | D79: MTEC2025 | E79: 16 | F79: 1 | G79: 2 | H79: 16724 | I79: 61 | J79: 16 | K79: 01 | L79: 02 | M79: 016724 | N79: 000061 | O79: 16|01|02|000061 | P79: 01 | Q79: 01 | R79: 02 | S79: 08 | T79: 08 | U79: 01|01|02|08|08 | V79: National | W79: Basic Education | X79: Administration | Y79: Department Management | Z79: Non-transfer item | AA79: Current | AB79: Current payments | AC79: Goods and services | AD79: Catering: Departmental activities | AE79: Catering: Departmental activities | AF79: Learning and culture | AG79: Basic education | AH79: NAT | AI79: 680 | AJ79: 336 | AK79: 1188 | AL79: 792 | AM79: 3514 | AN79: 3514 | AO79: 558 | AP79: 843 | AQ79: 881 | AR79: 921 | AS79: 963 | CB79: =Dataset[[#This Row],[2025/26 From - Spending review Topic 1]]+Dataset[[#This Row],[2025/26 From - Spending review Topic 2]]+Dataset[[#This Row],[2025/26 From - Spending review Topic 3]]+Dataset[[#This Row],[2025/26 From - Spending review Topic 4]]+Dataset[[#This Row],[2025/26 From - Other reallocations]] -> 0 | CC79: =Dataset[[#This Row],[2026/27 From - Spending review Topic 1]]+Dataset[[#This Row],[2026/27 From - Spending review Topic 2]]+Dataset[[#This Row],[2026/27 From - Spending review Topic 3]]+Dataset[[#This Row],[2026/27 From - Spending review Topic 4]]+Dataset[[#This Row],[2026/27 From - Other reallocations]] -> 0 | CD79: =Dataset[[#This Row],[2027/28 From - Spending review Topic 1]]+Dataset[[#This Row],[2027/28 From - Spending review Topic 2]]+Dataset[[#This Row],[2027/28 From - Spending review Topic 3]]+Dataset[[#This Row],[2027/28 From - Spending review Topic 4]]+Dataset[[#This Row],[2027/28 From - Other reallocations]] -> 0 | CE79: =Dataset[[#This Row],[2025/26 To - Spending review Topic 1]]+Dataset[[#This Row],[2025/26 To - Spending review Topic 2]]+Dataset[[#This Row],[2025/26 To - Spending review Topic 3]]+Dataset[[#This Row],[2025/26 To - Spending review Topic 4]]+Dataset[[#This Row],[2025/26 To - Other reallocations]] -> 0 | CF79: =Dataset[[#This Row],[2026/27 To - Spending review Topic 1]]+Dataset[[#This Row],[2026/27 To - Spending review Topic 2]]+Dataset[[#This Row],[2026/27 To - Spending review Topic 3]]+Dataset[[#This Row],[2026/27 To - Spending review Topic 4]]+Dataset[[#This Row],[2026/27 To - Other reallocations]] -> 0 | CG79: =Dataset[[#This Row],[2027/28 To - Spending review Topic 1]]+Dataset[[#This Row],[2027/28 To - Spending review Topic 2]]+Dataset[[#This Row],[2027/28 To - Spending review Topic 3]]+Dataset[[#This Row],[2027/28 To - Spending review Topic 4]]+Dataset[[#This Row],[2027/28 To - Other reallocations]] -> 0 | CH79: =Dataset[[#This Row],[2025/26 Reduction]]+Dataset[[#This Row],[2025/26 From - Total]] -> 0 | CI79: =Dataset[[#This Row],[2026/27 Reduction]]+Dataset[[#This Row],[2026/27 From - Total]] -> 0 | CJ79: =Dataset[[#This Row],[2027/28 Reduction]]+Dataset[[#This Row],[2027/28 From - Total]] -> 0 | CK79: =Dataset[[#This Row],[2024/25 Reduction]] -> 0 | CL79: =SUM(Dataset[[#This Row],[2025/26 Reduction]],Dataset[[#This Row],[2025/26 From - Total]],Dataset[[#This Row],[2025/26 To - Total]]) -> 0 | CM79: =SUM(Dataset[[#This Row],[2026/27 Reduction]],Dataset[[#This Row],[2026/27 From - Total]],Dataset[[#This Row],[2026/27 To - Total]]) -> 0 | CN79: =SUM(Dataset[[#This Row],[2027/28 Reduction]],Dataset[[#This Row],[2027/28 From - Total]],Dataset[[#This Row],[2027/28 To - Total]]) -> 0 | CO79: =Dataset[[#This Row],[2024/25 Baseline]]+Dataset[[#This Row],[2024/25 Total change]] -> 843 | CP79: =Dataset[[#This Row],[2025/26 Baseline]]+Dataset[[#This Row],[2025/26 Total change]] -> 881 | CQ79: =Dataset[[#This Row],[2026/27 Baseline]]+Dataset[[#This Row],[2026/27 Total change]] -> 921 | CR79: =Dataset[[#This Row],[2027/28 Baseline]]+Dataset[[#This Row],[2027/28 Total change]] -> 963
A80: NAT|Non-transfer item | B80: 16|Communication (G&S) | C80: 2025_26 | D80: MTEC2025 | E80: 16 | F80: 1 | G80: 2 | H80: 16725 | I80: 62 | J80: 16 | K80: 01 | L80: 02 | M80: 016725 | N80: 000062 | O80: 16|01|02|000062 | P80: 01 | Q80: 01 | R80: 02 | S80: 09 | T80: 09 | U80: 01|01|02|09|09 | V80: National | W80: Basic Education | X80: Administration | Y80: Department Management | Z80: Non-transfer item | AA80: Current | AB80: Current payments | AC80: Goods and services | AD80: Communication (G&S) | AE80: Communication (G&S) | AF80: Learning and culture | AG80: Basic education | AH80: NAT | AI80: 1594 | AJ80: 905 | AK80: 752 | AL80: 1088 | AM80: 788 | AN80: 788 | AO80: 615 | AP80: 1116 | AQ80: 1166 | AR80: 1219 | AS80: 1274 | CB80: =Dataset[[#This Row],[2025/26 From - Spending review Topic 1]]+Dataset[[#This Row],[2025/26 From - Spending review Topic 2]]+Dataset[[#This Row],[2025/26 From - Spending review Topic 3]]+Dataset[[#This Row],[2025/26 From - Spending review Topic 4]]+Dataset[[#This Row],[2025/26 From - Other reallocations]] -> 0 | CC80: =Dataset[[#This Row],[2026/27 From - Spending review Topic 1]]+Dataset[[#This Row],[2026/27 From - Spending review Topic 2]]+Dataset[[#This Row],[2026/27 From - Spending review Topic 3]]+Dataset[[#This Row],[2026/27 From - Spending review Topic 4]]+Dataset[[#This Row],[2026/27 From - Other reallocations]] -> 0 | CD80: =Dataset[[#This Row],[2027/28 From - Spending review Topic 1]]+Dataset[[#This Row],[2027/28 From - Spending review Topic 2]]+Dataset[[#This Row],[2027/28 From - Spending review Topic 3]]+Dataset[[#This Row],[2027/28 From - Spending review Topic 4]]+Dataset[[#This Row],[2027/28 From - Other reallocations]] -> 0 | CE80: =Dataset[[#This Row],[2025/26 To - Spending review Topic 1]]+Dataset[[#This Row],[2025/26 To - Spending review Topic 2]]+Dataset[[#This Row],[2025/26 To - Spending review Topic 3]]+Dataset[[#This Row],[2025/26 To - Spending review Topic 4]]+Dataset[[#This Row],[2025/26 To - Other reallocations]] -> 0 | CF80: =Dataset[[#This Row],[2026/27 To - Spending review Topic 1]]+Dataset[[#This Row],[2026/27 To - Spending review Topic 2]]+Dataset[[#This Row],[2026/27 To - Spending review Topic 3]]+Dataset[[#This Row],[2026/27 To - Spending review Topic 4]]+Dataset[[#This Row],[2026/27 To - Other reallocations]] -> 0 | CG80: =Dataset[[#This Row],[2027/28 To - Spending review Topic 1]]+Dataset[[#This Row],[2027/28 To - Spending review Topic 2]]+Dataset[[#This Row],[2027/28 To - Spending review Topic 3]]+Dataset[[#This Row],[2027/28 To - Spending review Topic 4]]+Dataset[[#This Row],[2027/28 To - Other reallocations]] -> 0 | CH80: =Dataset[[#This Row],[2025/26 Reduction]]+Dataset[[#This Row],[2025/26 From - Total]] -> 0 | CI80: =Dataset[[#This Row],[2026/27 Reduction]]+Dataset[[#This Row],[2026/27 From - Total]] -> 0 | CJ80: =Dataset[[#This Row],[2027/28 Reduction]]+Dataset[[#This Row],[2027/28 From - Total]] -> 0 | CK80: =Dataset[[#This Row],[2024/25 Reduction]] -> 0 | CL80: =SUM(Dataset[[#This Row],[2025/26 Reduction]],Dataset[[#This Row],[2025/26 From - Total]],Dataset[[#This Row],[2025/26 To - Total]]) -> 0 | CM80: =SUM(Dataset[[#This Row],[2026/27 Reduction]],Dataset[[#This Row],[2026/27 From - Total]],Dataset[[#This Row],[2026/27 To - Total]]) -> 0 | CN80: =SUM(Dataset[[#This Row],[2027/28 Reduction]],Dataset[[#This Row],[2027/28 From - Total]],Dataset[[#This Row],[2027/28 To - Total]]) -> 0 | CO80: =Dataset[[#This Row],[2024/25 Baseline]]+Dataset[[#This Row],[2024/25 Total change]] -> 1116 | CP80: =Dataset[[#This Row],[2025/26 Baseline]]+Dataset[[#This Row],[2025/26 Total change]] -> 1166 | CQ80: =Dataset[[#This Row],[2026/27 Baseline]]+Dataset[[#This Row],[2026/27 Total change]] -> 1219 | CR80: =Dataset[[#This Row],[2027/28 Baseline]]+Dataset[[#This Row],[2027/28 Total change]] -> 1274
A81: NAT|Non-transfer item | B81: 16|Computer services | C81: 2025_26 | D81: MTEC2025 | E81: 16 | F81: 1 | G81: 2 | H81: 16726 | I81: 63 | J81: 16 | K81: 01 | L81: 02 | M81: 016726 | N81: 000063 | O81: 16|01|02|000063 | P81: 01 | Q81: 01 | R81: 02 | S81: 10 | T81: 10 | U81: 01|01|02|10|10 | V81: National | W81: Basic Education | X81: Administration | Y81: Department Management | Z81: Non-transfer item | AA81: Current | AB81: Current payments | AC81: Goods and services | AD81: Computer services | AE81: Computer services | AF81: Learning and culture | AG81: Basic education | AH81: NAT | AI81: 266 | AJ81: 1426 | AK81: 1280 | AL81: 37 | AM81: 1037 | AN81: 1037 | AO81: 1789 | AP81: 39 | AQ81: 41 | AR81: 43 | AS81: 45 | CB81: =Dataset[[#This Row],[2025/26 From - Spending review Topic 1]]+Dataset[[#This Row],[2025/26 From - Spending review Topic 2]]+Dataset[[#This Row],[2025/26 From - Spending review Topic 3]]+Dataset[[#This Row],[2025/26 From - Spending review Topic 4]]+Dataset[[#This Row],[2025/26 From - Other reallocations]] -> 0 | CC81: =Dataset[[#This Row],[2026/27 From - Spending review Topic 1]]+Dataset[[#This Row],[2026/27 From - Spending review Topic 2]]+Dataset[[#This Row],[2026/27 From - Spending review Topic 3]]+Dataset[[#This Row],[2026/27 From - Spending review Topic 4]]+Dataset[[#This Row],[2026/27 From - Other reallocations]] -> 0 | CD81: =Dataset[[#This Row],[2027/28 From - Spending review Topic 1]]+Dataset[[#This Row],[2027/28 From - Spending review Topic 2]]+Dataset[[#This Row],[2027/28 From - Spending review Topic 3]]+Dataset[[#This Row],[2027/28 From - Spending review Topic 4]]+Dataset[[#This Row],[2027/28 From - Other reallocations]] -> 0 | CE81: =Dataset[[#This Row],[2025/26 To - Spending review Topic 1]]+Dataset[[#This Row],[2025/26 To - Spending review Topic 2]]+Dataset[[#This Row],[2025/26 To - Spending review Topic 3]]+Dataset[[#This Row],[2025/26 To - Spending review Topic 4]]+Dataset[[#This Row],[2025/26 To - Other reallocations]] -> 0 | CF81: =Dataset[[#This Row],[2026/27 To - Spending review Topic 1]]+Dataset[[#This Row],[2026/27 To - Spending review Topic 2]]+Dataset[[#This Row],[2026/27 To - Spending review Topic 3]]+Dataset[[#This Row],[2026/27 To - Spending review Topic 4]]+Dataset[[#This Row],[2026/27 To - Other reallocations]] -> 0 | CG81: =Dataset[[#This Row],[2027/28 To - Spending review Topic 1]]+Dataset[[#This Row],[2027/28 To - Spending review Topic 2]]+Dataset[[#This Row],[2027/28 To - Spending review Topic 3]]+Dataset[[#This Row],[2027/28 To - Spending review Topic 4]]+Dataset[[#This Row],[2027/28 To - Other reallocations]] -> 0 | CH81: =Dataset[[#This Row],[2025/26 Reduction]]+Dataset[[#This Row],[2025/26 From - Total]] -> 0 | CI81: =Dataset[[#This Row],[2026/27 Reduction]]+Dataset[[#This Row],[2026/27 From - Total]] -> 0 | CJ81: =Dataset[[#This Row],[2027/28 Reduction]]+Dataset[[#This Row],[2027/28 From - Total]] -> 0 | CK81: =Dataset[[#This Row],[2024/25 Reduction]] -> 0 | CL81: =SUM(Dataset[[#This Row],[2025/26 Reduction]],Dataset[[#This Row],[2025/26 From - Total]],Dataset[[#This Row],[2025/26 To - Total]]) -> 0 | CM81: =SUM(Dataset[[#This Row],[2026/27 Reduction]],Dataset[[#This Row],[2026/27 From - Total]],Dataset[[#This Row],[2026/27 To - Total]]) -> 0 | CN81: =SUM(Dataset[[#This Row],[2027/28 Reduction]],Dataset[[#This Row],[2027/28 From - Total]],Dataset[[#This Row],[2027/28 To - Total]]) -> 0 | CO81: =Dataset[[#This Row],[2024/25 Baseline]]+Dataset[[#This Row],[2024/25 Total change]] -> 39 | CP81: =Dataset[[#This Row],[2025/26 Baseline]]+Dataset[[#This Row],[2025/26 Total change]] -> 41 | CQ81: =Dataset[[#This Row],[2026/27 Baseline]]+Dataset[[#This Row],[2026/27 Total change]] -> 43 | CR81: =Dataset[[#This Row],[2027/28 Baseline]]+Dataset[[#This Row],[2027/28 Total change]] -> 45
A82: NAT|Non-transfer item | B82: 16|Consultants: Business and advisory services | C82: 2025_26 | D82: MTEC2025 | E82: 16 | F82: 1 | G82: 2 | H82: 16727 | I82: 64 | J82: 16 | K82: 01 | L82: 02 | M82: 016727 | N82: 000064 | O82: 16|01|02|000064 | P82: 01 | Q82: 01 | R82: 02 | S82: 11 | T82: 11 | U82: 01|01|02|11|11 | V82: National | W82: Basic Education | X82: Administration | Y82: Department Management | Z82: Non-transfer item | AA82: Current | AB82: Current payments | AC82: Goods and services | AD82: Consultants: Business and advisory services | AE82: Consultants: Business and advisory services | AF82: Learning and culture | AG82: Basic education | AH82: NAT | AI82: 4134 | AJ82: 2848 | AK82: 19 | AL82: 1416 | AM82: 416 | AN82: 416 | AO82: 2 | AP82: 1427 | AQ82: 1491 | AR82: 1559 | AS82: 1629 | CB82: =Dataset[[#This Row],[2025/26 From - Spending review Topic 1]]+Dataset[[#This Row],[2025/26 From - Spending review Topic 2]]+Dataset[[#This Row],[2025/26 From - Spending review Topic 3]]+Dataset[[#This Row],[2025/26 From - Spending review Topic 4]]+Dataset[[#This Row],[2025/26 From - Other reallocations]] -> 0 | CC82: =Dataset[[#This Row],[2026/27 From - Spending review Topic 1]]+Dataset[[#This Row],[2026/27 From - Spending review Topic 2]]+Dataset[[#This Row],[2026/27 From - Spending review Topic 3]]+Dataset[[#This Row],[2026/27 From - Spending review Topic 4]]+Dataset[[#This Row],[2026/27 From - Other reallocations]] -> 0 | CD82: =Dataset[[#This Row],[2027/28 From - Spending review Topic 1]]+Dataset[[#This Row],[2027/28 From - Spending review Topic 2]]+Dataset[[#This Row],[2027/28 From - Spending review Topic 3]]+Dataset[[#This Row],[2027/28 From - Spending review Topic 4]]+Dataset[[#This Row],[2027/28 From - Other reallocations]] -> 0 | CE82: =Dataset[[#This Row],[2025/26 To - Spending review Topic 1]]+Dataset[[#This Row],[2025/26 To - Spending review Topic 2]]+Dataset[[#This Row],[2025/26 To - Spending review Topic 3]]+Dataset[[#This Row],[2025/26 To - Spending review Topic 4]]+Dataset[[#This Row],[2025/26 To - Other reallocations]] -> 0 | CF82: =Dataset[[#This Row],[2026/27 To - Spending review Topic 1]]+Dataset[[#This Row],[2026/27 To - Spending review Topic 2]]+Dataset[[#This Row],[2026/27 To - Spending review Topic 3]]+Dataset[[#This Row],[2026/27 To - Spending review Topic 4]]+Dataset[[#This Row],[2026/27 To - Other reallocations]] -> 0 | CG82: =Dataset[[#This Row],[2027/28 To - Spending review Topic 1]]+Dataset[[#This Row],[2027/28 To - Spending review Topic 2]]+Dataset[[#This Row],[2027/28 To - Spending review Topic 3]]+Dataset[[#This Row],[2027/28 To - Spending review Topic 4]]+Dataset[[#This Row],[2027/28 To - Other reallocations]] -> 0 | CH82: =Dataset[[#This Row],[2025/26 Reduction]]+Dataset[[#This Row],[2025/26 From - Total]] -> 0 | CI82: =Dataset[[#This Row],[2026/27 Reduction]]+Dataset[[#This Row],[2026/27 From - Total]] -> 0 | CJ82: =Dataset[[#This Row],[2027/28 Reduction]]+Dataset[[#This Row],[2027/28 From - Total]] -> 0 | CK82: =Dataset[[#This Row],[2024/25 Reduction]] -> 0 | CL82: =SUM(Dataset[[#This Row],[2025/26 Reduction]],Dataset[[#This Row],[2025/26 From - Total]],Dataset[[#This Row],[2025/26 To - Total]]) -> 0 | CM82: =SUM(Dataset[[#This Row],[2026/27 Reduction]],Dataset[[#This Row],[2026/27 From - Total]],Dataset[[#This Row],[2026/27 To - Total]]) -> 0 | CN82: =SUM(Dataset[[#This Row],[2027/28 Reduction]],Dataset[[#This Row],[2027/28 From - Total]],Dataset[[#This Row],[2027/28 To - Total]]) -> 0 | CO82: =Dataset[[#This Row],[2024/25 Baseline]]+Dataset[[#This Row],[2024/25 Total change]] -> 1427 | CP82: =Dataset[[#This Row],[2025/26 Baseline]]+Dataset[[#This Row],[2025/26 Total change]] -> 1491 | CQ82: =Dataset[[#This Row],[2026/27 Baseline]]+Dataset[[#This Row],[2026/27 Total change]] -> 1559 | CR82: =Dataset[[#This Row],[2027/28 Baseline]]+Dataset[[#This Row],[2027/28 Total change]] -> 1629
A83: NAT|Non-transfer item | B83: 16|Infrastructure and planning services | C83: 2025_26 | D83: MTEC2025 | E83: 16 | F83: 1 | G83: 2 | H83: 16728 | I83: 65 | J83: 16 | K83: 01 | L83: 02 | M83: 016728 | N83: 000065 | O83: 16|01|02|000065 | P83: 01 | Q83: 01 | R83: 02 | S83: 12 | T83: 12 | U83: 01|01|02|12|12 | V83: National | W83: Basic Education | X83: Administration | Y83: Department Management | Z83: Non-transfer item | AA83: Current | AB83: Current payments | AC83: Goods and services | AD83: Infrastructure and planning services | AE83: Infrastructure and planning services | AF83: Learning and culture | AG83: Basic education | AH83: NAT | AI83: 0 | AJ83: 0 | AK83: 0 | AL83: 0 | AM83: 0 | AN83: 0 | AP83: 0 | AQ83: 0 | AR83: 0 | AS83: 0 | CB83: =Dataset[[#This Row],[2025/26 From - Spending review Topic 1]]+Dataset[[#This Row],[2025/26 From - Spending review Topic 2]]+Dataset[[#This Row],[2025/26 From - Spending review Topic 3]]+Dataset[[#This Row],[2025/26 From - Spending review Topic 4]]+Dataset[[#This Row],[2025/26 From - Other reallocations]] -> 0 | CC83: =Dataset[[#This Row],[2026/27 From - Spending review Topic 1]]+Dataset[[#This Row],[2026/27 From - Spending review Topic 2]]+Dataset[[#This Row],[2026/27 From - Spending review Topic 3]]+Dataset[[#This Row],[2026/27 From - Spending review Topic 4]]+Dataset[[#This Row],[2026/27 From - Other reallocations]] -> 0 | CD83: =Dataset[[#This Row],[2027/28 From - Spending review Topic 1]]+Dataset[[#This Row],[2027/28 From - Spending review Topic 2]]+Dataset[[#This Row],[2027/28 From - Spending review Topic 3]]+Dataset[[#This Row],[2027/28 From - Spending review Topic 4]]+Dataset[[#This Row],[2027/28 From - Other reallocations]] -> 0 | CE83: =Dataset[[#This Row],[2025/26 To - Spending review Topic 1]]+Dataset[[#This Row],[2025/26 To - Spending review Topic 2]]+Dataset[[#This Row],[2025/26 To - Spending review Topic 3]]+Dataset[[#This Row],[2025/26 To - Spending review Topic 4]]+Dataset[[#This Row],[2025/26 To - Other reallocations]] -> 0 | CF83: =Dataset[[#This Row],[2026/27 To - Spending review Topic 1]]+Dataset[[#This Row],[2026/27 To - Spending review Topic 2]]+Dataset[[#This Row],[2026/27 To - Spending review Topic 3]]+Dataset[[#This Row],[2026/27 To - Spending review Topic 4]]+Dataset[[#This Row],[2026/27 To - Other reallocations]] -> 0 | CG83: =Dataset[[#This Row],[2027/28 To - Spending review Topic 1]]+Dataset[[#This Row],[2027/28 To - Spending review Topic 2]]+Dataset[[#This Row],[2027/28 To - Spending review Topic 3]]+Dataset[[#This Row],[2027/28 To - Spending review Topic 4]]+Dataset[[#This Row],[2027/28 To - Other reallocations]] -> 0 | CH83: =Dataset[[#This Row],[2025/26 Reduction]]+Dataset[[#This Row],[2025/26 From - Total]] -> 0 | CI83: =Dataset[[#This Row],[2026/27 Reduction]]+Dataset[[#This Row],[2026/27 From - Total]] -> 0 | CJ83: =Dataset[[#This Row],[2027/28 Reduction]]+Dataset[[#This Row],[2027/28 From - Total]] -> 0 | CK83: =Dataset[[#This Row],[2024/25 Reduction]] -> 0 | CL83: =SUM(Dataset[[#This Row],[2025/26 Reduction]],Dataset[[#This Row],[2025/26 From - Total]],Dataset[[#This Row],[2025/26 To - Total]]) -> 0 | CM83: =SUM(Dataset[[#This Row],[2026/27 Reduction]],Dataset[[#This Row],[2026/27 From - Total]],Dataset[[#This Row],[2026/27 To - Total]]) -> 0 | CN83: =SUM(Dataset[[#This Row],[2027/28 Reduction]],Dataset[[#This Row],[2027/28 From - Total]],Dataset[[#This Row],[2027/28 To - Total]]) -> 0 | CO83: =Dataset[[#This Row],[2024/25 Baseline]]+Dataset[[#This Row],[2024/25 Total change]] -> 0 | CP83: =Dataset[[#This Row],[2025/26 Baseline]]+Dataset[[#This Row],[2025/26 Total change]] -> 0 | CQ83: =Dataset[[#This Row],[2026/27 Baseline]]+Dataset[[#This Row],[2026/27 Total change]] -> 0 | CR83: =Dataset[[#This Row],[2027/28 Baseline]]+Dataset[[#This Row],[2027/28 Total change]] -> 0
A84: NAT|Non-transfer item | B84: 16|Laboratory services | C84: 2025_26 | D84: MTEC2025 | E84: 16 | F84: 1 | G84: 2 | H84: 16729 | I84: 66 | J84: 16 | K84: 01 | L84: 02 | M84: 016729 | N84: 000066 | O84: 16|01|02|000066 | P84: 01 | Q84: 01 | R84: 02 | S84: 13 | T84: 13 | U84: 01|01|02|13|13 | V84: National | W84: Basic Education | X84: Administration | Y84: Department Management | Z84: Non-transfer item | AA84: Current | AB84: Current payments | AC84: Goods and services | AD84: Laboratory services | AE84: Laboratory services | AF84: Learning and culture | AG84: Basic education | AH84: NAT | AI84: 0 | AJ84: 0 | AK84: 0 | AL84: 0 | AM84: 0 | AN84: 0 | AP84: 0 | AQ84: 0 | AR84: 0 | AS84: 0 | CB84: =Dataset[[#This Row],[2025/26 From - Spending review Topic 1]]+Dataset[[#This Row],[2025/26 From - Spending review Topic 2]]+Dataset[[#This Row],[2025/26 From - Spending review Topic 3]]+Dataset[[#This Row],[2025/26 From - Spending review Topic 4]]+Dataset[[#This Row],[2025/26 From - Other reallocations]] -> 0 | CC84: =Dataset[[#This Row],[2026/27 From - Spending review Topic 1]]+Dataset[[#This Row],[2026/27 From - Spending review Topic 2]]+Dataset[[#This Row],[2026/27 From - Spending review Topic 3]]+Dataset[[#This Row],[2026/27 From - Spending review Topic 4]]+Dataset[[#This Row],[2026/27 From - Other reallocations]] -> 0 | CD84: =Dataset[[#This Row],[2027/28 From - Spending review Topic 1]]+Dataset[[#This Row],[2027/28 From - Spending review Topic 2]]+Dataset[[#This Row],[2027/28 From - Spending review Topic 3]]+Dataset[[#This Row],[2027/28 From - Spending review Topic 4]]+Dataset[[#This Row],[2027/28 From - Other reallocations]] -> 0 | CE84: =Dataset[[#This Row],[2025/26 To - Spending review Topic 1]]+Dataset[[#This Row],[2025/26 To - Spending review Topic 2]]+Dataset[[#This Row],[2025/26 To - Spending review Topic 3]]+Dataset[[#This Row],[2025/26 To - Spending review Topic 4]]+Dataset[[#This Row],[2025/26 To - Other reallocations]] -> 0 | CF84: =Dataset[[#This Row],[2026/27 To - Spending review Topic 1]]+Dataset[[#This Row],[2026/27 To - Spending review Topic 2]]+Dataset[[#This Row],[2026/27 To - Spending review Topic 3]]+Dataset[[#This Row],[2026/27 To - Spending review Topic 4]]+Dataset[[#This Row],[2026/27 To - Other reallocations]] -> 0 | CG84: =Dataset[[#This Row],[2027/28 To - Spending review Topic 1]]+Dataset[[#This Row],[2027/28 To - Spending review Topic 2]]+Dataset[[#This Row],[2027/28 To - Spending review Topic 3]]+Dataset[[#This Row],[2027/28 To - Spending review Topic 4]]+Dataset[[#This Row],[2027/28 To - Other reallocations]] -> 0 | CH84: =Dataset[[#This Row],[2025/26 Reduction]]+Dataset[[#This Row],[2025/26 From - Total]] -> 0 | CI84: =Dataset[[#This Row],[2026/27 Reduction]]+Dataset[[#This Row],[2026/27 From - Total]] -> 0 | CJ84: =Dataset[[#This Row],[2027/28 Reduction]]+Dataset[[#This Row],[2027/28 From - Total]] -> 0 | CK84: =Dataset[[#This Row],[2024/25 Reduction]] -> 0 | CL84: =SUM(Dataset[[#This Row],[2025/26 Reduction]],Dataset[[#This Row],[2025/26 From - Total]],Dataset[[#This Row],[2025/26 To - Total]]) -> 0 | CM84: =SUM(Dataset[[#This Row],[2026/27 Reduction]],Dataset[[#This Row],[2026/27 From - Total]],Dataset[[#This Row],[2026/27 To - Total]]) -> 0 | CN84: =SUM(Dataset[[#This Row],[2027/28 Reduction]],Dataset[[#This Row],[2027/28 From - Total]],Dataset[[#This Row],[2027/28 To - Total]]) -> 0 | CO84: =Dataset[[#This Row],[2024/25 Baseline]]+Dataset[[#This Row],[2024/25 Total change]] -> 0 | CP84: =Dataset[[#This Row],[2025/26 Baseline]]+Dataset[[#This Row],[2025/26 Total change]] -> 0 | CQ84: =Dataset[[#This Row],[2026/27 Baseline]]+Dataset[[#This Row],[2026/27 Total change]] -> 0 | CR84: =Dataset[[#This Row],[2027/28 Baseline]]+Dataset[[#This Row],[2027/28 Total change]] -> 0
A85: NAT|Non-transfer item | B85: 16|Legal services (G&S) | C85: 2025_26 | D85: MTEC2025 | E85: 16 | F85: 1 | G85: 2 | H85: 16730 | I85: 67 | J85: 16 | K85: 01 | L85: 02 | M85: 016730 | N85: 000067 | O85: 16|01|02|000067 | P85: 01 | Q85: 01 | R85: 02 | S85: 14 | T85: 14 | U85: 01|01|02|14|14 | V85: National | W85: Basic Education | X85: Administration | Y85: Department Management | Z85: Non-transfer item | AA85: Current | AB85: Current payments | AC85: Goods and services | AD85: Legal services (G&S) | AE85: Legal services (G&S) | AF85: Learning and culture | AG85: Basic education | AH85: NAT | AI85: 0 | AJ85: 0 | AK85: 0 | AL85: 0 | AM85: 0 | AN85: 0 | AP85: 0 | AQ85: 0 | AR85: 0 | AS85: 0 | CB85: =Dataset[[#This Row],[2025/26 From - Spending review Topic 1]]+Dataset[[#This Row],[2025/26 From - Spending review Topic 2]]+Dataset[[#This Row],[2025/26 From - Spending review Topic 3]]+Dataset[[#This Row],[2025/26 From - Spending review Topic 4]]+Dataset[[#This Row],[2025/26 From - Other reallocations]] -> 0 | CC85: =Dataset[[#This Row],[2026/27 From - Spending review Topic 1]]+Dataset[[#This Row],[2026/27 From - Spending review Topic 2]]+Dataset[[#This Row],[2026/27 From - Spending review Topic 3]]+Dataset[[#This Row],[2026/27 From - Spending review Topic 4]]+Dataset[[#This Row],[2026/27 From - Other reallocations]] -> 0 | CD85: =Dataset[[#This Row],[2027/28 From - Spending review Topic 1]]+Dataset[[#This Row],[2027/28 From - Spending review Topic 2]]+Dataset[[#This Row],[2027/28 From - Spending review Topic 3]]+Dataset[[#This Row],[2027/28 From - Spending review Topic 4]]+Dataset[[#This Row],[2027/28 From - Other reallocations]] -> 0 | CE85: =Dataset[[#This Row],[2025/26 To - Spending review Topic 1]]+Dataset[[#This Row],[2025/26 To - Spending review Topic 2]]+Dataset[[#This Row],[2025/26 To - Spending review Topic 3]]+Dataset[[#This Row],[2025/26 To - Spending review Topic 4]]+Dataset[[#This Row],[2025/26 To - Other reallocations]] -> 0 | CF85: =Dataset[[#This Row],[2026/27 To - Spending review Topic 1]]+Dataset[[#This Row],[2026/27 To - Spending review Topic 2]]+Dataset[[#This Row],[2026/27 To - Spending review Topic 3]]+Dataset[[#This Row],[2026/27 To - Spending review Topic 4]]+Dataset[[#This Row],[2026/27 To - Other reallocations]] -> 0 | CG85: =Dataset[[#This Row],[2027/28 To - Spending review Topic 1]]+Dataset[[#This Row],[2027/28 To - Spending review Topic 2]]+Dataset[[#This Row],[2027/28 To - Spending review Topic 3]]+Dataset[[#This Row],[2027/28 To - Spending review Topic 4]]+Dataset[[#This Row],[2027/28 To - Other reallocations]] -> 0 | CH85: =Dataset[[#This Row],[2025/26 Reduction]]+Dataset[[#This Row],[2025/26 From - Total]] -> 0 | CI85: =Dataset[[#This Row],[2026/27 Reduction]]+Dataset[[#This Row],[2026/27 From - Total]] -> 0 | CJ85: =Dataset[[#This Row],[2027/28 Reduction]]+Dataset[[#This Row],[2027/28 From - Total]] -> 0 | CK85: =Dataset[[#This Row],[2024/25 Reduction]] -> 0 | CL85: =SUM(Dataset[[#This Row],[2025/26 Reduction]],Dataset[[#This Row],[2025/26 From - Total]],Dataset[[#This Row],[2025/26 To - Total]]) -> 0 | CM85: =SUM(Dataset[[#This Row],[2026/27 Reduction]],Dataset[[#This Row],[2026/27 From - Total]],Dataset[[#This Row],[2026/27 To - Total]]) -> 0 | CN85: =SUM(Dataset[[#This Row],[2027/28 Reduction]],Dataset[[#This Row],[2027/28 From - Total]],Dataset[[#This Row],[2027/28 To - Total]]) -> 0 | CO85: =Dataset[[#This Row],[2024/25 Baseline]]+Dataset[[#This Row],[2024/25 Total change]] -> 0 | CP85: =Dataset[[#This Row],[2025/26 Baseline]]+Dataset[[#This Row],[2025/26 Total change]] -> 0 | CQ85: =Dataset[[#This Row],[2026/27 Baseline]]+Dataset[[#This Row],[2026/27 Total change]] -> 0 | CR85: =Dataset[[#This Row],[2027/28 Baseline]]+Dataset[[#This Row],[2027/28 Total change]] -> 0
